Organisation Code,Organisation Label,Effective Date,Organisational Unit,Service Division Label,Category Internal Name,Purpose,Detailed Expenditure Code,Payment Date,Transaction Number,Irrecoverable VAT Amount,Amount,Capital Or Revenue,Benificiary Name,Procurement Card
Http://opendatacommunities.org/id/metropolitan-district-council/leeds,Leeds City Council,31/12/2016,Citizens And Communities,Benefits  Wlefare And Poverty  ,Supplies and Services,Telephones,213,03-Nov-2016,1612-00001,0.00,80.00,R,(Aq) Limited,Yes
Http://opendatacommunities.org/id/metropolitan-district-council/leeds,Leeds City Council,31/12/2016,Central & Corporate,Finance  ,Supplies and Services,Telephones,213,17-Nov-2016,1612-00002,0.00,80.00,R,(Aq) Limited,Yes
Http://opendatacommunities.org/id/metropolitan-district-council/leeds,Leeds City Council,31/12/2016,Environment & Housing,Leeds Building Services,Supplies and Services,Operational Materials,205,06-Dec-2016,1612-00003,0.00,55.95,R,A & A Electrical Distributors Ltd,No
Http://opendatacommunities.org/id/metropolitan-district-council/leeds,Leeds City Council,31/12/2016,Childrens Services,Learning Skills & Universal,Supplies and Services,Training Allowances,257,23-Dec-2016,1612-00004,0.00,216.00,R,REDACTED PERSONAL DATA,No
Http://opendatacommunities.org/id/metropolitan-district-council/leeds,Leeds City Council,31/12/2016,Childrens Services,Learning Skills & Universal,Supplies and Services,Training Allowances,257,30-Dec-2016,1612-00005,0.00,216.00,R,REDACTED PERSONAL DATA,No
Http://opendatacommunities.org/id/metropolitan-district-council/leeds,Leeds City Council,31/12/2016,Environment & Housing,Leeds Building Services,Supplies and Services,Operational Materials,205,02-Dec-2016,1612-00006,0.00,16.50,R,A Andrews & Sons (Marbles & Tiles),No
Http://opendatacommunities.org/id/metropolitan-district-council/leeds,Leeds City Council,31/12/2016,Environment & Housing,Leeds Building Services,Supplies and Services,Operational Materials,205,02-Dec-2016,1612-00007,0.00,951.06,R,A Andrews & Sons (Marbles & Tiles),No
Http://opendatacommunities.org/id/metropolitan-district-council/leeds,Leeds City Council,31/12/2016,Environment & Housing,Leeds Building Services,Supplies and Services,Operational Materials,205,07-Dec-2016,1612-00008,0.00,7.77,R,A Andrews & Sons (Marbles & Tiles),No
Http://opendatacommunities.org/id/metropolitan-district-council/leeds,Leeds City Council,31/12/2016,Environment & Housing,Leeds Building Services,Supplies and Services,Operational Materials,205,14-Dec-2016,1612-00009,0.00,55.00,R,A Andrews & Sons (Marbles & Tiles),No
Http://opendatacommunities.org/id/metropolitan-district-council/leeds,Leeds City Council,31/12/2016,City Development,Libraries  Arts & Heritage,Supplies and Services,Bought In Professional Services,277,09-Dec-2016,1612-00010,0.00,100.00,R,A B Jones,No
Http://opendatacommunities.org/id/metropolitan-district-council/leeds,Leeds City Council,31/12/2016,Environment & Housing,Housing Leeds Service,Capital,Other Costs,7,01-Dec-2016,1612-00011,0.00,360.00,C,REDACTED PERSONAL DATA,No
Http://opendatacommunities.org/id/metropolitan-district-council/leeds,Leeds City Council,31/12/2016,City Development,Libraries  Arts & Heritage,Supplies and Services,Resaleable Materials,204,02-Dec-2016,1612-00012,0.00,588.50,R,A C Entertainment Technologies Ltd,No
Http://opendatacommunities.org/id/metropolitan-district-council/leeds,Leeds City Council,31/12/2016,City Development,Libraries  Arts & Heritage,Supplies and Services,Operational Furniture And Equipment,203,16-Dec-2016,1612-00013,0.00,770.87,R,A C Entertainment Technologies Ltd,No
Http://opendatacommunities.org/id/metropolitan-district-council/leeds,Leeds City Council,31/12/2016,City Development,Libraries  Arts & Heritage,Supplies and Services,Operational Materials,205,16-Dec-2016,1612-00014,0.00,382.18,R,A C Entertainment Technologies Ltd,No
Http://opendatacommunities.org/id/metropolitan-district-council/leeds,Leeds City Council,31/12/2016,City Development,Libraries  Arts & Heritage,Supplies and Services,Operational Materials,205,28-Dec-2016,1612-00015,0.00,57.89,R,A C Entertainment Technologies Ltd,No
Http://opendatacommunities.org/id/metropolitan-district-council/leeds,Leeds City Council,31/12/2016,Childrens Services,Learning Skills & Universal,Third Party Payments,Services Rendered By Voluntary Sector,505,02-Dec-2016,1612-00016,0.00,2502.60,R,A E Speight,No
Http://opendatacommunities.org/id/metropolitan-district-council/leeds,Leeds City Council,31/12/2016,Childrens Services,Learning Skills & Universal,Third Party Payments,Services Rendered By Voluntary Sector,505,09-Dec-2016,1612-00017,0.00,667.80,R,A E Speight,No
Http://opendatacommunities.org/id/metropolitan-district-council/leeds,Leeds City Council,31/12/2016,Childrens Services,Learning Skills & Universal,Third Party Payments,Services Rendered By Voluntary Sector,505,09-Dec-2016,1612-00018,0.00,1607.40,R,A E Speight,No
Http://opendatacommunities.org/id/metropolitan-district-council/leeds,Leeds City Council,31/12/2016,Environment & Housing,Housing Leeds Service,Capital,Other Costs,7,01-Dec-2016,1612-00019,0.00,31.99,C,REDACTED PERSONAL DATA,No
Http://opendatacommunities.org/id/metropolitan-district-council/leeds,Leeds City Council,31/12/2016,Childrens Services,Learning Skills & Universal,Third Party Payments,Services Rendered By Other Organisations,511,02-Dec-2016,1612-00020,0.00,203.70,R,A Green,No
Http://opendatacommunities.org/id/metropolitan-district-council/leeds,Leeds City Council,31/12/2016,Environment & Housing,Leeds Building Services,Supplies and Services,Operational Materials,205,02-Dec-2016,1612-00021,0.00,8.25,R,A J H  Pump Supply & Repair Ltd,No
Http://opendatacommunities.org/id/metropolitan-district-council/leeds,Leeds City Council,31/12/2016,Environment & Housing,Leeds Building Services,Supplies and Services,Operational Materials,205,02-Dec-2016,1612-00022,0.00,194.00,R,A J H  Pump Supply & Repair Ltd,No
Http://opendatacommunities.org/id/metropolitan-district-council/leeds,Leeds City Council,31/12/2016,Environment & Housing,Leeds Building Services,Supplies and Services,Operational Materials,205,02-Dec-2016,1612-00023,0.00,660.00,R,A J H  Pump Supply & Repair Ltd,No
Http://opendatacommunities.org/id/metropolitan-district-council/leeds,Leeds City Council,31/12/2016,Environment & Housing,Leeds Building Services,Supplies and Services,Operational Materials,205,02-Dec-2016,1612-00024,0.00,7.84,R,A J H  Pump Supply & Repair Ltd,No
Http://opendatacommunities.org/id/metropolitan-district-council/leeds,Leeds City Council,31/12/2016,Environment & Housing,Leeds Building Services,Supplies and Services,Operational Materials,205,02-Dec-2016,1612-00025,0.00,5.00,R,A J H  Pump Supply & Repair Ltd,No
Http://opendatacommunities.org/id/metropolitan-district-council/leeds,Leeds City Council,31/12/2016,Environment & Housing,Leeds Building Services,Supplies and Services,Operational Materials,205,02-Dec-2016,1612-00026,0.00,470.00,R,A J H  Pump Supply & Repair Ltd,No
Http://opendatacommunities.org/id/metropolitan-district-council/leeds,Leeds City Council,31/12/2016,Environment & Housing,Leeds Building Services,Supplies and Services,Operational Materials,205,02-Dec-2016,1612-00027,0.00,970.00,R,A J H  Pump Supply & Repair Ltd,No
Http://opendatacommunities.org/id/metropolitan-district-council/leeds,Leeds City Council,31/12/2016,Environment & Housing,Leeds Building Services,Supplies and Services,Operational Materials,205,02-Dec-2016,1612-00028,0.00,69.08,R,A J H  Pump Supply & Repair Ltd,No
Http://opendatacommunities.org/id/metropolitan-district-council/leeds,Leeds City Council,31/12/2016,Environment & Housing,Leeds Building Services,Supplies and Services,Operational Materials,205,02-Dec-2016,1612-00029,0.00,14.25,R,A J H  Pump Supply & Repair Ltd,No
Http://opendatacommunities.org/id/metropolitan-district-council/leeds,Leeds City Council,31/12/2016,Environment & Housing,Leeds Building Services,Supplies and Services,Operational Materials,205,02-Dec-2016,1612-00030,0.00,131.09,R,A J H  Pump Supply & Repair Ltd,No
Http://opendatacommunities.org/id/metropolitan-district-council/leeds,Leeds City Council,31/12/2016,Environment & Housing,Leeds Building Services,Supplies and Services,Operational Materials,205,02-Dec-2016,1612-00031,0.00,96.22,R,A J H  Pump Supply & Repair Ltd,No
Http://opendatacommunities.org/id/metropolitan-district-council/leeds,Leeds City Council,31/12/2016,Environment & Housing,Leeds Building Services,Supplies and Services,Operational Materials,205,02-Dec-2016,1612-00032,0.00,470.00,R,A J H  Pump Supply & Repair Ltd,No
Http://opendatacommunities.org/id/metropolitan-district-council/leeds,Leeds City Council,31/12/2016,Environment & Housing,Leeds Building Services,Supplies and Services,Operational Materials,205,02-Dec-2016,1612-00033,0.00,145.43,R,A J H  Pump Supply & Repair Ltd,No
Http://opendatacommunities.org/id/metropolitan-district-council/leeds,Leeds City Council,31/12/2016,Environment & Housing,Leeds Building Services,Supplies and Services,Operational Materials,205,02-Dec-2016,1612-00034,0.00,364.90,R,A J H  Pump Supply & Repair Ltd,No
Http://opendatacommunities.org/id/metropolitan-district-council/leeds,Leeds City Council,31/12/2016,Environment & Housing,Leeds Building Services,Supplies and Services,Operational Materials,205,02-Dec-2016,1612-00035,0.00,24.00,R,A J H  Pump Supply & Repair Ltd,No
Http://opendatacommunities.org/id/metropolitan-district-council/leeds,Leeds City Council,31/12/2016,Environment & Housing,Leeds Building Services,Supplies and Services,Operational Materials,205,02-Dec-2016,1612-00036,0.00,385.00,R,A J H  Pump Supply & Repair Ltd,No
Http://opendatacommunities.org/id/metropolitan-district-council/leeds,Leeds City Council,31/12/2016,Environment & Housing,Leeds Building Services,Supplies and Services,Operational Materials,205,02-Dec-2016,1612-00037,0.00,260.85,R,A J H  Pump Supply & Repair Ltd,No
Http://opendatacommunities.org/id/metropolitan-district-council/leeds,Leeds City Council,31/12/2016,Environment & Housing,Leeds Building Services,Supplies and Services,Operational Materials,205,02-Dec-2016,1612-00038,0.00,406.00,R,A J H  Pump Supply & Repair Ltd,No
Http://opendatacommunities.org/id/metropolitan-district-council/leeds,Leeds City Council,31/12/2016,Environment & Housing,Leeds Building Services,Supplies and Services,Operational Materials,205,02-Dec-2016,1612-00039,0.00,122.22,R,A J H  Pump Supply & Repair Ltd,No
Http://opendatacommunities.org/id/metropolitan-district-council/leeds,Leeds City Council,31/12/2016,Environment & Housing,Leeds Building Services,Supplies and Services,Operational Materials,205,02-Dec-2016,1612-00040,0.00,167.20,R,A J H  Pump Supply & Repair Ltd,No
Http://opendatacommunities.org/id/metropolitan-district-council/leeds,Leeds City Council,31/12/2016,Environment & Housing,Leeds Building Services,Supplies and Services,Operational Materials,205,02-Dec-2016,1612-00041,0.00,279.24,R,A J H  Pump Supply & Repair Ltd,No
Http://opendatacommunities.org/id/metropolitan-district-council/leeds,Leeds City Council,31/12/2016,Environment & Housing,Leeds Building Services,Supplies and Services,Operational Materials,205,02-Dec-2016,1612-00042,0.00,615.00,R,A J H  Pump Supply & Repair Ltd,No
Http://opendatacommunities.org/id/metropolitan-district-council/leeds,Leeds City Council,31/12/2016,Environment & Housing,Leeds Building Services,Supplies and Services,Operational Materials,205,02-Dec-2016,1612-00043,0.00,35.70,R,A J H  Pump Supply & Repair Ltd,No
Http://opendatacommunities.org/id/metropolitan-district-council/leeds,Leeds City Council,31/12/2016,Environment & Housing,Leeds Building Services,Supplies and Services,Operational Materials,205,02-Dec-2016,1612-00044,0.00,996.00,R,A J H  Pump Supply & Repair Ltd,No
Http://opendatacommunities.org/id/metropolitan-district-council/leeds,Leeds City Council,31/12/2016,Environment & Housing,Leeds Building Services,Supplies and Services,Operational Materials,205,02-Dec-2016,1612-00045,0.00,464.00,R,A J H  Pump Supply & Repair Ltd,No
Http://opendatacommunities.org/id/metropolitan-district-council/leeds,Leeds City Council,31/12/2016,Environment & Housing,Leeds Building Services,Supplies and Services,Operational Materials,205,02-Dec-2016,1612-00046,0.00,578.00,R,A J H  Pump Supply & Repair Ltd,No
Http://opendatacommunities.org/id/metropolitan-district-council/leeds,Leeds City Council,31/12/2016,Environment & Housing,Leeds Building Services,Supplies and Services,Other Hired And Contracted Services,265,02-Dec-2016,1612-00047,0.00,445.18,R,A J H  Pump Supply & Repair Ltd,No
Http://opendatacommunities.org/id/metropolitan-district-council/leeds,Leeds City Council,31/12/2016,Environment & Housing,Leeds Building Services,Supplies and Services,Operational Materials,205,06-Dec-2016,1612-00048,0.00,205.00,R,A J H  Pump Supply & Repair Ltd,No
Http://opendatacommunities.org/id/metropolitan-district-council/leeds,Leeds City Council,31/12/2016,Environment & Housing,Leeds Building Services,Supplies and Services,Operational Materials,205,06-Dec-2016,1612-00049,0.00,91.09,R,A J H  Pump Supply & Repair Ltd,No
Http://opendatacommunities.org/id/metropolitan-district-council/leeds,Leeds City Council,31/12/2016,Environment & Housing,Leeds Building Services,Supplies and Services,Operational Materials,205,06-Dec-2016,1612-00050,0.00,145.00,R,A J H  Pump Supply & Repair Ltd,No
Http://opendatacommunities.org/id/metropolitan-district-council/leeds,Leeds City Council,31/12/2016,Environment & Housing,Leeds Building Services,Supplies and Services,Operational Materials,205,06-Dec-2016,1612-00051,0.00,570.99,R,A J H  Pump Supply & Repair Ltd,No
Http://opendatacommunities.org/id/metropolitan-district-council/leeds,Leeds City Council,31/12/2016,Environment & Housing,Leeds Building Services,Supplies and Services,Operational Materials,205,06-Dec-2016,1612-00052,0.00,395.00,R,A J H  Pump Supply & Repair Ltd,No
Http://opendatacommunities.org/id/metropolitan-district-council/leeds,Leeds City Council,31/12/2016,Environment & Housing,Leeds Building Services,Supplies and Services,Operational Materials,205,06-Dec-2016,1612-00053,0.00,36.00,R,A J H  Pump Supply & Repair Ltd,No
Http://opendatacommunities.org/id/metropolitan-district-council/leeds,Leeds City Council,31/12/2016,Environment & Housing,Leeds Building Services,Supplies and Services,Operational Materials,205,06-Dec-2016,1612-00054,0.00,12.95,R,A J H  Pump Supply & Repair Ltd,No
Http://opendatacommunities.org/id/metropolitan-district-council/leeds,Leeds City Council,31/12/2016,Environment & Housing,Leeds Building Services,Supplies and Services,Operational Materials,205,06-Dec-2016,1612-00055,0.00,330.00,R,A J H  Pump Supply & Repair Ltd,No
Http://opendatacommunities.org/id/metropolitan-district-council/leeds,Leeds City Council,31/12/2016,Environment & Housing,Leeds Building Services,Supplies and Services,Operational Materials,205,07-Dec-2016,1612-00056,0.00,449.00,R,A J H  Pump Supply & Repair Ltd,No
Http://opendatacommunities.org/id/metropolitan-district-council/leeds,Leeds City Council,31/12/2016,Environment & Housing,Leeds Building Services,Supplies and Services,Operational Materials,205,07-Dec-2016,1612-00057,0.00,39.97,R,A J H  Pump Supply & Repair Ltd,No
Http://opendatacommunities.org/id/metropolitan-district-council/leeds,Leeds City Council,31/12/2016,Environment & Housing,Leeds Building Services,Supplies and Services,Operational Materials,205,07-Dec-2016,1612-00058,0.00,171.82,R,A J H  Pump Supply & Repair Ltd,No
Http://opendatacommunities.org/id/metropolitan-district-council/leeds,Leeds City Council,31/12/2016,Environment & Housing,Leeds Building Services,Supplies and Services,Operational Materials,205,07-Dec-2016,1612-00059,0.00,175.25,R,A J H  Pump Supply & Repair Ltd,No
Http://opendatacommunities.org/id/metropolitan-district-council/leeds,Leeds City Council,31/12/2016,Environment & Housing,Leeds Building Services,Supplies and Services,Operational Materials,205,07-Dec-2016,1612-00060,0.00,146.83,R,A J H  Pump Supply & Repair Ltd,No
Http://opendatacommunities.org/id/metropolitan-district-council/leeds,Leeds City Council,31/12/2016,Environment & Housing,Leeds Building Services,Supplies and Services,Operational Materials,205,07-Dec-2016,1612-00061,0.00,316.57,R,A J H  Pump Supply & Repair Ltd,No
Http://opendatacommunities.org/id/metropolitan-district-council/leeds,Leeds City Council,31/12/2016,Environment & Housing,Leeds Building Services,Supplies and Services,Operational Materials,205,07-Dec-2016,1612-00062,0.00,264.00,R,A J H  Pump Supply & Repair Ltd,No
Http://opendatacommunities.org/id/metropolitan-district-council/leeds,Leeds City Council,31/12/2016,Environment & Housing,Leeds Building Services,Supplies and Services,Operational Materials,205,07-Dec-2016,1612-00063,0.00,294.21,R,A J H  Pump Supply & Repair Ltd,No
Http://opendatacommunities.org/id/metropolitan-district-council/leeds,Leeds City Council,31/12/2016,Environment & Housing,Leeds Building Services,Supplies and Services,Operational Materials,205,07-Dec-2016,1612-00064,0.00,115.94,R,A J H  Pump Supply & Repair Ltd,No
Http://opendatacommunities.org/id/metropolitan-district-council/leeds,Leeds City Council,31/12/2016,Environment & Housing,Leeds Building Services,Supplies and Services,Operational Materials,205,07-Dec-2016,1612-00065,0.00,242.70,R,A J H  Pump Supply & Repair Ltd,No
Http://opendatacommunities.org/id/metropolitan-district-council/leeds,Leeds City Council,31/12/2016,Environment & Housing,Leeds Building Services,Supplies and Services,Operational Materials,205,07-Dec-2016,1612-00066,0.00,50.07,R,A J H  Pump Supply & Repair Ltd,No
Http://opendatacommunities.org/id/metropolitan-district-council/leeds,Leeds City Council,31/12/2016,Environment & Housing,Leeds Building Services,Supplies and Services,Operational Materials,205,07-Dec-2016,1612-00067,0.00,888.19,R,A J H  Pump Supply & Repair Ltd,No
Http://opendatacommunities.org/id/metropolitan-district-council/leeds,Leeds City Council,31/12/2016,Environment & Housing,Leeds Building Services,Supplies and Services,Operational Materials,205,07-Dec-2016,1612-00068,0.00,40.71,R,A J H  Pump Supply & Repair Ltd,No
Http://opendatacommunities.org/id/metropolitan-district-council/leeds,Leeds City Council,31/12/2016,Environment & Housing,Leeds Building Services,Supplies and Services,Operational Materials,205,07-Dec-2016,1612-00069,0.00,227.62,R,A J H  Pump Supply & Repair Ltd,No
Http://opendatacommunities.org/id/metropolitan-district-council/leeds,Leeds City Council,31/12/2016,Environment & Housing,Leeds Building Services,Supplies and Services,Operational Materials,205,07-Dec-2016,1612-00070,0.00,111.14,R,A J H  Pump Supply & Repair Ltd,No
Http://opendatacommunities.org/id/metropolitan-district-council/leeds,Leeds City Council,31/12/2016,Environment & Housing,Leeds Building Services,Supplies and Services,Operational Materials,205,07-Dec-2016,1612-00071,0.00,495.27,R,A J H  Pump Supply & Repair Ltd,No
Http://opendatacommunities.org/id/metropolitan-district-council/leeds,Leeds City Council,31/12/2016,Environment & Housing,Leeds Building Services,Supplies and Services,Operational Materials,205,07-Dec-2016,1612-00072,0.00,45.95,R,A J H  Pump Supply & Repair Ltd,No
Http://opendatacommunities.org/id/metropolitan-district-council/leeds,Leeds City Council,31/12/2016,Environment & Housing,Leeds Building Services,Supplies and Services,Operational Materials,205,07-Dec-2016,1612-00073,0.00,119.81,R,A J H  Pump Supply & Repair Ltd,No
Http://opendatacommunities.org/id/metropolitan-district-council/leeds,Leeds City Council,31/12/2016,Environment & Housing,Leeds Building Services,Supplies and Services,Operational Materials,205,07-Dec-2016,1612-00074,0.00,745.00,R,A J H  Pump Supply & Repair Ltd,No
Http://opendatacommunities.org/id/metropolitan-district-council/leeds,Leeds City Council,31/12/2016,Environment & Housing,Leeds Building Services,Supplies and Services,Operational Materials,205,07-Dec-2016,1612-00075,0.00,75.00,R,A J H  Pump Supply & Repair Ltd,No
Http://opendatacommunities.org/id/metropolitan-district-council/leeds,Leeds City Council,31/12/2016,Environment & Housing,Leeds Building Services,Supplies and Services,Operational Materials,205,07-Dec-2016,1612-00076,0.00,184.60,R,A J H  Pump Supply & Repair Ltd,No
Http://opendatacommunities.org/id/metropolitan-district-council/leeds,Leeds City Council,31/12/2016,Environment & Housing,Leeds Building Services,Supplies and Services,Operational Materials,205,07-Dec-2016,1612-00077,0.00,75.25,R,A J H  Pump Supply & Repair Ltd,No
Http://opendatacommunities.org/id/metropolitan-district-council/leeds,Leeds City Council,31/12/2016,Environment & Housing,Leeds Building Services,Supplies and Services,Operational Materials,205,07-Dec-2016,1612-00078,0.00,69.66,R,A J H  Pump Supply & Repair Ltd,No
Http://opendatacommunities.org/id/metropolitan-district-council/leeds,Leeds City Council,31/12/2016,Environment & Housing,Leeds Building Services,Supplies and Services,Operational Materials,205,07-Dec-2016,1612-00079,0.00,342.28,R,A J H  Pump Supply & Repair Ltd,No
Http://opendatacommunities.org/id/metropolitan-district-council/leeds,Leeds City Council,31/12/2016,Environment & Housing,Leeds Building Services,Supplies and Services,Operational Materials,205,07-Dec-2016,1612-00080,0.00,113.81,R,A J H  Pump Supply & Repair Ltd,No
Http://opendatacommunities.org/id/metropolitan-district-council/leeds,Leeds City Council,31/12/2016,Environment & Housing,Leeds Building Services,Supplies and Services,Operational Materials,205,07-Dec-2016,1612-00081,0.00,236.00,R,A J H  Pump Supply & Repair Ltd,No
Http://opendatacommunities.org/id/metropolitan-district-council/leeds,Leeds City Council,31/12/2016,Environment & Housing,Leeds Building Services,Supplies and Services,Operational Furniture And Equipment,203,07-Dec-2016,1612-00082,0.00,21.00,R,A J H  Pump Supply & Repair Ltd,No
Http://opendatacommunities.org/id/metropolitan-district-council/leeds,Leeds City Council,31/12/2016,Environment & Housing,Leeds Building Services,Supplies and Services,Operational Materials,205,07-Dec-2016,1612-00083,0.00,1177.78,R,A J H  Pump Supply & Repair Ltd,No
Http://opendatacommunities.org/id/metropolitan-district-council/leeds,Leeds City Council,31/12/2016,Environment & Housing,Leeds Building Services,Supplies and Services,Operational Materials,205,07-Dec-2016,1612-00084,0.00,49.50,R,A J H  Pump Supply & Repair Ltd,No
Http://opendatacommunities.org/id/metropolitan-district-council/leeds,Leeds City Council,31/12/2016,Environment & Housing,Leeds Building Services,Supplies and Services,Operational Materials,205,07-Dec-2016,1612-00085,0.00,286.00,R,A J H  Pump Supply & Repair Ltd,No
Http://opendatacommunities.org/id/metropolitan-district-council/leeds,Leeds City Council,31/12/2016,Environment & Housing,Leeds Building Services,Supplies and Services,Operational Materials,205,07-Dec-2016,1612-00086,0.00,204.16,R,A J H  Pump Supply & Repair Ltd,No
Http://opendatacommunities.org/id/metropolitan-district-council/leeds,Leeds City Council,31/12/2016,Environment & Housing,Leeds Building Services,Supplies and Services,Operational Materials,205,07-Dec-2016,1612-00087,0.00,100.00,R,A J H  Pump Supply & Repair Ltd,No
Http://opendatacommunities.org/id/metropolitan-district-council/leeds,Leeds City Council,31/12/2016,Environment & Housing,Leeds Building Services,Supplies and Services,Operational Materials,205,07-Dec-2016,1612-00088,0.00,53.66,R,A J H  Pump Supply & Repair Ltd,No
Http://opendatacommunities.org/id/metropolitan-district-council/leeds,Leeds City Council,31/12/2016,Environment & Housing,Leeds Building Services,Supplies and Services,Operational Materials,205,07-Dec-2016,1612-00089,0.00,57.78,R,A J H  Pump Supply & Repair Ltd,No
Http://opendatacommunities.org/id/metropolitan-district-council/leeds,Leeds City Council,31/12/2016,Environment & Housing,Leeds Building Services,Supplies and Services,Operational Materials,205,07-Dec-2016,1612-00090,0.00,100.00,R,A J H  Pump Supply & Repair Ltd,No
Http://opendatacommunities.org/id/metropolitan-district-council/leeds,Leeds City Council,31/12/2016,Environment & Housing,Leeds Building Services,Supplies and Services,Operational Materials,205,07-Dec-2016,1612-00091,0.00,41.90,R,A J H  Pump Supply & Repair Ltd,No
Http://opendatacommunities.org/id/metropolitan-district-council/leeds,Leeds City Council,31/12/2016,Environment & Housing,Leeds Building Services,Supplies and Services,Operational Materials,205,14-Dec-2016,1612-00092,0.00,21.09,R,A J H  Pump Supply & Repair Ltd,No
Http://opendatacommunities.org/id/metropolitan-district-council/leeds,Leeds City Council,31/12/2016,Environment & Housing,Leeds Building Services,Supplies and Services,Operational Materials,205,14-Dec-2016,1612-00093,0.00,6879.00,R,A J H  Pump Supply & Repair Ltd,No
Http://opendatacommunities.org/id/metropolitan-district-council/leeds,Leeds City Council,31/12/2016,Environment & Housing,Leeds Building Services,Supplies and Services,Operational Materials,205,14-Dec-2016,1612-00094,0.00,4977.00,R,A J H  Pump Supply & Repair Ltd,No
Http://opendatacommunities.org/id/metropolitan-district-council/leeds,Leeds City Council,31/12/2016,Environment & Housing,Leeds Building Services,Supplies and Services,Operational Materials,205,14-Dec-2016,1612-00095,0.00,1726.00,R,A J H  Pump Supply & Repair Ltd,No
Http://opendatacommunities.org/id/metropolitan-district-council/leeds,Leeds City Council,31/12/2016,Environment & Housing,Leeds Building Services,Supplies and Services,Operational Materials,205,14-Dec-2016,1612-00096,0.00,129.50,R,A J H  Pump Supply & Repair Ltd,No
Http://opendatacommunities.org/id/metropolitan-district-council/leeds,Leeds City Council,31/12/2016,Environment & Housing,Leeds Building Services,Supplies and Services,Operational Materials,205,16-Dec-2016,1612-00097,0.00,44.35,R,A J H  Pump Supply & Repair Ltd,No
Http://opendatacommunities.org/id/metropolitan-district-council/leeds,Leeds City Council,31/12/2016,Environment & Housing,Leeds Building Services,Supplies and Services,Operational Materials,205,19-Dec-2016,1612-00098,0.00,776.00,R,A J H  Pump Supply & Repair Ltd,No
Http://opendatacommunities.org/id/metropolitan-district-council/leeds,Leeds City Council,31/12/2016,Environment & Housing,Leeds Building Services,Supplies and Services,Operational Materials,205,19-Dec-2016,1612-00099,0.00,108.00,R,A J H  Pump Supply & Repair Ltd,No
Http://opendatacommunities.org/id/metropolitan-district-council/leeds,Leeds City Council,31/12/2016,Environment & Housing,Leeds Building Services,Supplies and Services,Operational Materials,205,19-Dec-2016,1612-00100,0.00,11.50,R,A J H  Pump Supply & Repair Ltd,No
Http://opendatacommunities.org/id/metropolitan-district-council/leeds,Leeds City Council,31/12/2016,Environment & Housing,Leeds Building Services,Supplies and Services,Operational Materials,205,19-Dec-2016,1612-00101,0.00,174.67,R,A J H  Pump Supply & Repair Ltd,No
Http://opendatacommunities.org/id/metropolitan-district-council/leeds,Leeds City Council,31/12/2016,Environment & Housing,Leeds Building Services,Supplies and Services,Operational Materials,205,19-Dec-2016,1612-00102,0.00,714.57,R,A J H  Pump Supply & Repair Ltd,No
Http://opendatacommunities.org/id/metropolitan-district-council/leeds,Leeds City Council,31/12/2016,Environment & Housing,Leeds Building Services,Supplies and Services,Operational Materials,205,19-Dec-2016,1612-00103,0.00,131.09,R,A J H  Pump Supply & Repair Ltd,No
Http://opendatacommunities.org/id/metropolitan-district-council/leeds,Leeds City Council,31/12/2016,Environment & Housing,Leeds Building Services,Supplies and Services,Operational Materials,205,19-Dec-2016,1612-00104,0.00,125.00,R,A J H  Pump Supply & Repair Ltd,No
Http://opendatacommunities.org/id/metropolitan-district-council/leeds,Leeds City Council,31/12/2016,Environment & Housing,Leeds Building Services,Supplies and Services,Operational Materials,205,19-Dec-2016,1612-00105,0.00,67.18,R,A J H  Pump Supply & Repair Ltd,No
Http://opendatacommunities.org/id/metropolitan-district-council/leeds,Leeds City Council,31/12/2016,Environment & Housing,Leeds Building Services,Supplies and Services,Operational Materials,205,19-Dec-2016,1612-00106,0.00,25.00,R,A J H  Pump Supply & Repair Ltd,No
Http://opendatacommunities.org/id/metropolitan-district-council/leeds,Leeds City Council,31/12/2016,Environment & Housing,Leeds Building Services,Supplies and Services,Operational Materials,205,19-Dec-2016,1612-00107,0.00,58.92,R,A J H  Pump Supply & Repair Ltd,No
Http://opendatacommunities.org/id/metropolitan-district-council/leeds,Leeds City Council,31/12/2016,Environment & Housing,Leeds Building Services,Supplies and Services,Operational Materials,205,19-Dec-2016,1612-00108,0.00,305.00,R,A J H  Pump Supply & Repair Ltd,No
Http://opendatacommunities.org/id/metropolitan-district-council/leeds,Leeds City Council,31/12/2016,Environment & Housing,Leeds Building Services,Supplies and Services,Operational Materials,205,19-Dec-2016,1612-00109,0.00,833.00,R,A J H  Pump Supply & Repair Ltd,No
Http://opendatacommunities.org/id/metropolitan-district-council/leeds,Leeds City Council,31/12/2016,Environment & Housing,Leeds Building Services,Supplies and Services,Operational Materials,205,19-Dec-2016,1612-00110,0.00,425.00,R,A J H  Pump Supply & Repair Ltd,No
Http://opendatacommunities.org/id/metropolitan-district-council/leeds,Leeds City Council,31/12/2016,Environment & Housing,Leeds Building Services,Supplies and Services,Operational Materials,205,19-Dec-2016,1612-00111,0.00,37.45,R,A J H  Pump Supply & Repair Ltd,No
Http://opendatacommunities.org/id/metropolitan-district-council/leeds,Leeds City Council,31/12/2016,Environment & Housing,Leeds Building Services,Supplies and Services,Operational Materials,205,19-Dec-2016,1612-00112,0.00,21.88,R,A J H  Pump Supply & Repair Ltd,No
Http://opendatacommunities.org/id/metropolitan-district-council/leeds,Leeds City Council,31/12/2016,Environment & Housing,Leeds Building Services,Supplies and Services,Operational Materials,205,19-Dec-2016,1612-00113,0.00,406.05,R,A J H  Pump Supply & Repair Ltd,No
Http://opendatacommunities.org/id/metropolitan-district-council/leeds,Leeds City Council,31/12/2016,Environment & Housing,Leeds Building Services,Supplies and Services,Operational Materials,205,19-Dec-2016,1612-00114,0.00,383.95,R,A J H  Pump Supply & Repair Ltd,No
Http://opendatacommunities.org/id/metropolitan-district-council/leeds,Leeds City Council,31/12/2016,Environment & Housing,Leeds Building Services,Supplies and Services,Operational Materials,205,19-Dec-2016,1612-00115,0.00,229.00,R,A J H  Pump Supply & Repair Ltd,No
Http://opendatacommunities.org/id/metropolitan-district-council/leeds,Leeds City Council,31/12/2016,Environment & Housing,Leeds Building Services,Supplies and Services,Operational Materials,205,19-Dec-2016,1612-00116,0.00,323.92,R,A J H  Pump Supply & Repair Ltd,No
Http://opendatacommunities.org/id/metropolitan-district-council/leeds,Leeds City Council,31/12/2016,Environment & Housing,Leeds Building Services,Supplies and Services,Operational Materials,205,19-Dec-2016,1612-00117,0.00,85.20,R,A J H  Pump Supply & Repair Ltd,No
Http://opendatacommunities.org/id/metropolitan-district-council/leeds,Leeds City Council,31/12/2016,Environment & Housing,Leeds Building Services,Supplies and Services,Operational Materials,205,19-Dec-2016,1612-00118,0.00,35.00,R,A J H  Pump Supply & Repair Ltd,No
Http://opendatacommunities.org/id/metropolitan-district-council/leeds,Leeds City Council,31/12/2016,Environment & Housing,Leeds Building Services,Supplies and Services,Operational Materials,205,19-Dec-2016,1612-00119,0.00,92.22,R,A J H  Pump Supply & Repair Ltd,No
Http://opendatacommunities.org/id/metropolitan-district-council/leeds,Leeds City Council,31/12/2016,Environment & Housing,Leeds Building Services,Supplies and Services,Operational Materials,205,19-Dec-2016,1612-00120,0.00,48.85,R,A J H  Pump Supply & Repair Ltd,No
Http://opendatacommunities.org/id/metropolitan-district-council/leeds,Leeds City Council,31/12/2016,Environment & Housing,Leeds Building Services,Supplies and Services,Operational Materials,205,19-Dec-2016,1612-00121,0.00,9.69,R,A J H  Pump Supply & Repair Ltd,No
Http://opendatacommunities.org/id/metropolitan-district-council/leeds,Leeds City Council,31/12/2016,Environment & Housing,Leeds Building Services,Supplies and Services,Operational Materials,205,19-Dec-2016,1612-00122,0.00,129.50,R,A J H  Pump Supply & Repair Ltd,No
Http://opendatacommunities.org/id/metropolitan-district-council/leeds,Leeds City Council,31/12/2016,Environment & Housing,Leeds Building Services,Supplies and Services,Operational Materials,205,19-Dec-2016,1612-00123,0.00,45.50,R,A J H  Pump Supply & Repair Ltd,No
Http://opendatacommunities.org/id/metropolitan-district-council/leeds,Leeds City Council,31/12/2016,Environment & Housing,Leeds Building Services,Supplies and Services,Operational Materials,205,19-Dec-2016,1612-00124,0.00,154.90,R,A J H  Pump Supply & Repair Ltd,No
Http://opendatacommunities.org/id/metropolitan-district-council/leeds,Leeds City Council,31/12/2016,Environment & Housing,Leeds Building Services,Supplies and Services,Operational Materials,205,19-Dec-2016,1612-00125,0.00,125.00,R,A J H  Pump Supply & Repair Ltd,No
Http://opendatacommunities.org/id/metropolitan-district-council/leeds,Leeds City Council,31/12/2016,Environment & Housing,Leeds Building Services,Supplies and Services,Other Hired And Contracted Services,265,23-Dec-2016,1612-00126,0.00,357.00,R,A J H  Pump Supply & Repair Ltd,No
Http://opendatacommunities.org/id/metropolitan-district-council/leeds,Leeds City Council,31/12/2016,City Development,Libraries  Arts & Heritage,Supplies and Services,Art Galleries Total Stores,003,23-Dec-2016,1612-00127,0.00,1100.69,R,A J Promotions,No
Http://opendatacommunities.org/id/metropolitan-district-council/leeds,Leeds City Council,31/12/2016,City Development,Economic Development,Capital,Furniture And Equipment,5,02-Dec-2016,1612-00128,0.00,1998.00,C,A J Wells & Sons,No
Http://opendatacommunities.org/id/metropolitan-district-council/leeds,Leeds City Council,31/12/2016,Citizens and Communities,Elections  Licensing and Registration,Income,Admissions  Booking Fees & Ticket Sales,933,15-Dec-2016,1612-00129,0.00,70.00,R,REDACTED PERSONAL DATA,No
Http://opendatacommunities.org/id/metropolitan-district-council/leeds,Leeds City Council,31/12/2016,Childrens Services,Learning Skills & Universal,Third Party Payments,Services Rendered By Voluntary Sector,505,13-Dec-2016,1612-00130,0.00,900.00,R,A Little Something Extra Ltd,No
Http://opendatacommunities.org/id/metropolitan-district-council/leeds,Leeds City Council,31/12/2016,Childrens Services,Learning Skills & Universal,Third Party Payments,Services Rendered By Voluntary Sector,505,13-Dec-2016,1612-00131,0.00,900.00,R,A Little Something Extra Ltd,No
Http://opendatacommunities.org/id/metropolitan-district-council/leeds,Leeds City Council,31/12/2016,Childrens Services,Learning Skills & Universal,Third Party Payments,Services Rendered By Voluntary Sector,505,13-Dec-2016,1612-00132,0.00,742.50,R,A Little Something Extra Ltd,No
Http://opendatacommunities.org/id/metropolitan-district-council/leeds,Leeds City Council,31/12/2016,Childrens Services,Learning Skills & Universal,Third Party Payments,Services Rendered By Voluntary Sector,505,13-Dec-2016,1612-00133,0.00,600.00,R,A Little Something Extra Ltd,No
Http://opendatacommunities.org/id/metropolitan-district-council/leeds,Leeds City Council,31/12/2016,Childrens Services,Learning Skills & Universal,Third Party Payments,Services Rendered By Voluntary Sector,505,13-Dec-2016,1612-00134,0.00,360.00,R,A Little Something Extra Ltd,No
Http://opendatacommunities.org/id/metropolitan-district-council/leeds,Leeds City Council,31/12/2016,Childrens Services,Learning Skills & Universal,Third Party Payments,Services Rendered By Voluntary Sector,505,13-Dec-2016,1612-00135,0.00,360.00,R,A Little Something Extra Ltd,No
Http://opendatacommunities.org/id/metropolitan-district-council/leeds,Leeds City Council,31/12/2016,Childrens Services,Learning Skills & Universal,Third Party Payments,Services Rendered By Other Organisations,511,02-Dec-2016,1612-00136,0.00,397.70,R,A Longbottom,No
Http://opendatacommunities.org/id/metropolitan-district-council/leeds,Leeds City Council,31/12/2016,Citizens and Communities,Customer Access,Supplies and Services,Other Hired And Contracted Services,265,09-Dec-2016,1612-00137,0.00,300.00,R,A M  Whalley,No
Http://opendatacommunities.org/id/metropolitan-district-council/leeds,Leeds City Council,31/12/2016,Childrens Services,Safeguarding Targeted & Specialist,Third Party Payments,Section 17,551,12-Dec-2016,1612-00138,0.00,250.00,R,REDACTED PERSONAL DATA,No
Http://opendatacommunities.org/id/metropolitan-district-council/leeds,Leeds City Council,31/12/2016,Citizens and Communities,Customer Access,Supplies and Services,Other Hired And Contracted Services,265,08-Dec-2016,1612-00139,0.00,113.00,R,A Mohammed,No
Http://opendatacommunities.org/id/metropolitan-district-council/leeds,Leeds City Council,31/12/2016,Citizens and Communities,Customer Access,Supplies and Services,Other Hired And Contracted Services,265,08-Dec-2016,1612-00140,0.00,919.10,R,A Mohammed,No
Http://opendatacommunities.org/id/metropolitan-district-council/leeds,Leeds City Council,31/12/2016,Citizens and Communities,Customer Access,Supplies and Services,Other Hired And Contracted Services,265,28-Dec-2016,1612-00141,0.00,768.75,R,A Mohammed,No
Http://opendatacommunities.org/id/metropolitan-district-council/leeds,Leeds City Council,31/12/2016,Citizens and Communities,Customer Access,Supplies and Services,Other Hired And Contracted Services,265,08-Dec-2016,1612-00142,0.00,222.25,R,A Musalam,No
Http://opendatacommunities.org/id/metropolitan-district-council/leeds,Leeds City Council,31/12/2016,Citizens and Communities,Customer Access,Supplies and Services,Other Hired And Contracted Services,265,08-Dec-2016,1612-00143,0.00,629.25,R,A Namaki,No
Http://opendatacommunities.org/id/metropolitan-district-council/leeds,Leeds City Council,31/12/2016,Citizens and Communities,Customer Access,Supplies and Services,Other Hired And Contracted Services,265,28-Dec-2016,1612-00144,0.00,220.75,R,A Namaki,No
Http://opendatacommunities.org/id/metropolitan-district-council/leeds,Leeds City Council,31/12/2016,Environment & Housing,Parks and Countryside,Supplies and Services,Operational Materials,205,16-Dec-2016,1612-00145,0.00,225.00,R,A Newton,No
Http://opendatacommunities.org/id/metropolitan-district-council/leeds,Leeds City Council,31/12/2016,Public Health,Public Health,Third Party Payments,Public Health Commissioned Services,526,02-Dec-2016,1612-00146,0.00,3333.15,R,A P Health,No
Http://opendatacommunities.org/id/metropolitan-district-council/leeds,Leeds City Council,31/12/2016,Citizens and Communities,Customer Access,Supplies and Services,Books & Audio-Visual Materials,206,02-Dec-2016,1612-00147,0.00,150.26,R,A S Jhagra,No
Http://opendatacommunities.org/id/metropolitan-district-council/leeds,Leeds City Council,31/12/2016,Citizens and Communities,Customer Access,Supplies and Services,Books & Audio-Visual Materials,206,12-Dec-2016,1612-00148,0.00,156.77,R,A S Jhagra,No
Http://opendatacommunities.org/id/metropolitan-district-council/leeds,Leeds City Council,31/12/2016,Environment & Housing,Housing Leeds Service,Capital,Other Costs,7,22-Dec-2016,1612-00149,0.00,350.00,C,REDACTED PERSONAL DATA,No
Http://opendatacommunities.org/id/metropolitan-district-council/leeds,Leeds City Council,31/12/2016,Civic Enterprise Leeds,Business Support Centre,Supplies and Services,Other Hired And Contracted Services,265,21-Dec-2016,1612-00150,0.00,46.25,R,A Star Couriers Ltd,No
Http://opendatacommunities.org/id/metropolitan-district-council/leeds,Leeds City Council,31/12/2016,Civic Enterprise Leeds,Business Support Centre,Supplies and Services,Other Hired And Contracted Services,265,23-Dec-2016,1612-00151,0.00,46.25,R,A Star Couriers Ltd,No
Http://opendatacommunities.org/id/metropolitan-district-council/leeds,Leeds City Council,31/12/2016,Central & Corporate,Human Resources,Employees,Occupational Health,85,30-Dec-2016,1612-00152,0.00,50.00,R,A V Lee & Partners,No
Http://opendatacommunities.org/id/metropolitan-district-council/leeds,Leeds City Council,31/12/2016,Childrens Services,Learning Skills & Universal,Third Party Payments,Services Rendered By Other Organisations,511,09-Dec-2016,1612-00153,0.00,191.52,R,A Walding,No
Http://opendatacommunities.org/id/metropolitan-district-council/leeds,Leeds City Council,31/12/2016,Childrens Services,Safeguarding Targeted & Specialist,Third Party Payments,Allowances,546,22-Dec-2016,1612-00154,0.00,500.00,R,REDACTED PERSONAL DATA,No
Http://opendatacommunities.org/id/metropolitan-district-council/leeds,Leeds City Council,31/12/2016,Environment & Housing,Waste Management,Capital,Furniture And Equipment,5,02-Dec-2016,1612-00155,0.00,14304.00,C,A&C Weber Uk Ltd,No
Http://opendatacommunities.org/id/metropolitan-district-council/leeds,Leeds City Council,31/12/2016,Environment & Housing,Waste Management,Capital,Furniture And Equipment,5,02-Dec-2016,1612-00156,0.00,1590.00,C,A&C Weber Uk Ltd,No
Http://opendatacommunities.org/id/metropolitan-district-council/leeds,Leeds City Council,31/12/2016,Environment & Housing,Waste Management,Capital,Furniture And Equipment,5,02-Dec-2016,1612-00157,0.00,-3771.00,C,A&C Weber Uk Ltd,No
Http://opendatacommunities.org/id/metropolitan-district-council/leeds,Leeds City Council,31/12/2016,Environment & Housing,Waste Management,Capital,Furniture And Equipment,5,19-Dec-2016,1612-00158,0.00,12028.50,C,A&C Weber Uk Ltd,No
Http://opendatacommunities.org/id/metropolitan-district-council/leeds,Leeds City Council,31/12/2016,Environment & Housing,Waste Management,Capital,Furniture And Equipment,5,19-Dec-2016,1612-00159,0.00,-1017.60,C,A&C Weber Uk Ltd,No
Http://opendatacommunities.org/id/metropolitan-district-council/leeds,Leeds City Council,31/12/2016,Childrens Services,Safeguarding Targeted & Specialist  ,Transfer Payments,Leaving Care Allowances,634,08-Nov-2016,1612-00160,0.00,-41.00,R,Aa Driving School,Yes
Http://opendatacommunities.org/id/metropolitan-district-council/leeds,Leeds City Council,31/12/2016,Childrens Services,Safeguarding Targeted & Specialist  ,Transfer Payments,Leaving Care Allowances,634,08-Nov-2016,1612-00161,0.00,-20.50,R,Aa Driving School,Yes
Http://opendatacommunities.org/id/metropolitan-district-council/leeds,Leeds City Council,31/12/2016,Childrens Services,Safeguarding Targeted & Specialist  ,Transfer Payments,Leaving Care Allowances,634,08-Nov-2016,1612-00162,0.00,-205.00,R,Aa Driving School,Yes
Http://opendatacommunities.org/id/metropolitan-district-council/leeds,Leeds City Council,31/12/2016,Public Health,Public Health,Third Party Payments,Public Health Commissioned Services,526,02-Dec-2016,1612-00163,0.00,285.00,R,Aaa Healthcare Ltd,
Http://opendatacommunities.org/id/metropolitan-district-council/leeds,Leeds City Council,31/12/2016,Public Health,Public Health,Third Party Payments,Public Health Commissioned Services,526,06-Dec-2016,1612-00164,0.00,113.06,R,Aaa Healthcare Ltd,
Http://opendatacommunities.org/id/metropolitan-district-council/leeds,Leeds City Council,31/12/2016,Childrens Services,Learning Skills & Universal  ,Supplies and Services,Operational Furniture And Equipment,203,09-Nov-2016,1612-00165,0.00,503.33,R,Aaa Inflatables Ltd,Yes
Http://opendatacommunities.org/id/metropolitan-district-council/leeds,Leeds City Council,31/12/2016,Childrens Services,Learning Skills & Universal  ,Supplies and Services,Operational Furniture And Equipment,203,09-Nov-2016,1612-00166,0.00,541.67,R,Aaa Inflatables Ltd,Yes
Http://opendatacommunities.org/id/metropolitan-district-council/leeds,Leeds City Council,31/12/2016,Childrens Services,Learning Skills & Universal  ,Supplies and Services,Operational Furniture And Equipment,203,09-Nov-2016,1612-00167,0.00,729.17,R,Aaa Inflatables Ltd,Yes
Http://opendatacommunities.org/id/metropolitan-district-council/leeds,Leeds City Council as Accountable Body,31/12/2016,Social Services Pooled Budgets,Leeds Community Equip Store Pooled Budgt,Supplies and Services,Other Equipment,203,23-Dec-2016,1612-00168,0.00,2455.32,R,Aal Ltd,
Http://opendatacommunities.org/id/metropolitan-district-council/leeds,Leeds City Council as Accountable Body,31/12/2016,Social Services Pooled Budgets,Leeds Community Equip Store Pooled Budgt,Supplies and Services,Other Equipment,203,14-Dec-2016,1612-00169,0.00,385.00,R,Aat (Gb) Ltd,
Http://opendatacommunities.org/id/metropolitan-district-council/leeds,Leeds City Council as Accountable Body,31/12/2016,Social Services Pooled Budgets,Leeds Community Equip Store Pooled Budgt,Supplies and Services,Other Equipment,203,14-Dec-2016,1612-00170,0.00,720.00,R,Aat (Gb) Ltd,
Http://opendatacommunities.org/id/metropolitan-district-council/leeds,Leeds City Council,31/12/2016,Central & Corporate,Finance,Transport,Public Transport Expenses,310,12-Dec-2016,1612-00171,0.00,102.00,R,Ab Cars (Garforth) Ltd,
Http://opendatacommunities.org/id/metropolitan-district-council/leeds,Leeds City Council,31/12/2016,Environment & Housing,Community Safety,Supplies and Services,Printing,215,15-Dec-2016,1612-00172,0.00,1130.00,R,Ab Print Group,
Http://opendatacommunities.org/id/metropolitan-district-council/leeds,Leeds City Council,31/12/2016,Environment & Housing,Streetscene Environmental Services  ,Supplies and Services,Postages,212,17-Nov-2016,1612-00173,0.00,13.50,R,Abacus Express,Yes
Http://opendatacommunities.org/id/metropolitan-district-council/leeds,Leeds City Council,31/12/2016,Childrens Services,Safeguarding Targeted & Specialist,Support Services,Legal Disbursements,411,08-Dec-2016,1612-00174,0.00,15.59,R,Abacus Express Limited,
Http://opendatacommunities.org/id/metropolitan-district-council/leeds,Leeds City Council,31/12/2016,Childrens Services,Safeguarding Targeted & Specialist,Support Services,Legal Disbursements,411,08-Dec-2016,1612-00175,0.00,26.77,R,Abacus Express Limited,
Http://opendatacommunities.org/id/metropolitan-district-council/leeds,Leeds City Council,31/12/2016,Childrens Services,Safeguarding Targeted & Specialist,Support Services,Legal Disbursements,411,08-Dec-2016,1612-00176,0.00,26.77,R,Abacus Express Limited,
Http://opendatacommunities.org/id/metropolitan-district-council/leeds,Leeds City Council,31/12/2016,Childrens Services,Safeguarding Targeted & Specialist,Support Services,Legal Disbursements,411,08-Dec-2016,1612-00177,0.00,31.02,R,Abacus Express Limited,
Http://opendatacommunities.org/id/metropolitan-district-council/leeds,Leeds City Council,31/12/2016,Childrens Services,Safeguarding Targeted & Specialist,Support Services,Legal Disbursements,411,08-Dec-2016,1612-00178,0.00,31.02,R,Abacus Express Limited,
Http://opendatacommunities.org/id/metropolitan-district-council/leeds,Leeds City Council,31/12/2016,Childrens Services,Safeguarding Targeted & Specialist,Support Services,Legal Disbursements,411,08-Dec-2016,1612-00179,0.00,75.00,R,Abacus Express Limited,
Http://opendatacommunities.org/id/metropolitan-district-council/leeds,Leeds City Council,31/12/2016,Childrens Services,Safeguarding Targeted & Specialist,Support Services,Legal Disbursements,411,08-Dec-2016,1612-00180,0.00,15.59,R,Abacus Express Limited,
Http://opendatacommunities.org/id/metropolitan-district-council/leeds,Leeds City Council,31/12/2016,City Development,Highways,Supplies and Services,Postages,212,09-Dec-2016,1612-00181,0.00,15.59,R,Abacus Express Limited,
Http://opendatacommunities.org/id/metropolitan-district-council/leeds,Leeds City Council,31/12/2016,Childrens Services,Safeguarding Targeted & Specialist,Support Services,Legal Disbursements,411,14-Dec-2016,1612-00182,0.00,15.59,R,Abacus Express Limited,
Http://opendatacommunities.org/id/metropolitan-district-council/leeds,Leeds City Council,31/12/2016,Childrens Services,Safeguarding Targeted & Specialist,Support Services,Legal Disbursements,411,14-Dec-2016,1612-00183,0.00,15.59,R,Abacus Express Limited,
Http://opendatacommunities.org/id/metropolitan-district-council/leeds,Leeds City Council,31/12/2016,Childrens Services,Safeguarding Targeted & Specialist,Support Services,Legal Disbursements,411,23-Dec-2016,1612-00184,0.00,31.02,R,Abacus Express Limited,
Http://opendatacommunities.org/id/metropolitan-district-council/leeds,Leeds City Council,31/12/2016,Central & Corporate,Legal Services,Capital,Genl Legal - Miscellaneous,733,23-Dec-2016,1612-00185,0.00,35.28,R,Abacus Express Limited,
Http://opendatacommunities.org/id/metropolitan-district-council/leeds,Leeds City Council,31/12/2016,Childrens Services,Safeguarding Targeted & Specialist,Support Services,Legal Disbursements,411,23-Dec-2016,1612-00186,0.00,31.02,R,Abacus Express Limited,
Http://opendatacommunities.org/id/metropolitan-district-council/leeds,Leeds City Council,31/12/2016,Childrens Services,Safeguarding Targeted & Specialist,Support Services,Legal Disbursements,411,23-Dec-2016,1612-00187,0.00,26.77,R,Abacus Express Limited,
Http://opendatacommunities.org/id/metropolitan-district-council/leeds,Leeds City Council,31/12/2016,City Development,Highways,Supplies and Services,Postages,212,23-Dec-2016,1612-00188,0.00,15.59,R,Abacus Express Limited,
Http://opendatacommunities.org/id/metropolitan-district-council/leeds,Leeds City Council,31/12/2016,Childrens Services,Safeguarding Targeted & Specialist,Support Services,Legal Disbursements,411,29-Dec-2016,1612-00189,0.00,15.59,R,Abacus Express Limited,
Http://opendatacommunities.org/id/metropolitan-district-council/leeds,Leeds City Council,31/12/2016,Childrens Services,Safeguarding Targeted & Specialist,Support Services,Legal Disbursements,411,29-Dec-2016,1612-00190,0.00,23.65,R,Abacus Express Limited,
Http://opendatacommunities.org/id/metropolitan-district-council/leeds,Leeds City Council,31/12/2016,Adult Social Care,Services For Older People - 65 And Over,Third Party Payments,Nursing Care Dementia,574,14-Dec-2016,1612-00191,0.00,1556.00,R,Abbendon Nursing Home,
Http://opendatacommunities.org/id/metropolitan-district-council/leeds,Leeds City Council,31/12/2016,City Development,Libraries  Arts & Heritage  ,Supplies and Services,Food & Drink,231,02-Nov-2016,1612-00192,0.00,5.06,R,Abbey House Museum Caf,Yes
Http://opendatacommunities.org/id/metropolitan-district-council/leeds,Leeds City Council,31/12/2016,City Development,Libraries  Arts & Heritage  ,Supplies and Services,Food & Drink,231,22-Nov-2016,1612-00193,0.00,27.37,R,Abbey House Museum Caf,Yes
Http://opendatacommunities.org/id/metropolitan-district-council/leeds,Leeds City Council,31/12/2016,Environment & Housing,Environmental Action (South),Supplies and Services,Bought In Professional Services,277,23-Dec-2016,1612-00194,0.00,47.30,R,Abbey House Veterinary Hospital,
Http://opendatacommunities.org/id/metropolitan-district-council/leeds,Leeds City Council,31/12/2016,Adult Social Care,Services For Older People - 65 And Over,Third Party Payments,Home Care,568,08-Dec-2016,1612-00195,0.00,1485.00,R,Abbeyfield The Dales Limited,
Http://opendatacommunities.org/id/metropolitan-district-council/leeds,Leeds City Council,31/12/2016,Adult Social Care,Services For Older People - 65 And Over,Third Party Payments,Home Care,568,30-Dec-2016,1612-00196,0.00,1117.88,R,Abbeyfield The Dales Limited,
Http://opendatacommunities.org/id/metropolitan-district-council/leeds,Leeds City Council,31/12/2016,Childrens Services,Learning Skills & Universal,Third Party Payments,Services Rendered By Other Organisations,511,02-Dec-2016,1612-00197,0.00,2822.70,R,Abc Daycare And Ozone Out Of School,
Http://opendatacommunities.org/id/metropolitan-district-council/leeds,Leeds City Council,31/12/2016,Childrens Services,Learning Skills & Universal,Third Party Payments,Services Rendered By Other Organisations,511,09-Dec-2016,1612-00198,0.00,1710.00,R,Abc Daycare And Ozone Out Of School,
Http://opendatacommunities.org/id/metropolitan-district-council/leeds,Leeds City Council,31/12/2016,Childrens Services,Learning Skills & Universal,Third Party Payments,Services Rendered By Other Organisations,511,02-Dec-2016,1612-00199,0.00,6111.00,R,Abc Nursery At Lufc,
Http://opendatacommunities.org/id/metropolitan-district-council/leeds,Leeds City Council,31/12/2016,Childrens Services,Learning Skills & Universal,Third Party Payments,Services Rendered By Other Organisations,511,09-Dec-2016,1612-00200,0.00,333.90,R,Abc Nursery At Lufc,
Http://opendatacommunities.org/id/metropolitan-district-council/leeds,Leeds City Council,31/12/2016,Childrens Services,Learning Skills & Universal,Third Party Payments,Services Rendered By Other Organisations,511,09-Dec-2016,1612-00201,0.00,1276.80,R,Abc Nursery At Lufc,
Http://opendatacommunities.org/id/metropolitan-district-council/leeds,Leeds City Council,31/12/2016,Childrens Services,Learning Skills & Universal,Third Party Payments,Services Rendered By Other Organisations,511,09-Dec-2016,1612-00202,0.00,155.80,R,Abc@D'S Childcare Services,
Http://opendatacommunities.org/id/metropolitan-district-council/leeds,Leeds City Council,31/12/2016,Citizens and Communities,Customer Access,Supplies and Services,Other Hired And Contracted Services,265,28-Dec-2016,1612-00203,0.00,24.00,R,Abdul Wadood Kazizadha,
Http://opendatacommunities.org/id/metropolitan-district-council/leeds,Leeds City Council,31/12/2016,Adult Social Care,Services For Older People - 65 And Over,Third Party Payments,Nursing Home,570,14-Dec-2016,1612-00204,0.00,31585.81,R,Aberford Hall,
Http://opendatacommunities.org/id/metropolitan-district-council/leeds,Leeds City Council,31/12/2016,Adult Social Care,Services For Older People - 65 And Over,Third Party Payments,Nursing Care Dementia,574,14-Dec-2016,1612-00205,0.00,1501.20,R,Aberford Hall,
Http://opendatacommunities.org/id/metropolitan-district-council/leeds,Leeds City Council,31/12/2016,Adult Social Care,Services For Older People - 65 And Over,Third Party Payments,Residential,580,14-Dec-2016,1612-00206,0.00,6231.10,R,Aberford Hall,
Http://opendatacommunities.org/id/metropolitan-district-council/leeds,Leeds City Council,31/12/2016,Environment & Housing,Leeds Building Services,Supplies and Services,Operational Materials,205,06-Dec-2016,1612-00207,0.00,12.00,R,Abi Garage Doors Ltd,
Http://opendatacommunities.org/id/metropolitan-district-council/leeds,Leeds City Council,31/12/2016,Environment & Housing,Leeds Building Services,Supplies and Services,Operational Materials,205,06-Dec-2016,1612-00208,0.00,8.00,R,Abi Garage Doors Ltd,
Http://opendatacommunities.org/id/metropolitan-district-council/leeds,Leeds City Council,31/12/2016,Environment & Housing,Leeds Building Services,Supplies and Services,Operational Materials,205,07-Dec-2016,1612-00209,0.00,12.80,R,Abi Garage Doors Ltd,
Http://opendatacommunities.org/id/metropolitan-district-council/leeds,Leeds City Council,31/12/2016,Environment & Housing,Leeds Building Services,Supplies and Services,Operational Materials,205,07-Dec-2016,1612-00210,0.00,40.00,R,Abi Garage Doors Ltd,
Http://opendatacommunities.org/id/metropolitan-district-council/leeds,Leeds City Council,31/12/2016,Environment & Housing,Leeds Building Services,Supplies and Services,Stores - Central And Other Depots,005,09-Dec-2016,1612-00211,0.00,60.00,R,Abi Garage Doors Ltd,
Http://opendatacommunities.org/id/metropolitan-district-council/leeds,Leeds City Council,31/12/2016,Environment & Housing,Leeds Building Services,Supplies and Services,Operational Materials,205,09-Dec-2016,1612-00212,0.00,40.00,R,Abi Garage Doors Ltd,
Http://opendatacommunities.org/id/metropolitan-district-council/leeds,Leeds City Council,31/12/2016,Environment & Housing,Leeds Building Services,Supplies and Services,Stores - Central And Other Depots,005,13-Dec-2016,1612-00213,0.00,123.00,R,Abi Garage Doors Ltd,
Http://opendatacommunities.org/id/metropolitan-district-council/leeds,Leeds City Council,31/12/2016,Environment & Housing,Leeds Building Services,Supplies and Services,Operational Materials,205,19-Dec-2016,1612-00214,0.00,225.00,R,Abi Garage Doors Ltd,
Http://opendatacommunities.org/id/metropolitan-district-council/leeds,Leeds City Council,31/12/2016,Environment & Housing,Leeds Building Services,Supplies and Services,Operational Materials,205,22-Dec-2016,1612-00215,0.00,12.00,R,Abi Garage Doors Ltd,
Http://opendatacommunities.org/id/metropolitan-district-council/leeds,Leeds City Council,31/12/2016,Citizens and Communities,Elections  Licensing and Registration,Income,Admissions  Booking Fees & Ticket Sales,933,22-Dec-2016,1612-00216,0.00,60.00,R,REDACTED PERSONAL DATA,
Http://opendatacommunities.org/id/metropolitan-district-council/leeds,Leeds City Council,31/12/2016,Adult Social Care,Services For Older People Under 65 P/Dis,Third Party Payments,Residential,580,02-Dec-2016,1612-00217,0.00,3304.20,R,Able Community Care Ltd,
Http://opendatacommunities.org/id/metropolitan-district-council/leeds,Leeds City Council,31/12/2016,Adult Social Care,Services For Older People Under 65 P/Dis,Third Party Payments,Residential,580,23-Dec-2016,1612-00218,0.00,3414.34,R,Able Community Care Ltd,
Http://opendatacommunities.org/id/metropolitan-district-council/leeds,Leeds City Council,31/12/2016,Environment & Housing,Parks and Countryside,Supplies and Services,Operational Materials,205,16-Dec-2016,1612-00219,0.00,2143.00,R,Abram Pulman & Sons Limited,
Http://opendatacommunities.org/id/metropolitan-district-council/leeds,Leeds City Council,31/12/2016,Environment & Housing,Parks and Countryside,Supplies and Services,Operational Furniture And Equipment,203,28-Dec-2016,1612-00220,0.00,600.00,R,Abram Pulman & Sons Limited,
Http://opendatacommunities.org/id/metropolitan-district-council/leeds,Leeds City Council,31/12/2016,Childrens Services,Safeguarding Targeted & Specialist,Employees,Agency Staff,8,01-Dec-2016,1612-00221,0.00,758.42,R,Academic Appointments Ltd,
Http://opendatacommunities.org/id/metropolitan-district-council/leeds,Leeds City Council,31/12/2016,Childrens Services,Safeguarding Targeted & Specialist,Employees,Agency Staff,8,09-Dec-2016,1612-00222,0.00,1551.10,R,Academic Appointments Ltd,
Http://opendatacommunities.org/id/metropolitan-district-council/leeds,Leeds City Council,31/12/2016,Childrens Services,Safeguarding Targeted & Specialist,Employees,Agency Staff,8,15-Dec-2016,1612-00223,0.00,2031.10,R,Academic Appointments Ltd,
Http://opendatacommunities.org/id/metropolitan-district-council/leeds,Leeds City Council,31/12/2016,Childrens Services,Safeguarding Targeted & Specialist,Employees,Agency Staff,8,16-Dec-2016,1612-00224,0.00,456.10,R,Academic Appointments Ltd,
Http://opendatacommunities.org/id/metropolitan-district-council/leeds,Leeds City Council,31/12/2016,Childrens Services,Safeguarding Targeted & Specialist,Employees,Agency Staff,8,21-Dec-2016,1612-00225,0.00,-40.00,R,Academic Appointments Ltd,
Http://opendatacommunities.org/id/metropolitan-district-council/leeds,Leeds City Council,31/12/2016,Childrens Services,Safeguarding Targeted & Specialist,Employees,Agency Staff,8,21-Dec-2016,1612-00226,0.00,2031.10,R,Academic Appointments Ltd,
Http://opendatacommunities.org/id/metropolitan-district-council/leeds,Leeds City Council,31/12/2016,Childrens Services,Safeguarding Targeted & Specialist,Employees,Agency Staff,8,22-Dec-2016,1612-00227,0.00,1551.10,R,Academic Appointments Ltd,
Http://opendatacommunities.org/id/metropolitan-district-council/leeds,Leeds City Council,31/12/2016,Childrens Services,Safeguarding Targeted & Specialist,Employees,Agency Staff,8,22-Dec-2016,1612-00228,0.00,768.84,R,Academic Appointments Ltd,
Http://opendatacommunities.org/id/metropolitan-district-council/leeds,Leeds City Council,31/12/2016,Childrens Services,Safeguarding Targeted & Specialist,Employees,Agency Staff,8,28-Dec-2016,1612-00229,0.00,798.44,R,Academic Appointments Ltd,
Http://opendatacommunities.org/id/metropolitan-district-council/leeds,Leeds City Council,31/12/2016,Childrens Services,Safeguarding Targeted & Specialist,Employees,Agency Staff,8,30-Dec-2016,1612-00230,0.00,1647.00,R,Academic Appointments Ltd,
Http://opendatacommunities.org/id/metropolitan-district-council/leeds,Leeds City Council,31/12/2016,Environment & Housing,Community Safety,Transport,Hire Of Movable Plant & Machinery,315,30-Dec-2016,1612-00231,0.00,1307.14,R,Access Hire Nationwide Ltd,
Http://opendatacommunities.org/id/metropolitan-district-council/leeds,Leeds City Council,31/12/2016,Environment & Housing,Leeds Building Services,Supplies and Services,Other Hired And Contracted Services,265,20-Dec-2016,1612-00232,0.00,5804.17,R,Access Lift Consultants Ltd,
Http://opendatacommunities.org/id/metropolitan-district-council/leeds,Leeds City Council,31/12/2016,Strategic Landlord,Strategic,Supplies and Services,Office Furniture & Equipment,201,02-Dec-2016,1612-00233,0.00,84.50,R,Access Locksmiths (Leeds) Limited,
Http://opendatacommunities.org/id/metropolitan-district-council/leeds,Leeds City Council,31/12/2016,Environment & Housing,Leeds Building Services,Supplies and Services,Operational Materials,205,06-Dec-2016,1612-00234,0.00,336.00,R,Access Locksmiths (Leeds) Limited,
Http://opendatacommunities.org/id/metropolitan-district-council/leeds,Leeds City Council,31/12/2016,Environment & Housing,Leeds Building Services,Supplies and Services,Operational Materials,205,06-Dec-2016,1612-00235,0.00,30.87,R,Access Locksmiths (Leeds) Limited,
Http://opendatacommunities.org/id/metropolitan-district-council/leeds,Leeds City Council,31/12/2016,Environment & Housing,Leeds Building Services,Supplies and Services,Operational Materials,205,06-Dec-2016,1612-00236,0.00,40.70,R,Access Locksmiths (Leeds) Limited,
Http://opendatacommunities.org/id/metropolitan-district-council/leeds,Leeds City Council,31/12/2016,Environment & Housing,Leeds Building Services,Supplies and Services,Operational Materials,205,06-Dec-2016,1612-00237,0.00,57.96,R,Access Locksmiths (Leeds) Limited,
Http://opendatacommunities.org/id/metropolitan-district-council/leeds,Leeds City Council,31/12/2016,Environment & Housing,Leeds Building Services,Supplies and Services,Operational Materials,205,06-Dec-2016,1612-00238,0.00,15.12,R,Access Locksmiths (Leeds) Limited,
Http://opendatacommunities.org/id/metropolitan-district-council/leeds,Leeds City Council,31/12/2016,Environment & Housing,Leeds Building Services,Supplies and Services,Operational Materials,205,06-Dec-2016,1612-00239,0.00,38.13,R,Access Locksmiths (Leeds) Limited,
Http://opendatacommunities.org/id/metropolitan-district-council/leeds,Leeds City Council,31/12/2016,Environment & Housing,Leeds Building Services,Supplies and Services,Operational Materials,205,06-Dec-2016,1612-00240,0.00,28.49,R,Access Locksmiths (Leeds) Limited,
Http://opendatacommunities.org/id/metropolitan-district-council/leeds,Leeds City Council,31/12/2016,Environment & Housing,Leeds Building Services,Supplies and Services,Operational Materials,205,06-Dec-2016,1612-00241,0.00,46.50,R,Access Locksmiths (Leeds) Limited,
Http://opendatacommunities.org/id/metropolitan-district-council/leeds,Leeds City Council,31/12/2016,Environment & Housing,Leeds Building Services,Supplies and Services,Operational Materials,205,06-Dec-2016,1612-00242,0.00,56.82,R,Access Locksmiths (Leeds) Limited,
Http://opendatacommunities.org/id/metropolitan-district-council/leeds,Leeds City Council,31/12/2016,Environment & Housing,Leeds Building Services,Supplies and Services,Operational Materials,205,06-Dec-2016,1612-00243,0.00,2.50,R,Access Locksmiths (Leeds) Limited,
Http://opendatacommunities.org/id/metropolitan-district-council/leeds,Leeds City Council,31/12/2016,Environment & Housing,Leeds Building Services,Supplies and Services,Operational Materials,205,06-Dec-2016,1612-00244,0.00,79.78,R,Access Locksmiths (Leeds) Limited,
Http://opendatacommunities.org/id/metropolitan-district-council/leeds,Leeds City Council,31/12/2016,Environment & Housing,Leeds Building Services,Supplies and Services,Operational Materials,205,06-Dec-2016,1612-00245,0.00,22.93,R,Access Locksmiths (Leeds) Limited,
Http://opendatacommunities.org/id/metropolitan-district-council/leeds,Leeds City Council,31/12/2016,Environment & Housing,Leeds Building Services,Supplies and Services,Operational Materials,205,06-Dec-2016,1612-00246,0.00,28.97,R,Access Locksmiths (Leeds) Limited,
Http://opendatacommunities.org/id/metropolitan-district-council/leeds,Leeds City Council,31/12/2016,Environment & Housing,Leeds Building Services,Supplies and Services,Operational Materials,205,06-Dec-2016,1612-00247,0.00,9.90,R,Access Locksmiths (Leeds) Limited,
Http://opendatacommunities.org/id/metropolitan-district-council/leeds,Leeds City Council,31/12/2016,Environment & Housing,Leeds Building Services,Supplies and Services,Operational Materials,205,06-Dec-2016,1612-00248,0.00,16.38,R,Access Locksmiths (Leeds) Limited,
Http://opendatacommunities.org/id/metropolitan-district-council/leeds,Leeds City Council,31/12/2016,Environment & Housing,Leeds Building Services,Supplies and Services,Operational Materials,205,06-Dec-2016,1612-00249,0.00,8.84,R,Access Locksmiths (Leeds) Limited,
Http://opendatacommunities.org/id/metropolitan-district-council/leeds,Leeds City Council,31/12/2016,Environment & Housing,Leeds Building Services,Supplies and Services,Operational Materials,205,06-Dec-2016,1612-00250,0.00,16.91,R,Access Locksmiths (Leeds) Limited,
Http://opendatacommunities.org/id/metropolitan-district-council/leeds,Leeds City Council,31/12/2016,Environment & Housing,Leeds Building Services,Supplies and Services,Operational Materials,205,06-Dec-2016,1612-00251,0.00,17.92,R,Access Locksmiths (Leeds) Limited,
Http://opendatacommunities.org/id/metropolitan-district-council/leeds,Leeds City Council,31/12/2016,Environment & Housing,Leeds Building Services,Supplies and Services,Operational Materials,205,06-Dec-2016,1612-00252,0.00,59.06,R,Access Locksmiths (Leeds) Limited,
Http://opendatacommunities.org/id/metropolitan-district-council/leeds,Leeds City Council,31/12/2016,Environment & Housing,Leeds Building Services,Supplies and Services,Operational Materials,205,06-Dec-2016,1612-00253,0.00,62.36,R,Access Locksmiths (Leeds) Limited,
Http://opendatacommunities.org/id/metropolitan-district-council/leeds,Leeds City Council,31/12/2016,Environment & Housing,Leeds Building Services,Supplies and Services,Operational Materials,205,06-Dec-2016,1612-00254,0.00,67.75,R,Access Locksmiths (Leeds) Limited,
Http://opendatacommunities.org/id/metropolitan-district-council/leeds,Leeds City Council,31/12/2016,Environment & Housing,Leeds Building Services,Supplies and Services,Operational Materials,205,06-Dec-2016,1612-00255,0.00,56.52,R,Access Locksmiths (Leeds) Limited,
Http://opendatacommunities.org/id/metropolitan-district-council/leeds,Leeds City Council,31/12/2016,Environment & Housing,Leeds Building Services,Supplies and Services,Operational Materials,205,06-Dec-2016,1612-00256,0.00,23.31,R,Access Locksmiths (Leeds) Limited,
Http://opendatacommunities.org/id/metropolitan-district-council/leeds,Leeds City Council,31/12/2016,Environment & Housing,Leeds Building Services,Supplies and Services,Operational Materials,205,06-Dec-2016,1612-00257,0.00,13.50,R,Access Locksmiths (Leeds) Limited,
Http://opendatacommunities.org/id/metropolitan-district-council/leeds,Leeds City Council,31/12/2016,Environment & Housing,Leeds Building Services,Supplies and Services,Operational Materials,205,07-Dec-2016,1612-00258,0.00,34.61,R,Access Locksmiths (Leeds) Limited,
Http://opendatacommunities.org/id/metropolitan-district-council/leeds,Leeds City Council,31/12/2016,Environment & Housing,Leeds Building Services,Supplies and Services,Operational Materials,205,07-Dec-2016,1612-00259,0.00,50.73,R,Access Locksmiths (Leeds) Limited,
Http://opendatacommunities.org/id/metropolitan-district-council/leeds,Leeds City Council,31/12/2016,Environment & Housing,Leeds Building Services,Supplies and Services,Operational Materials,205,07-Dec-2016,1612-00260,0.00,30.93,R,Access Locksmiths (Leeds) Limited,
Http://opendatacommunities.org/id/metropolitan-district-council/leeds,Leeds City Council,31/12/2016,Environment & Housing,Leeds Building Services,Supplies and Services,Operational Materials,205,13-Dec-2016,1612-00261,0.00,65.03,R,Access Locksmiths (Leeds) Limited,
Http://opendatacommunities.org/id/metropolitan-district-council/leeds,Leeds City Council,31/12/2016,Strategic Landlord,Property and Contracts,Premises,General Maintenance,104,13-Dec-2016,1612-00262,0.00,30.00,R,Access Locksmiths (Leeds) Limited,
Http://opendatacommunities.org/id/metropolitan-district-council/leeds,Leeds City Council,31/12/2016,Environment & Housing,Waste Management,Supplies and Services,Operational Furniture And Equipment,203,16-Dec-2016,1612-00263,0.00,1000.00,R,Access Locksmiths (Leeds) Limited,
Http://opendatacommunities.org/id/metropolitan-district-council/leeds,Leeds City Council,31/12/2016,Strategic Landlord,Housing Management,Premises,General Maintenance,104,16-Dec-2016,1612-00264,0.00,114.00,R,Access Locksmiths (Leeds) Limited,
Http://opendatacommunities.org/id/metropolitan-district-council/leeds,Leeds City Council,31/12/2016,Strategic Landlord,Property and Contracts,Premises,General Maintenance,104,16-Dec-2016,1612-00265,0.00,20.50,R,Access Locksmiths (Leeds) Limited,
Http://opendatacommunities.org/id/metropolitan-district-council/leeds,Leeds City Council,31/12/2016,Strategic Landlord,Housing Management,Supplies and Services,Other Hired And Contracted Services,265,16-Dec-2016,1612-00266,0.00,15.00,R,Access Locksmiths (Leeds) Limited,
Http://opendatacommunities.org/id/metropolitan-district-council/leeds,Leeds City Council,31/12/2016,Environment & Housing,Leeds Building Services,Supplies and Services,Operational Materials,205,19-Dec-2016,1612-00267,0.00,41.96,R,Access Locksmiths (Leeds) Limited,
Http://opendatacommunities.org/id/metropolitan-district-council/leeds,Leeds City Council,31/12/2016,Environment & Housing,Leeds Building Services,Supplies and Services,Operational Materials,205,19-Dec-2016,1612-00268,0.00,46.13,R,Access Locksmiths (Leeds) Limited,
Http://opendatacommunities.org/id/metropolitan-district-council/leeds,Leeds City Council,31/12/2016,Environment & Housing,Leeds Building Services,Supplies and Services,Operational Materials,205,19-Dec-2016,1612-00269,0.00,32.86,R,Access Locksmiths (Leeds) Limited,
Http://opendatacommunities.org/id/metropolitan-district-council/leeds,Leeds City Council,31/12/2016,Environment & Housing,Leeds Building Services,Supplies and Services,Operational Materials,205,19-Dec-2016,1612-00270,0.00,6.62,R,Access Locksmiths (Leeds) Limited,
Http://opendatacommunities.org/id/metropolitan-district-council/leeds,Leeds City Council,31/12/2016,Environment & Housing,Leeds Building Services,Supplies and Services,Operational Materials,205,19-Dec-2016,1612-00271,0.00,7.96,R,Access Locksmiths (Leeds) Limited,
Http://opendatacommunities.org/id/metropolitan-district-council/leeds,Leeds City Council,31/12/2016,Environment & Housing,Leeds Building Services,Supplies and Services,Operational Materials,205,19-Dec-2016,1612-00272,0.00,12.08,R,Access Locksmiths (Leeds) Limited,
Http://opendatacommunities.org/id/metropolitan-district-council/leeds,Leeds City Council,31/12/2016,Environment & Housing,Leeds Building Services,Supplies and Services,Operational Materials,205,19-Dec-2016,1612-00273,0.00,18.77,R,Access Locksmiths (Leeds) Limited,
Http://opendatacommunities.org/id/metropolitan-district-council/leeds,Leeds City Council,31/12/2016,Environment & Housing,Leeds Building Services,Supplies and Services,Operational Materials,205,19-Dec-2016,1612-00274,0.00,22.57,R,Access Locksmiths (Leeds) Limited,
Http://opendatacommunities.org/id/metropolitan-district-council/leeds,Leeds City Council,31/12/2016,Environment & Housing,Leeds Building Services,Supplies and Services,Operational Materials,205,19-Dec-2016,1612-00275,0.00,30.44,R,Access Locksmiths (Leeds) Limited,
Http://opendatacommunities.org/id/metropolitan-district-council/leeds,Leeds City Council,31/12/2016,Environment & Housing,Leeds Building Services,Supplies and Services,Operational Materials,205,19-Dec-2016,1612-00276,0.00,83.94,R,Access Locksmiths (Leeds) Limited,
Http://opendatacommunities.org/id/metropolitan-district-council/leeds,Leeds City Council,31/12/2016,Environment & Housing,Leeds Building Services,Supplies and Services,Operational Materials,205,19-Dec-2016,1612-00277,0.00,36.50,R,Access Locksmiths (Leeds) Limited,
Http://opendatacommunities.org/id/metropolitan-district-council/leeds,Leeds City Council,31/12/2016,Strategic Landlord,Property and Contracts,Premises,General Maintenance,104,23-Dec-2016,1612-00278,0.00,93.59,R,Access Locksmiths (Leeds) Limited,
Http://opendatacommunities.org/id/metropolitan-district-council/leeds,Leeds City Council,31/12/2016,Strategic Landlord,Property and Contracts,Premises,General Maintenance,104,23-Dec-2016,1612-00279,0.00,155.10,R,Access Locksmiths (Leeds) Limited,
Http://opendatacommunities.org/id/metropolitan-district-council/leeds,Leeds City Council,31/12/2016,Strategic Landlord,Property and Contracts,Premises,General Maintenance,104,23-Dec-2016,1612-00280,0.00,160.00,R,Access Locksmiths (Leeds) Limited,
Http://opendatacommunities.org/id/metropolitan-district-council/leeds,Leeds City Council,31/12/2016,Childrens Services,Learning Skills & Universal,Supplies and Services,Bought In Professional Services,277,12-Dec-2016,1612-00281,0.00,350.00,R,Access Moving Image Ltd,
Http://opendatacommunities.org/id/metropolitan-district-council/leeds,Leeds City Council,31/12/2016,Environment & Housing,Leeds Building Services,Supplies and Services,Other Hired And Contracted Services,265,02-Dec-2016,1612-00282,0.00,85.00,R,Access Opening Systems Limited,
Http://opendatacommunities.org/id/metropolitan-district-council/leeds,Leeds City Council,31/12/2016,Environment & Housing,Leeds Building Services,Supplies and Services,Other Hired And Contracted Services,265,02-Dec-2016,1612-00283,0.00,85.00,R,Access Opening Systems Limited,
Http://opendatacommunities.org/id/metropolitan-district-council/leeds,Leeds City Council,31/12/2016,Environment & Housing,Leeds Building Services,Supplies and Services,Other Hired And Contracted Services,265,02-Dec-2016,1612-00284,0.00,85.00,R,Access Opening Systems Limited,
Http://opendatacommunities.org/id/metropolitan-district-council/leeds,Leeds City Council,31/12/2016,Environment & Housing,Leeds Building Services,Supplies and Services,Other Hired And Contracted Services,265,02-Dec-2016,1612-00285,0.00,85.00,R,Access Opening Systems Limited,
Http://opendatacommunities.org/id/metropolitan-district-council/leeds,Leeds City Council,31/12/2016,Environment & Housing,Leeds Building Services,Supplies and Services,Other Hired And Contracted Services,265,07-Dec-2016,1612-00286,0.00,85.00,R,Access Opening Systems Limited,
Http://opendatacommunities.org/id/metropolitan-district-council/leeds,Leeds City Council,31/12/2016,Environment & Housing,Leeds Building Services,Supplies and Services,Other Hired And Contracted Services,265,07-Dec-2016,1612-00287,0.00,85.00,R,Access Opening Systems Limited,
Http://opendatacommunities.org/id/metropolitan-district-council/leeds,Leeds City Council,31/12/2016,Environment & Housing,Leeds Building Services,Supplies and Services,Other Hired And Contracted Services,265,07-Dec-2016,1612-00288,0.00,85.00,R,Access Opening Systems Limited,
Http://opendatacommunities.org/id/metropolitan-district-council/leeds,Leeds City Council,31/12/2016,Environment & Housing,Leeds Building Services,Supplies and Services,Other Hired And Contracted Services,265,07-Dec-2016,1612-00289,0.00,342.57,R,Access Opening Systems Limited,
Http://opendatacommunities.org/id/metropolitan-district-council/leeds,Leeds City Council,31/12/2016,Environment & Housing,Leeds Building Services,Supplies and Services,Other Hired And Contracted Services,265,09-Dec-2016,1612-00290,0.00,1480.24,R,Access Opening Systems Limited,
Http://opendatacommunities.org/id/metropolitan-district-council/leeds,Leeds City Council,31/12/2016,Environment & Housing,Leeds Building Services,Supplies and Services,Other Hired And Contracted Services,265,09-Dec-2016,1612-00291,0.00,85.00,R,Access Opening Systems Limited,
Http://opendatacommunities.org/id/metropolitan-district-council/leeds,Leeds City Council,31/12/2016,Environment & Housing,Leeds Building Services,Supplies and Services,Other Hired And Contracted Services,265,09-Dec-2016,1612-00292,0.00,85.00,R,Access Opening Systems Limited,
Http://opendatacommunities.org/id/metropolitan-district-council/leeds,Leeds City Council,31/12/2016,Environment & Housing,Leeds Building Services,Supplies and Services,Other Hired And Contracted Services,265,09-Dec-2016,1612-00293,0.00,85.00,R,Access Opening Systems Limited,
Http://opendatacommunities.org/id/metropolitan-district-council/leeds,Leeds City Council,31/12/2016,Environment & Housing,Leeds Building Services,Supplies and Services,Other Hired And Contracted Services,265,13-Dec-2016,1612-00294,0.00,85.00,R,Access Opening Systems Limited,
Http://opendatacommunities.org/id/metropolitan-district-council/leeds,Leeds City Council,31/12/2016,Environment & Housing,Leeds Building Services,Supplies and Services,Other Hired And Contracted Services,265,13-Dec-2016,1612-00295,0.00,85.00,R,Access Opening Systems Limited,
Http://opendatacommunities.org/id/metropolitan-district-council/leeds,Leeds City Council,31/12/2016,Environment & Housing,Leeds Building Services,Supplies and Services,Other Hired And Contracted Services,265,16-Dec-2016,1612-00296,0.00,197.50,R,Access Opening Systems Limited,
Http://opendatacommunities.org/id/metropolitan-district-council/leeds,Leeds City Council,31/12/2016,Environment & Housing,Leeds Building Services,Supplies and Services,Other Hired And Contracted Services,265,16-Dec-2016,1612-00297,0.00,85.00,R,Access Opening Systems Limited,
Http://opendatacommunities.org/id/metropolitan-district-council/leeds,Leeds City Council,31/12/2016,Environment & Housing,Leeds Building Services,Supplies and Services,Other Hired And Contracted Services,265,16-Dec-2016,1612-00298,0.00,263.00,R,Access Opening Systems Limited,
Http://opendatacommunities.org/id/metropolitan-district-council/leeds,Leeds City Council,31/12/2016,Environment & Housing,Leeds Building Services,Supplies and Services,Other Hired And Contracted Services,265,23-Dec-2016,1612-00299,0.00,152.00,R,Access Opening Systems Limited,
Http://opendatacommunities.org/id/metropolitan-district-council/leeds,Leeds City Council,31/12/2016,Environment & Housing,Leeds Building Services,Supplies and Services,Other Hired And Contracted Services,265,23-Dec-2016,1612-00300,0.00,85.00,R,Access Opening Systems Limited,
Http://opendatacommunities.org/id/metropolitan-district-council/leeds,Leeds City Council,31/12/2016,Environment & Housing,Leeds Building Services,Supplies and Services,Other Hired And Contracted Services,265,23-Dec-2016,1612-00301,0.00,85.00,R,Access Opening Systems Limited,
Http://opendatacommunities.org/id/metropolitan-district-council/leeds,Leeds City Council,31/12/2016,Environment & Housing,Leeds Building Services,Supplies and Services,Other Hired And Contracted Services,265,23-Dec-2016,1612-00302,0.00,85.00,R,Access Opening Systems Limited,
Http://opendatacommunities.org/id/metropolitan-district-council/leeds,Leeds City Council,31/12/2016,Environment & Housing,Leeds Building Services,Supplies and Services,Other Hired And Contracted Services,265,23-Dec-2016,1612-00303,0.00,85.00,R,Access Opening Systems Limited,
Http://opendatacommunities.org/id/metropolitan-district-council/leeds,Leeds City Council,31/12/2016,Environment & Housing,Leeds Building Services,Supplies and Services,Other Hired And Contracted Services,265,30-Dec-2016,1612-00304,0.00,410.00,R,Access Opening Systems Limited,
Http://opendatacommunities.org/id/metropolitan-district-council/leeds,Leeds City Council,31/12/2016,Environment & Housing,Leeds Building Services,Supplies and Services,Other Hired And Contracted Services,265,30-Dec-2016,1612-00305,0.00,85.00,R,Access Opening Systems Limited,
Http://opendatacommunities.org/id/metropolitan-district-council/leeds,Leeds City Council,31/12/2016,Central & Corporate,Strategy And Improvement  ,Supplies and Services,Other Hired And Contracted Services,265,10-Nov-2016,1612-00306,0.00,181.98,R,Acco Uk,Yes
Http://opendatacommunities.org/id/metropolitan-district-council/leeds,Leeds City Council,31/12/2016,Insurance,Insurance,Supplies and Services,Insurance Claims,248,08-Dec-2016,1612-00307,0.00,1000.00,R,Accountant General Of The Senior Courts,
Http://opendatacommunities.org/id/metropolitan-district-council/leeds,Leeds City Council,31/12/2016,Insurance,Insurance,Supplies and Services,Insurance Claims,248,08-Dec-2016,1612-00308,0.00,8026.95,R,Accountant General Of The Senior Courts,
Http://opendatacommunities.org/id/metropolitan-district-council/leeds,Leeds City Council,31/12/2016,Insurance,Insurance,Supplies and Services,Insurance Claims,248,15-Dec-2016,1612-00309,0.00,2340.00,R,Accountant General Of The Senior Courts,
Http://opendatacommunities.org/id/metropolitan-district-council/leeds,Leeds City Council,31/12/2016,Insurance,Insurance,Supplies and Services,Insurance Claims,248,15-Dec-2016,1612-00310,0.00,1950.00,R,Accountant General Of The Senior Courts,
Http://opendatacommunities.org/id/metropolitan-district-council/leeds,Leeds City Council,31/12/2016,City Development,Recreation,Supplies and Services,Other Hired And Contracted Services,265,02-Dec-2016,1612-00311,0.00,135.00,R,Ace Container Services Limited,
Http://opendatacommunities.org/id/metropolitan-district-council/leeds,Leeds City Council,31/12/2016,City Development,Libraries  Arts & Heritage,Transport,Hire Of Movable Plant & Machinery,315,30-Dec-2016,1612-00312,0.00,46.50,R,Ace Container Services Limited,
Http://opendatacommunities.org/id/metropolitan-district-council/leeds,Leeds City Council,31/12/2016,Central & Corporate,Human Resources  ,Supplies and Services,Computer Software & Equipment,214,11-Nov-2016,1612-00313,0.00,309.88,R,Ace Innovation Ltd Ace,Yes
Http://opendatacommunities.org/id/metropolitan-district-council/leeds,Leeds City Council,31/12/2016,Environment & Housing,Waste Management,Supplies and Services,Publication And Promotion,267,22-Dec-2016,1612-00314,0.00,10307.67,R,Ace Leaflet Distribution & Print Ltd,
Http://opendatacommunities.org/id/metropolitan-district-council/leeds,Leeds City Council,31/12/2016,City Development,Asset Management Services,Employees,Training & Development,70,02-Dec-2016,1612-00315,0.00,30.00,R,Aces (North East Branch ),
Http://opendatacommunities.org/id/metropolitan-district-council/leeds,Leeds City Council,31/12/2016,Environment & Housing,Waste Management,Supplies and Services,Other Hired And Contracted Services,265,05-Dec-2016,1612-00316,0.00,800.00,R,Acorn Analytical Services Limited,
Http://opendatacommunities.org/id/metropolitan-district-council/leeds,Leeds City Council,31/12/2016,Environment & Housing,Waste Management,Supplies and Services,Other Hired And Contracted Services,265,05-Dec-2016,1612-00317,0.00,-200.00,R,Acorn Analytical Services Limited,
Http://opendatacommunities.org/id/metropolitan-district-council/leeds,Leeds City Council,31/12/2016,Environment & Housing,Waste Management,Supplies and Services,Other Hired And Contracted Services,265,21-Dec-2016,1612-00318,0.00,200.00,R,Acorn Analytical Services Limited,
Http://opendatacommunities.org/id/metropolitan-district-council/leeds,Leeds City Council,31/12/2016,Childrens Services,Safeguarding Targeted & Specialist,Third Party Payments,SEN Placements,566,01-Dec-2016,1612-00319,0.00,-34778.27,R,Acorn Care And Education Ltd,
Http://opendatacommunities.org/id/metropolitan-district-council/leeds,Leeds City Council,31/12/2016,Childrens Services,Safeguarding Targeted & Specialist,Third Party Payments,SEN Placements,566,01-Dec-2016,1612-00320,0.00,-7255.47,R,Acorn Care And Education Ltd,
Http://opendatacommunities.org/id/metropolitan-district-council/leeds,Leeds City Council,31/12/2016,Childrens Services,Safeguarding Targeted & Specialist,Third Party Payments,SEN Placements,566,01-Dec-2016,1612-00321,0.00,-10883.20,R,Acorn Care And Education Ltd,
Http://opendatacommunities.org/id/metropolitan-district-council/leeds,Leeds City Council,31/12/2016,Childrens Services,Safeguarding Targeted & Specialist,Third Party Payments,SEN Placements,566,01-Dec-2016,1612-00322,0.00,-19637.73,R,Acorn Care And Education Ltd,
Http://opendatacommunities.org/id/metropolitan-district-council/leeds,Leeds City Council,31/12/2016,Childrens Services,Safeguarding Targeted & Specialist,Third Party Payments,Independent Fostering Agencies,509,01-Dec-2016,1612-00323,0.00,18138.66,R,Acorn Care And Education Ltd,
Http://opendatacommunities.org/id/metropolitan-district-council/leeds,Leeds City Council,31/12/2016,Childrens Services,Safeguarding Targeted & Specialist,Third Party Payments,SEN Placements,566,01-Dec-2016,1612-00324,0.00,18138.67,R,Acorn Care And Education Ltd,
Http://opendatacommunities.org/id/metropolitan-district-council/leeds,Leeds City Council,31/12/2016,Childrens Services,Safeguarding Targeted & Specialist,Third Party Payments,SEN Placements,566,01-Dec-2016,1612-00325,0.00,18138.67,R,Acorn Care And Education Ltd,
Http://opendatacommunities.org/id/metropolitan-district-council/leeds,Leeds City Council,31/12/2016,Childrens Services,Safeguarding Targeted & Specialist,Third Party Payments,SEN Placements,566,01-Dec-2016,1612-00326,0.00,18138.67,R,Acorn Care And Education Ltd,
Http://opendatacommunities.org/id/metropolitan-district-council/leeds,Leeds City Council,31/12/2016,Childrens Services,Safeguarding Targeted & Specialist,Third Party Payments,SEN Placements,566,02-Dec-2016,1612-00327,0.00,9144.29,R,Acorn Care And Education Ltd,
Http://opendatacommunities.org/id/metropolitan-district-council/leeds,Leeds City Council,31/12/2016,Childrens Services,Safeguarding Targeted & Specialist,Third Party Payments,SEN Placements,566,02-Dec-2016,1612-00328,0.00,18138.67,R,Acorn Care And Education Ltd,
Http://opendatacommunities.org/id/metropolitan-district-council/leeds,Leeds City Council,31/12/2016,Childrens Services,Safeguarding Targeted & Specialist,Third Party Payments,SEN Placements,566,02-Dec-2016,1612-00329,0.00,9732.94,R,Acorn Care And Education Ltd,
Http://opendatacommunities.org/id/metropolitan-district-council/leeds,Leeds City Council,31/12/2016,Childrens Services,Safeguarding Targeted & Specialist,Third Party Payments,SEN Placements,566,02-Dec-2016,1612-00330,0.00,18138.66,R,Acorn Care And Education Ltd,
Http://opendatacommunities.org/id/metropolitan-district-council/leeds,Leeds City Council,31/12/2016,Childrens Services,Safeguarding Targeted & Specialist,Third Party Payments,SEN Placements,566,02-Dec-2016,1612-00331,0.00,18138.67,R,Acorn Care And Education Ltd,
Http://opendatacommunities.org/id/metropolitan-district-council/leeds,Leeds City Council,31/12/2016,Childrens Services,Safeguarding Targeted & Specialist,Third Party Payments,SEN Placements,566,02-Dec-2016,1612-00332,0.00,18138.67,R,Acorn Care And Education Ltd,
Http://opendatacommunities.org/id/metropolitan-district-council/leeds,Leeds City Council,31/12/2016,Childrens Services,Safeguarding Targeted & Specialist,Third Party Payments,SEN Placements,566,02-Dec-2016,1612-00333,0.00,18138.67,R,Acorn Care And Education Ltd,
Http://opendatacommunities.org/id/metropolitan-district-council/leeds,Leeds City Council,31/12/2016,Childrens Services,Safeguarding Targeted & Specialist,Third Party Payments,SEN Placements,566,02-Dec-2016,1612-00334,0.00,18138.66,R,Acorn Care And Education Ltd,
Http://opendatacommunities.org/id/metropolitan-district-council/leeds,Leeds City Council,31/12/2016,Childrens Services,Safeguarding Targeted & Specialist,Third Party Payments,SEN Placements,566,02-Dec-2016,1612-00335,0.00,18138.67,R,Acorn Care And Education Ltd,
Http://opendatacommunities.org/id/metropolitan-district-council/leeds,Leeds City Council,31/12/2016,Childrens Services,Safeguarding Targeted & Specialist,Third Party Payments,SEN Placements,566,07-Dec-2016,1612-00336,0.00,18138.66,R,Acorn Care And Education Ltd,
Http://opendatacommunities.org/id/metropolitan-district-council/leeds,Leeds City Council,31/12/2016,Childrens Services,Safeguarding Targeted & Specialist,Third Party Payments,SEN Placements,566,23-Dec-2016,1612-00337,0.00,18138.67,R,Acorn Care And Education Ltd,
Http://opendatacommunities.org/id/metropolitan-district-council/leeds,Leeds City Council,31/12/2016,Childrens Services,Safeguarding Targeted & Specialist,Third Party Payments,SEN Placements,566,23-Dec-2016,1612-00338,0.00,18138.67,R,Acorn Care And Education Ltd,
Http://opendatacommunities.org/id/metropolitan-district-council/leeds,Leeds City Council,31/12/2016,Childrens Services,Safeguarding Targeted & Specialist,Third Party Payments,SEN Placements,566,23-Dec-2016,1612-00339,0.00,18138.67,R,Acorn Care And Education Ltd,
Http://opendatacommunities.org/id/metropolitan-district-council/leeds,Leeds City Council,31/12/2016,Childrens Services,Safeguarding Targeted & Specialist,Third Party Payments,SEN Placements,566,23-Dec-2016,1612-00340,0.00,18138.67,R,Acorn Care And Education Ltd,
Http://opendatacommunities.org/id/metropolitan-district-council/leeds,Leeds City Council,31/12/2016,Childrens Services,Safeguarding Targeted & Specialist,Third Party Payments,SEN Placements,566,23-Dec-2016,1612-00341,0.00,18138.67,R,Acorn Care And Education Ltd,
Http://opendatacommunities.org/id/metropolitan-district-council/leeds,Leeds City Council,31/12/2016,Childrens Services,Safeguarding Targeted & Specialist,Third Party Payments,SEN Placements,566,23-Dec-2016,1612-00342,0.00,18138.67,R,Acorn Care And Education Ltd,
Http://opendatacommunities.org/id/metropolitan-district-council/leeds,Leeds City Council,31/12/2016,Childrens Services,Safeguarding Targeted & Specialist,Third Party Payments,SEN Placements,566,23-Dec-2016,1612-00343,0.00,18138.67,R,Acorn Care And Education Ltd,
Http://opendatacommunities.org/id/metropolitan-district-council/leeds,Leeds City Council,31/12/2016,Childrens Services,Safeguarding Targeted & Specialist,Third Party Payments,SEN Placements,566,23-Dec-2016,1612-00344,0.00,18138.67,R,Acorn Care And Education Ltd,
Http://opendatacommunities.org/id/metropolitan-district-council/leeds,Leeds City Council,31/12/2016,Childrens Services,Safeguarding Targeted & Specialist,Third Party Payments,SEN Placements,566,23-Dec-2016,1612-00345,0.00,18138.67,R,Acorn Care And Education Ltd,
Http://opendatacommunities.org/id/metropolitan-district-council/leeds,Leeds City Council,31/12/2016,Childrens Services,Safeguarding Targeted & Specialist,Third Party Payments,SEN Placements,566,23-Dec-2016,1612-00346,0.00,18138.67,R,Acorn Care And Education Ltd,
Http://opendatacommunities.org/id/metropolitan-district-council/leeds,Leeds City Council,31/12/2016,Childrens Services,Safeguarding Targeted & Specialist,Third Party Payments,SEN Placements,566,23-Dec-2016,1612-00347,0.00,18138.67,R,Acorn Care And Education Ltd,
Http://opendatacommunities.org/id/metropolitan-district-council/leeds,Leeds City Council,31/12/2016,Childrens Services,Safeguarding Targeted & Specialist,Third Party Payments,SEN Placements,566,23-Dec-2016,1612-00348,0.00,18138.67,R,Acorn Care And Education Ltd,
Http://opendatacommunities.org/id/metropolitan-district-council/leeds,Leeds City Council,31/12/2016,Childrens Services,Safeguarding Targeted & Specialist,Third Party Payments,SEN Placements,566,23-Dec-2016,1612-00349,0.00,18138.67,R,Acorn Care And Education Ltd,
Http://opendatacommunities.org/id/metropolitan-district-council/leeds,Leeds City Council,31/12/2016,Childrens Services,Safeguarding Targeted & Specialist,Third Party Payments,SEN Placements,566,23-Dec-2016,1612-00350,0.00,18138.67,R,Acorn Care And Education Ltd,
Http://opendatacommunities.org/id/metropolitan-district-council/leeds,Leeds City Council,31/12/2016,Childrens Services,Safeguarding Targeted & Specialist,Third Party Payments,SEN Placements,566,23-Dec-2016,1612-00351,0.00,18138.67,R,Acorn Care And Education Ltd,
Http://opendatacommunities.org/id/metropolitan-district-council/leeds,Leeds City Council,31/12/2016,Adult Social Care,Services For Older People - 65 And Over,Third Party Payments,Nursing Care Dementia,574,14-Dec-2016,1612-00352,0.00,1480.08,R,Acorn Nursing Home,
Http://opendatacommunities.org/id/metropolitan-district-council/leeds,Leeds City Council,31/12/2016,City Development,Libraries  Arts & Heritage,Supplies and Services,Other Hired And Contracted Services,265,08-Dec-2016,1612-00353,0.00,528.00,R,Acorn Scaffolding (Yorkshire) Ltd,
Http://opendatacommunities.org/id/metropolitan-district-council/leeds,Leeds City Council,31/12/2016,City Development,Libraries  Arts & Heritage,Supplies and Services,Other Hired And Contracted Services,265,13-Dec-2016,1612-00354,0.00,1860.00,R,Acorn Scaffolding (Yorkshire) Ltd,
Http://opendatacommunities.org/id/metropolitan-district-council/leeds,Leeds City Council,31/12/2016,City Development,Libraries  Arts & Heritage,Supplies and Services,Other Hired And Contracted Services,265,21-Dec-2016,1612-00355,0.00,9280.00,R,Acorn Scaffolding (Yorkshire) Ltd,
Http://opendatacommunities.org/id/metropolitan-district-council/leeds,Leeds City Council,31/12/2016,Childrens Services,Learning Skills & Universal,Third Party Payments,Services Rendered By Other Organisations,511,09-Dec-2016,1612-00356,0.00,2713.20,R,Acorns Nursery,
Http://opendatacommunities.org/id/metropolitan-district-council/leeds,Leeds City Council,31/12/2016,City Development,Highways,Supplies and Services,Operational Furniture And Equipment,203,15-Dec-2016,1612-00357,0.00,313.00,R,Acoustic Calibration Services Limited,
Http://opendatacommunities.org/id/metropolitan-district-council/leeds,Leeds City Council,31/12/2016,Adult Social Care,Services For Adults Under 65 Mental/Dis,Third Party Payments,Residential,580,14-Dec-2016,1612-00358,0.00,1459.20,R,Acre Green,
Http://opendatacommunities.org/id/metropolitan-district-council/leeds,Leeds City Council,31/12/2016,Adult Social Care,Services For Older People - 65 And Over,Third Party Payments,Nursing Home,570,14-Dec-2016,1612-00359,0.00,29560.62,R,Acre Green,
Http://opendatacommunities.org/id/metropolitan-district-council/leeds,Leeds City Council,31/12/2016,Adult Social Care,Services For Older People - 65 And Over,Third Party Payments,Nursing Care Dementia,574,14-Dec-2016,1612-00360,0.00,1122.48,R,Acre Green,
Http://opendatacommunities.org/id/metropolitan-district-council/leeds,Leeds City Council,31/12/2016,Adult Social Care,Services For Older People - 65 And Over,Third Party Payments,Residential,580,14-Dec-2016,1612-00361,0.00,5931.89,R,Acre Green,
Http://opendatacommunities.org/id/metropolitan-district-council/leeds,Leeds City Council,31/12/2016,Adult Social Care,Services For Older People Under 65 P/Dis,Third Party Payments,Nursing Home,570,14-Dec-2016,1612-00362,0.00,9276.18,R,Acre Green,
Http://opendatacommunities.org/id/metropolitan-district-council/leeds,Leeds City Council,31/12/2016,Adult Social Care,Services For Older People Under 65 P/Dis,Third Party Payments,Residential,580,14-Dec-2016,1612-00363,0.00,1871.54,R,Acre Green,
Http://opendatacommunities.org/id/metropolitan-district-council/leeds,Leeds City Council,31/12/2016,Childrens Services,Learning Skills & Universal,Third Party Payments,Services Rendered By Other Organisations,511,02-Dec-2016,1612-00364,0.00,4578.40,R,Acre Wood Day Nursery,
Http://opendatacommunities.org/id/metropolitan-district-council/leeds,Leeds City Council,31/12/2016,Childrens Services,Learning Skills & Universal,Third Party Payments,Services Rendered By Other Organisations,511,09-Dec-2016,1612-00365,0.00,2648.60,R,Acre Wood Day Nursery,
Http://opendatacommunities.org/id/metropolitan-district-council/leeds,Leeds City Council,31/12/2016,Central & Corporate,Technology  ,Employees,Professionally Linked Training,76,24-Nov-2016,1612-00366,0.00,1137.60,R,Act Now Training,Yes
Http://opendatacommunities.org/id/metropolitan-district-council/leeds,Leeds City Council,31/12/2016,Public Health,Public Health  ,Employees,Best Value Training,70,24-Nov-2016,1612-00367,0.00,500.00,R,Act Now Training,Yes
Http://opendatacommunities.org/id/metropolitan-district-council/leeds,Leeds City Council,31/12/2016,Adult Social Care,Services For Adults Under 65 Mental/Dis,Third Party Payments,Fees - Level 4,520,02-Dec-2016,1612-00368,0.00,350.00,R,Action First Recruitment Ltd,
Http://opendatacommunities.org/id/metropolitan-district-council/leeds,Leeds City Council,31/12/2016,Adult Social Care,Services For Adults Under 65 Mental/Dis,Third Party Payments,Fees - Level 4,520,02-Dec-2016,1612-00369,0.00,1050.00,R,Action First Recruitment Ltd,
Http://opendatacommunities.org/id/metropolitan-district-council/leeds,Leeds City Council,31/12/2016,Adult Social Care,Services For Adults Under 65 Mental/Dis,Third Party Payments,Fees - Level 4,520,02-Dec-2016,1612-00370,0.00,350.00,R,Action First Recruitment Ltd,
Http://opendatacommunities.org/id/metropolitan-district-council/leeds,Leeds City Council,31/12/2016,Adult Social Care,Services For Adults Under 65 Mental/Dis,Third Party Payments,Fees - Level 4,520,02-Dec-2016,1612-00371,0.00,1050.00,R,Action First Recruitment Ltd,
Http://opendatacommunities.org/id/metropolitan-district-council/leeds,Leeds City Council,31/12/2016,Adult Social Care,Services For Adults Under 65 Mental/Dis,Third Party Payments,Fees - Level 4,520,02-Dec-2016,1612-00372,0.00,2100.00,R,Action First Recruitment Ltd,
Http://opendatacommunities.org/id/metropolitan-district-council/leeds,Leeds City Council,31/12/2016,Adult Social Care,Services For Adults Under 65 Mental/Dis,Third Party Payments,Fees - Level 4,520,02-Dec-2016,1612-00373,0.00,1050.00,R,Action First Recruitment Ltd,
Http://opendatacommunities.org/id/metropolitan-district-council/leeds,Leeds City Council,31/12/2016,Adult Social Care,Services For Adults Under 65 Mental/Dis,Third Party Payments,Fees - Level 4,520,02-Dec-2016,1612-00374,0.00,1000.00,R,Action First Recruitment Ltd,
Http://opendatacommunities.org/id/metropolitan-district-council/leeds,Leeds City Council,31/12/2016,Adult Social Care,Services For Adults Under 65 Mental/Dis,Third Party Payments,Fees - Level 4,520,02-Dec-2016,1612-00375,0.00,350.00,R,Action First Recruitment Ltd,
Http://opendatacommunities.org/id/metropolitan-district-council/leeds,Leeds City Council,31/12/2016,Adult Social Care,Services For Adults Under 65 Mental/Dis,Third Party Payments,Fees - Level 4,520,02-Dec-2016,1612-00376,0.00,1400.00,R,Action First Recruitment Ltd,
Http://opendatacommunities.org/id/metropolitan-district-council/leeds,Leeds City Council,31/12/2016,Adult Social Care,Services For Adults Under 65 Mental/Dis,Third Party Payments,Fees - Level 4,520,02-Dec-2016,1612-00377,0.00,700.00,R,Action First Recruitment Ltd,
Http://opendatacommunities.org/id/metropolitan-district-council/leeds,Leeds City Council,31/12/2016,Adult Social Care,Services For Adults Under 65 Mental/Dis,Third Party Payments,Fees - Level 4,520,02-Dec-2016,1612-00378,0.00,1050.00,R,Action First Recruitment Ltd,
Http://opendatacommunities.org/id/metropolitan-district-council/leeds,Leeds City Council,31/12/2016,Adult Social Care,Services For Adults Under 65 Mental/Dis,Third Party Payments,Fees - Level 4,520,02-Dec-2016,1612-00379,0.00,700.00,R,Action First Recruitment Ltd,
Http://opendatacommunities.org/id/metropolitan-district-council/leeds,Leeds City Council,31/12/2016,Adult Social Care,Services For Adults Under 65 Mental/Dis,Third Party Payments,Fees - Level 4,520,02-Dec-2016,1612-00380,0.00,250.00,R,Action First Recruitment Ltd,
Http://opendatacommunities.org/id/metropolitan-district-council/leeds,Leeds City Council,31/12/2016,Adult Social Care,Services For Adults Under 65 Mental/Dis,Third Party Payments,Fees - Level 4,520,02-Dec-2016,1612-00381,0.00,250.00,R,Action First Recruitment Ltd,
Http://opendatacommunities.org/id/metropolitan-district-council/leeds,Leeds City Council,31/12/2016,Adult Social Care,Services For Adults Under 65 Mental/Dis,Third Party Payments,Fees - Level 4,520,02-Dec-2016,1612-00382,0.00,750.00,R,Action First Recruitment Ltd,
Http://opendatacommunities.org/id/metropolitan-district-council/leeds,Leeds City Council,31/12/2016,Adult Social Care,Services For Adults Under 65 Mental/Dis,Third Party Payments,Fees - Level 4,520,02-Dec-2016,1612-00383,0.00,350.00,R,Action First Recruitment Ltd,
Http://opendatacommunities.org/id/metropolitan-district-council/leeds,Leeds City Council,31/12/2016,Adult Social Care,Services For Adults Under 65 Mental/Dis,Third Party Payments,Fees - Level 4,520,02-Dec-2016,1612-00384,0.00,350.00,R,Action First Recruitment Ltd,
Http://opendatacommunities.org/id/metropolitan-district-council/leeds,Leeds City Council,31/12/2016,Adult Social Care,Services For Adults Under 65 Mental/Dis,Third Party Payments,Fees - Level 4,520,02-Dec-2016,1612-00385,0.00,350.00,R,Action First Recruitment Ltd,
Http://opendatacommunities.org/id/metropolitan-district-council/leeds,Leeds City Council,31/12/2016,Adult Social Care,Services For Adults Under 65 Mental/Dis,Third Party Payments,Fees - Level 4,520,09-Dec-2016,1612-00386,0.00,350.00,R,Action First Recruitment Ltd,
Http://opendatacommunities.org/id/metropolitan-district-council/leeds,Leeds City Council,31/12/2016,Adult Social Care,Services For Adults Under 65 Mental/Dis,Third Party Payments,Fees - Level 4,520,09-Dec-2016,1612-00387,0.00,700.00,R,Action First Recruitment Ltd,
Http://opendatacommunities.org/id/metropolitan-district-council/leeds,Leeds City Council,31/12/2016,Adult Social Care,Services For Adults Under 65 Mental/Dis,Third Party Payments,Fees - Level 4,520,09-Dec-2016,1612-00388,0.00,700.00,R,Action First Recruitment Ltd,
Http://opendatacommunities.org/id/metropolitan-district-council/leeds,Leeds City Council,31/12/2016,Adult Social Care,Services For Adults Under 65 Mental/Dis,Third Party Payments,Fees - Level 4,520,09-Dec-2016,1612-00389,0.00,350.00,R,Action First Recruitment Ltd,
Http://opendatacommunities.org/id/metropolitan-district-council/leeds,Leeds City Council,31/12/2016,Adult Social Care,Services For Adults Under 65 Mental/Dis,Third Party Payments,Fees - Level 4,520,16-Dec-2016,1612-00390,0.00,350.00,R,Action First Recruitment Ltd,
Http://opendatacommunities.org/id/metropolitan-district-council/leeds,Leeds City Council,31/12/2016,Adult Social Care,Services For Adults Under 65 Mental/Dis,Third Party Payments,Fees - Level 4,520,16-Dec-2016,1612-00391,0.00,350.00,R,Action First Recruitment Ltd,
Http://opendatacommunities.org/id/metropolitan-district-council/leeds,Leeds City Council,31/12/2016,Adult Social Care,Services For Adults Under 65 Mental/Dis,Third Party Payments,Fees - Level 4,520,28-Dec-2016,1612-00392,0.00,350.00,R,Action First Recruitment Ltd,
Http://opendatacommunities.org/id/metropolitan-district-council/leeds,Leeds City Council,31/12/2016,Adult Social Care,Services For Adults Under 65 Mental/Dis,Third Party Payments,Fees - Level 4,520,28-Dec-2016,1612-00393,0.00,350.00,R,Action First Recruitment Ltd,
Http://opendatacommunities.org/id/metropolitan-district-council/leeds,Leeds City Council,31/12/2016,Adult Social Care,Services For Adults Under 65 Mental/Dis,Third Party Payments,Fees - Level 4,520,28-Dec-2016,1612-00394,0.00,350.00,R,Action First Recruitment Ltd,
Http://opendatacommunities.org/id/metropolitan-district-council/leeds,Leeds City Council,31/12/2016,Adult Social Care,Services For Adults Under 65 Mental/Dis,Third Party Payments,Fees - Level 4,520,28-Dec-2016,1612-00395,0.00,350.00,R,Action First Recruitment Ltd,
Http://opendatacommunities.org/id/metropolitan-district-council/leeds,Leeds City Council,31/12/2016,Childrens Services,Safeguarding Targeted & Specialist,Third Party Payments,Interagency Adoptions,559,09-Dec-2016,1612-00396,0.00,1911.29,R,Action For Children,
Http://opendatacommunities.org/id/metropolitan-district-council/leeds,Leeds City Council,31/12/2016,Childrens Services,Safeguarding Targeted & Specialist,Third Party Payments,Interagency Adoptions,559,09-Dec-2016,1612-00397,0.00,750.00,R,Action For Children,
Http://opendatacommunities.org/id/metropolitan-district-council/leeds,Leeds City Council,31/12/2016,Childrens Services,Safeguarding Targeted & Specialist,Third Party Payments,Interagency Adoptions,559,23-Dec-2016,1612-00398,0.00,6338.71,R,Action For Children,
Http://opendatacommunities.org/id/metropolitan-district-council/leeds,Leeds City Council,31/12/2016,Childrens Services,Safeguarding Targeted & Specialist,Third Party Payments,Independent Fostering Agencies,509,30-Dec-2016,1612-00399,0.00,4622.40,R,Action For Children,
Http://opendatacommunities.org/id/metropolitan-district-council/leeds,Leeds City Council,31/12/2016,Childrens Services,Safeguarding Targeted & Specialist,Third Party Payments,Independent Fostering Agencies,509,30-Dec-2016,1612-00400,0.00,4622.40,R,Action For Children,
Http://opendatacommunities.org/id/metropolitan-district-council/leeds,Leeds City Council,31/12/2016,Childrens Services,Safeguarding Targeted & Specialist,Third Party Payments,Independent Fostering Agencies,509,30-Dec-2016,1612-00401,0.00,4622.40,R,Action For Children,
Http://opendatacommunities.org/id/metropolitan-district-council/leeds,Leeds City Council,31/12/2016,Childrens Services,Safeguarding Targeted & Specialist,Third Party Payments,Independent Fostering Agencies,509,30-Dec-2016,1612-00402,0.00,4997.10,R,Action For Children,
Http://opendatacommunities.org/id/metropolitan-district-council/leeds,Leeds City Council,31/12/2016,Childrens Services,Safeguarding Targeted & Specialist,Third Party Payments,Independent Fostering Agencies,509,30-Dec-2016,1612-00403,0.00,4622.40,R,Action For Children,
Http://opendatacommunities.org/id/metropolitan-district-council/leeds,Leeds City Council,31/12/2016,Adult Social Care,Services For Older People - 65 And Over,Third Party Payments,Payments To Voluntary Organisations,561,30-Dec-2016,1612-00404,0.00,34505.50,R,Action For Gipton Elderly,
Http://opendatacommunities.org/id/metropolitan-district-council/leeds,Leeds City Council,31/12/2016,Environment & Housing,Statutory Housing,Supplies and Services,Other Hired And Contracted Services,265,22-Dec-2016,1612-00405,0.00,180.00,R,Active Cleaning Solutions Ltd,
Http://opendatacommunities.org/id/metropolitan-district-council/leeds,Leeds City Council,31/12/2016,Childrens Services,Learning Skills & Universal,Third Party Payments,Services Rendered By Other Organisations,511,02-Dec-2016,1612-00406,0.00,2560.80,R,Active Kids Day Nursery,
Http://opendatacommunities.org/id/metropolitan-district-council/leeds,Leeds City Council,31/12/2016,Childrens Services,Learning Skills & Universal,Third Party Payments,Services Rendered By Other Organisations,511,09-Dec-2016,1612-00407,0.00,111.30,R,Active Kids Day Nursery,
Http://opendatacommunities.org/id/metropolitan-district-council/leeds,Leeds City Council,31/12/2016,Environment & Housing,Waste Management,Supplies and Services,Recycling & Reuse Charges,234,01-Dec-2016,1612-00408,0.00,4687.32,R,Acumen Waste Services Ltd,
Http://opendatacommunities.org/id/metropolitan-district-council/leeds,Leeds City Council,31/12/2016,Environment & Housing,Waste Management,Supplies and Services,Recycling & Reuse Charges,234,02-Dec-2016,1612-00409,0.00,7632.64,R,Acumen Waste Services Ltd,
Http://opendatacommunities.org/id/metropolitan-district-council/leeds,Leeds City Council,31/12/2016,Environment & Housing,Environmental Action (East North East),Supplies and Services,Bought In Professional Services,277,06-Dec-2016,1612-00410,0.00,110.00,R,Acumen Waste Services Ltd,
Http://opendatacommunities.org/id/metropolitan-district-council/leeds,Leeds City Council,31/12/2016,Environment & Housing,Environmental Action (East North East),Supplies and Services,Bought In Professional Services,277,06-Dec-2016,1612-00411,0.00,110.00,R,Acumen Waste Services Ltd,
Http://opendatacommunities.org/id/metropolitan-district-council/leeds,Leeds City Council,31/12/2016,Environment & Housing,Environmental Action (East North East),Supplies and Services,Bought In Professional Services,277,06-Dec-2016,1612-00412,0.00,110.00,R,Acumen Waste Services Ltd,
Http://opendatacommunities.org/id/metropolitan-district-council/leeds,Leeds City Council,31/12/2016,Environment & Housing,Environmental Action (East North East),Supplies and Services,Bought In Professional Services,277,06-Dec-2016,1612-00413,0.00,110.00,R,Acumen Waste Services Ltd,
Http://opendatacommunities.org/id/metropolitan-district-council/leeds,Leeds City Council,31/12/2016,Environment & Housing,Environmental Action (East North East),Supplies and Services,Bought In Professional Services,277,06-Dec-2016,1612-00414,0.00,110.00,R,Acumen Waste Services Ltd,
Http://opendatacommunities.org/id/metropolitan-district-council/leeds,Leeds City Council,31/12/2016,Environment & Housing,Environmental Action (South),Premises,Removal Of Workplace Waste,126,09-Dec-2016,1612-00415,0.00,220.00,R,Acumen Waste Services Ltd,
Http://opendatacommunities.org/id/metropolitan-district-council/leeds,Leeds City Council,31/12/2016,Environment & Housing,Environmental Action (South),Premises,Removal Of Workplace Waste,126,09-Dec-2016,1612-00416,0.00,110.00,R,Acumen Waste Services Ltd,
Http://opendatacommunities.org/id/metropolitan-district-council/leeds,Leeds City Council,31/12/2016,Environment & Housing,Environmental Action (South),Premises,Removal Of Workplace Waste,126,16-Dec-2016,1612-00417,0.00,220.00,R,Acumen Waste Services Ltd,
Http://opendatacommunities.org/id/metropolitan-district-council/leeds,Leeds City Council,31/12/2016,Environment & Housing,Environmental Action (South),Premises,Removal Of Workplace Waste,126,20-Dec-2016,1612-00418,0.00,110.00,R,Acumen Waste Services Ltd,
Http://opendatacommunities.org/id/metropolitan-district-council/leeds,Leeds City Council,31/12/2016,Environment & Housing,Environmental Action (South),Premises,Removal Of Workplace Waste,126,20-Dec-2016,1612-00419,0.00,110.00,R,Acumen Waste Services Ltd,
Http://opendatacommunities.org/id/metropolitan-district-council/leeds,Leeds City Council,31/12/2016,Environment & Housing,Waste Management,Supplies and Services,Operational Furniture And Equipment,203,21-Dec-2016,1612-00420,0.00,75.00,R,Acumen Waste Services Ltd,
Http://opendatacommunities.org/id/metropolitan-district-council/leeds,Leeds City Council,31/12/2016,Environment & Housing,Environmental Action (East North East),Supplies and Services,Bought In Professional Services,277,21-Dec-2016,1612-00421,0.00,110.00,R,Acumen Waste Services Ltd,
Http://opendatacommunities.org/id/metropolitan-district-council/leeds,Leeds City Council,31/12/2016,Environment & Housing,Waste Management,Supplies and Services,Recycling & Reuse Charges,234,22-Dec-2016,1612-00422,0.00,5273.57,R,Acumen Waste Services Ltd,
Http://opendatacommunities.org/id/metropolitan-district-council/leeds,Leeds City Council,31/12/2016,Environment & Housing,Parks and Countryside,Supplies and Services,Resaleable Materials,204,07-Dec-2016,1612-00423,0.00,250.00,R,Acushnet Europe Limited,
Http://opendatacommunities.org/id/metropolitan-district-council/leeds,Leeds City Council,31/12/2016,Environment & Housing,Parks and Countryside,Supplies and Services,Resaleable Materials,204,19-Dec-2016,1612-00424,0.00,68.48,R,Acushnet Europe Limited,
Http://opendatacommunities.org/id/metropolitan-district-council/leeds,Leeds City Council,31/12/2016,Environment & Housing,Environmental Health,Capital,Construction,3,01-Dec-2016,1612-00425,0.00,10428.99,C,Ad Builders,
Http://opendatacommunities.org/id/metropolitan-district-council/leeds,Leeds City Council,31/12/2016,Civic Enterprise Leeds,Business Support Centre,Supplies and Services,Operational Materials,205,02-Dec-2016,1612-00426,0.00,645.00,R,Ad3 Envelope Printers Limited,
Http://opendatacommunities.org/id/metropolitan-district-council/leeds,Leeds City Council,31/12/2016,Civic Enterprise Leeds,Business Support Centre,Supplies and Services,Other Hired And Contracted Services,265,23-Dec-2016,1612-00427,0.00,108.50,R,Ad3 Envelope Printers Limited,
Http://opendatacommunities.org/id/metropolitan-district-council/leeds,Leeds City Council,31/12/2016,Civic Enterprise Leeds,Business Support Centre,Supplies and Services,Operational Materials,205,30-Dec-2016,1612-00428,0.00,645.00,R,Ad3 Envelope Printers Limited,
Http://opendatacommunities.org/id/metropolitan-district-council/leeds,Leeds City Council,31/12/2016,Civic Enterprise Leeds,Business Support Centre,Supplies and Services,Other Hired And Contracted Services,265,30-Dec-2016,1612-00429,0.00,445.50,R,Ad3 Envelope Printers Limited,
Http://opendatacommunities.org/id/metropolitan-district-council/leeds,Leeds City Council,31/12/2016,Childrens Services,Learning Skills & Universal,Supplies and Services,Training Allowances,257,23-Dec-2016,1612-00430,0.00,216.00,R,REDACTED PERSONAL DATA,
Http://opendatacommunities.org/id/metropolitan-district-council/leeds,Leeds City Council,31/12/2016,Childrens Services,Learning Skills & Universal,Supplies and Services,Training Allowances,257,30-Dec-2016,1612-00431,0.00,216.00,R,REDACTED PERSONAL DATA,
Http://opendatacommunities.org/id/metropolitan-district-council/leeds,Leeds City Council,31/12/2016,Insurance,Insurance,Supplies and Services,Insurance Claims,248,01-Dec-2016,1612-00432,0.00,308.00,R,Adam Law Solicitors,
Http://opendatacommunities.org/id/metropolitan-district-council/leeds,Leeds City Council,31/12/2016,Adult Social Care,Services For Older People - 65 And Over,Third Party Payments,Nursing Home,570,14-Dec-2016,1612-00433,0.00,2120.00,R,Adbolton Hall,
Http://opendatacommunities.org/id/metropolitan-district-council/leeds,Leeds City Council,31/12/2016,Citizens and Communities,Communities,Supplies and Services,'Well Being' Large Grants Projects,230,30-Dec-2016,1612-00434,0.00,900.00,R,Addictive Audio,
Http://opendatacommunities.org/id/metropolitan-district-council/leeds,Leeds City Council,31/12/2016,Environment & Housing,Environmental Health,Capital,Other Costs,7,30-Dec-2016,1612-00435,0.00,5558.50,C,Addleshaw Goddard Llp,
Http://opendatacommunities.org/id/metropolitan-district-council/leeds,Leeds City Council,31/12/2016,Public Health,Public Health,Third Party Payments,Public Health Commissioned Services,526,20-Dec-2016,1612-00436,0.00,63.00,R,Addlestone & Partners,
Http://opendatacommunities.org/id/metropolitan-district-council/leeds,Leeds City Council,31/12/2016,Environment & Housing,Parks and Countryside,Premises,Rents,141,07-Dec-2016,1612-00437,0.00,5392.92,R,Addplant Limited,
Http://opendatacommunities.org/id/metropolitan-district-council/leeds,Leeds City Council,31/12/2016,Central & Corporate,Technology  ,Employees,Agency Staff,8,09-Nov-2016,1612-00438,0.00,5060.00,R,Adecco Alfred Marks,Yes
Http://opendatacommunities.org/id/metropolitan-district-council/leeds,Leeds City Council,31/12/2016,Central & Corporate,Technology  ,Employees,Agency Staff,8,09-Nov-2016,1612-00439,0.00,500.03,R,Adecco Alfred Marks,Yes
Http://opendatacommunities.org/id/metropolitan-district-council/leeds,Leeds City Council,31/12/2016,Central & Corporate,Technology  ,Employees,Agency Staff,8,09-Nov-2016,1612-00440,0.00,695.00,R,Adecco Alfred Marks,Yes
Http://opendatacommunities.org/id/metropolitan-district-council/leeds,Leeds City Council,31/12/2016,Citizens and Communities,Communities,Supplies and Services,Well Being Small Grants Projects,228,08-Dec-2016,1612-00441,0.00,811.50,R,Adel Neighbourhood Forum,
Http://opendatacommunities.org/id/metropolitan-district-council/leeds,Leeds City Council,31/12/2016,Childrens Services,Learning Skills & Universal,Third Party Payments,Services Rendered By Voluntary Sector,505,02-Dec-2016,1612-00442,0.00,407.40,R,Adel Pre School,
Http://opendatacommunities.org/id/metropolitan-district-council/leeds,Leeds City Council,31/12/2016,Childrens Services,Learning Skills & Universal,Third Party Payments,Services Rendered By Voluntary Sector,505,09-Dec-2016,1612-00443,0.00,2170.56,R,Adel Pre School,
Http://opendatacommunities.org/id/metropolitan-district-council/leeds,Leeds City Council,31/12/2016,Childrens Services,Safeguarding Targeted & Specialist,Supplies and Services,Food & Drink,231,09-Dec-2016,1612-00444,0.00,129.00,R,Adel Quaker Meeting,
Http://opendatacommunities.org/id/metropolitan-district-council/leeds,Leeds City Council,31/12/2016,Childrens Services,Learning Skills & Universal,Third Party Payments,Services Rendered By Other Organisations,511,09-Dec-2016,1612-00445,0.00,159.60,R,Adele Harrington,
Http://opendatacommunities.org/id/metropolitan-district-council/leeds,Leeds City Council,31/12/2016,Childrens Services,Learning Skills & Universal,Third Party Payments,Services Rendered By Other Organisations,511,09-Dec-2016,1612-00446,0.00,191.52,R,REDACTED PERSONAL DATA,
Http://opendatacommunities.org/id/metropolitan-district-council/leeds,Leeds City Council,31/12/2016,City Development,Economic Development,Supplies and Services,Publication And Promotion,267,28-Dec-2016,1612-00447,0.00,300.00,R,Adelia String Quartet,
Http://opendatacommunities.org/id/metropolitan-district-council/leeds,Leeds City Council,31/12/2016,Adult Social Care,Services For Older People - 65 And Over,Third Party Payments,Residential,580,14-Dec-2016,1612-00448,0.00,1233.08,R,Adeline Lodge,
Http://opendatacommunities.org/id/metropolitan-district-council/leeds,Leeds City Council,31/12/2016,City Development,Libraries  Arts & Heritage  ,Supplies and Services,Food & Drink,231,09-Nov-2016,1612-00449,0.00,43.46,R,Adelphi,Yes
Http://opendatacommunities.org/id/metropolitan-district-council/leeds,Leeds City Council,31/12/2016,Adult Social Care,Services For Older People - 65 And Over,Third Party Payments,Nursing Home,570,14-Dec-2016,1612-00450,0.00,1122.36,R,Aden House,
Http://opendatacommunities.org/id/metropolitan-district-council/leeds,Leeds City Council,31/12/2016,Environment & Housing,Community Safety,Supplies and Services,Other Hired And Contracted Services,265,02-Dec-2016,1612-00451,0.00,609.37,R,Adi Global,
Http://opendatacommunities.org/id/metropolitan-district-council/leeds,Leeds City Council,31/12/2016,Environment & Housing,Community Safety,Supplies and Services,Other Hired And Contracted Services,265,02-Dec-2016,1612-00452,0.00,19.92,R,Adi Global,
Http://opendatacommunities.org/id/metropolitan-district-council/leeds,Leeds City Council,31/12/2016,City Development,Libraries  Arts & Heritage,Supplies and Services,Other Hired And Contracted Services,265,06-Dec-2016,1612-00453,0.00,5450.00,R,Adi Uk Ltd,
Http://opendatacommunities.org/id/metropolitan-district-council/leeds,Leeds City Council,31/12/2016,Civic Enterprise Leeds,Commercial Services,Transport,Vehicle Spares,345,22-Dec-2016,1612-00454,0.00,10.00,R,Adm Car Audio,
Http://opendatacommunities.org/id/metropolitan-district-council/leeds,Leeds City Council,31/12/2016,Childrens Services,Safeguarding Targeted & Specialist,Third Party Payments,Independent Fostering Agencies,509,07-Dec-2016,1612-00455,0.00,2945.00,R,Adolescent And Childrens Trust,
Http://opendatacommunities.org/id/metropolitan-district-council/leeds,Leeds City Council,31/12/2016,Childrens Services,Safeguarding Targeted & Specialist,Third Party Payments,Independent Fostering Agencies,509,07-Dec-2016,1612-00456,0.00,2945.00,R,Adolescent And Childrens Trust,
Http://opendatacommunities.org/id/metropolitan-district-council/leeds,Leeds City Council,31/12/2016,Childrens Services,Safeguarding Targeted & Specialist,Third Party Payments,Independent Fostering Agencies,509,07-Dec-2016,1612-00457,0.00,2945.00,R,Adolescent And Childrens Trust,
Http://opendatacommunities.org/id/metropolitan-district-council/leeds,Leeds City Council,31/12/2016,Childrens Services,Safeguarding Targeted & Specialist,Third Party Payments,Independent Fostering Agencies,509,07-Dec-2016,1612-00458,0.00,3100.00,R,Adolescent And Childrens Trust,
Http://opendatacommunities.org/id/metropolitan-district-council/leeds,Leeds City Council,31/12/2016,Childrens Services,Safeguarding Targeted & Specialist,Third Party Payments,Independent Fostering Agencies,509,07-Dec-2016,1612-00459,0.00,1330.00,R,Adolescent And Childrens Trust,
Http://opendatacommunities.org/id/metropolitan-district-council/leeds,Leeds City Council,31/12/2016,Childrens Services,Safeguarding Targeted & Specialist,Supplies and Services,Memberships,226,09-Dec-2016,1612-00460,0.00,2080.00,R,Adoption Uk,
Http://opendatacommunities.org/id/metropolitan-district-council/leeds,Leeds City Council,31/12/2016,Childrens Services,Safeguarding Targeted & Specialist,Supplies and Services,Memberships,226,09-Dec-2016,1612-00461,0.00,-312.00,R,Adoption Uk,
Http://opendatacommunities.org/id/metropolitan-district-council/leeds,Leeds City Council,31/12/2016,City Development,Planning & Sustainable Development,Income,Planning Fees,939,01-Dec-2016,1612-00462,0.00,98.00,R,Ads (Yorkshire) Ltd,
Http://opendatacommunities.org/id/metropolitan-district-council/leeds,Leeds City Council,31/12/2016,Environment & Housing,Leeds Building Services,Supplies and Services,Other Hired And Contracted Services,265,01-Dec-2016,1612-00463,0.00,868.68,R,Adt Fire And Security Plc,
Http://opendatacommunities.org/id/metropolitan-district-council/leeds,Leeds City Council,31/12/2016,Strategic Landlord,Housing Management,Premises,HRA Responsive Repairs,106,02-Dec-2016,1612-00464,0.00,132.00,R,Adt Fire And Security Plc,
Http://opendatacommunities.org/id/metropolitan-district-council/leeds,Leeds City Council,31/12/2016,Strategic Landlord,Housing Management,Premises,HRA Responsive Repairs,106,02-Dec-2016,1612-00465,0.00,194.00,R,Adt Fire And Security Plc,
Http://opendatacommunities.org/id/metropolitan-district-council/leeds,Leeds City Council,31/12/2016,Environment & Housing,Leeds Building Services,Supplies and Services,Other Hired And Contracted Services,265,14-Dec-2016,1612-00466,0.00,1456.00,R,Adt Fire And Security Plc,
Http://opendatacommunities.org/id/metropolitan-district-council/leeds,Leeds City Council as Accountable Body,31/12/2016,Social Services Pooled Budgets,Jcs For People With Learning Disabilitie,Third Party Payments,Sheltered Accommodation,569,02-Dec-2016,1612-00467,0.00,1332.20,R,Adult Placement Services,
Http://opendatacommunities.org/id/metropolitan-district-council/leeds,Leeds City Council,31/12/2016,Adult Social Care,Services For Adults Under 65 Mental/Dis,Third Party Payments,Nursing Home,570,14-Dec-2016,1612-00468,0.00,1541.96,R,Adult Supported Living Ltd,
Http://opendatacommunities.org/id/metropolitan-district-council/leeds,Leeds City Council,31/12/2016,City Development,Libraries  Arts & Heritage,Supplies and Services,External Audit Fees,261,09-Dec-2016,1612-00469,0.00,85.00,R,Advance Stocks Ltd,
Http://opendatacommunities.org/id/metropolitan-district-council/leeds,Leeds City Council,31/12/2016,City Development,Libraries  Arts & Heritage,Supplies and Services,External Audit Fees,261,23-Dec-2016,1612-00470,0.00,85.00,R,Advance Stocks Ltd,
Http://opendatacommunities.org/id/metropolitan-district-council/leeds,Leeds City Council,31/12/2016,City Development,Libraries  Arts & Heritage,Supplies and Services,External Audit Fees,261,23-Dec-2016,1612-00471,0.00,85.00,R,Advance Stocks Ltd,
Http://opendatacommunities.org/id/metropolitan-district-council/leeds,Leeds City Council,31/12/2016,City Development,Recreation,Supplies and Services,External Audit Fees,261,30-Dec-2016,1612-00472,0.00,235.00,R,Advance Stocks Ltd,
Http://opendatacommunities.org/id/metropolitan-district-council/leeds,Leeds City Council,31/12/2016,City Development,Recreation,Supplies and Services,External Audit Fees,261,30-Dec-2016,1612-00473,0.00,85.00,R,Advance Stocks Ltd,
Http://opendatacommunities.org/id/metropolitan-district-council/leeds,Leeds City Council,31/12/2016,City Development,Libraries  Arts & Heritage,Supplies and Services,External Audit Fees,261,30-Dec-2016,1612-00474,0.00,85.00,R,Advance Stocks Ltd,
Http://opendatacommunities.org/id/metropolitan-district-council/leeds,Leeds City Council,31/12/2016,Childrens Services,Safeguarding Targeted & Specialist,Support Services,Legal Disbursements,411,14-Dec-2016,1612-00475,0.00,394.33,R,Advanced Child Care Assessments Ltd,
Http://opendatacommunities.org/id/metropolitan-district-council/leeds,Leeds City Council as Accountable Body,31/12/2016,Social Services Pooled Budgets,Jcs For People With Learning Disabilitie,Third Party Payments,Day Centre,564,09-Dec-2016,1612-00476,0.00,492.05,R,Advitam Ltd,
Http://opendatacommunities.org/id/metropolitan-district-council/leeds,Leeds City Council as Accountable Body,31/12/2016,Social Services Pooled Budgets,Jcs For People With Learning Disabilitie,Third Party Payments,Residential,580,14-Dec-2016,1612-00477,0.00,20213.48,R,Advitam Ltd,
Http://opendatacommunities.org/id/metropolitan-district-council/leeds,Leeds City Council as Accountable Body,31/12/2016,Social Services Pooled Budgets,Jcs For People With Learning Disabilitie,Third Party Payments,Day Centre,564,28-Dec-2016,1612-00478,0.00,416.35,R,Advitam Ltd,
Http://opendatacommunities.org/id/metropolitan-district-council/leeds,Leeds City Council,31/12/2016,Adult Social Care,Services For Adults Under 65 Mental/Dis,Third Party Payments,Payments To Voluntary Organisations,561,02-Dec-2016,1612-00479,0.00,1023.97,R,Advonet,
Http://opendatacommunities.org/id/metropolitan-district-council/leeds,Leeds City Council as Accountable Body,31/12/2016,Social Services Pooled Budgets,Jcs For People With Learning Disabilitie,Third Party Payments,Other Agency Services,561,08-Dec-2016,1612-00480,0.00,20.10,R,Advonet,
Http://opendatacommunities.org/id/metropolitan-district-council/leeds,Leeds City Council as Accountable Body,31/12/2016,Social Services Pooled Budgets,Jcs For People With Learning Disabilitie,Third Party Payments,Other Agency Services,561,08-Dec-2016,1612-00481,0.00,7.50,R,Advonet,
Http://opendatacommunities.org/id/metropolitan-district-council/leeds,Leeds City Council as Accountable Body,31/12/2016,Social Services Pooled Budgets,Jcs For People With Learning Disabilitie,Third Party Payments,Other Agency Services,561,08-Dec-2016,1612-00482,0.00,24.90,R,Advonet,
Http://opendatacommunities.org/id/metropolitan-district-council/leeds,Leeds City Council as Accountable Body,31/12/2016,Social Services Pooled Budgets,Jcs For People With Learning Disabilitie,Third Party Payments,Other Agency Services,561,08-Dec-2016,1612-00483,0.00,1027.68,R,Advonet,
Http://opendatacommunities.org/id/metropolitan-district-council/leeds,Leeds City Council as Accountable Body,31/12/2016,Social Services Pooled Budgets,Jcs For People With Learning Disabilitie,Third Party Payments,Other Agency Services,561,08-Dec-2016,1612-00484,0.00,155.10,R,Advonet,
Http://opendatacommunities.org/id/metropolitan-district-council/leeds,Leeds City Council as Accountable Body,31/12/2016,Social Services Pooled Budgets,Jcs For People With Learning Disabilitie,Third Party Payments,Other Agency Services,561,09-Dec-2016,1612-00485,0.00,970.08,R,Advonet,
Http://opendatacommunities.org/id/metropolitan-district-council/leeds,Leeds City Council as Accountable Body,31/12/2016,Social Services Pooled Budgets,Jcs For People With Learning Disabilitie,Third Party Payments,Other Agency Services,561,09-Dec-2016,1612-00486,0.00,1124.33,R,Advonet,
Http://opendatacommunities.org/id/metropolitan-district-council/leeds,Leeds City Council,31/12/2016,Adult Social Care,Services For Adults Under 65 Mental/Dis,Third Party Payments,Payments To Voluntary Organisations,561,16-Dec-2016,1612-00487,0.00,10470.43,R,Advonet,
Http://opendatacommunities.org/id/metropolitan-district-council/leeds,Leeds City Council,31/12/2016,Adult Social Care,Services For Adults Under 65 Mental/Dis,Third Party Payments,Payments To Voluntary Organisations,561,16-Dec-2016,1612-00488,0.00,10632.30,R,Advonet,
Http://opendatacommunities.org/id/metropolitan-district-council/leeds,Leeds City Council,31/12/2016,Adult Social Care,Services For Older People - 65 And Over,Third Party Payments,Payments To Voluntary Organisations,561,23-Dec-2016,1612-00489,0.00,83435.70,R,Advonet,
Http://opendatacommunities.org/id/metropolitan-district-council/leeds,Leeds City Council,31/12/2016,City Development,Economic Development,Capital,Other Costs,7,28-Dec-2016,1612-00490,0.00,7047.00,C,Aecom Limited,
Http://opendatacommunities.org/id/metropolitan-district-council/leeds,Leeds City Council,31/12/2016,Citizens and Communities,Customer Access,Supplies and Services,Other Hired And Contracted Services,265,08-Dec-2016,1612-00491,0.00,64.44,R,Afbedel Ltd,
Http://opendatacommunities.org/id/metropolitan-district-council/leeds,Leeds City Council as Accountable Body,31/12/2016,Social Services Pooled Budgets,Jcs For People With Learning Disabilitie,Third Party Payments,Day Centre,564,06-Dec-2016,1612-00492,0.00,938.56,R,Affinity Trust,
Http://opendatacommunities.org/id/metropolitan-district-council/leeds,Leeds City Council as Accountable Body,31/12/2016,Social Services Pooled Budgets,Jcs For People With Learning Disabilitie,Third Party Payments,Home Care,568,06-Dec-2016,1612-00493,0.00,454.95,R,Affinity Trust,
Http://opendatacommunities.org/id/metropolitan-district-council/leeds,Leeds City Council as Accountable Body,31/12/2016,Social Services Pooled Budgets,Jcs For People With Learning Disabilitie,Third Party Payments,Day Centre,564,06-Dec-2016,1612-00494,0.00,3857.60,R,Affinity Trust,
Http://opendatacommunities.org/id/metropolitan-district-council/leeds,Leeds City Council as Accountable Body,31/12/2016,Social Services Pooled Budgets,Jcs For People With Learning Disabilitie,Third Party Payments,Home Care,568,06-Dec-2016,1612-00495,0.00,1534.27,R,Affinity Trust,
Http://opendatacommunities.org/id/metropolitan-district-council/leeds,Leeds City Council as Accountable Body,31/12/2016,Social Services Pooled Budgets,Jcs For People With Learning Disabilitie,Third Party Payments,Home Care,568,06-Dec-2016,1612-00496,0.00,754.20,R,Affinity Trust,
Http://opendatacommunities.org/id/metropolitan-district-council/leeds,Leeds City Council as Accountable Body,31/12/2016,Social Services Pooled Budgets,Jcs For People With Learning Disabilitie,Third Party Payments,Home Care,568,06-Dec-2016,1612-00497,0.00,1433.95,R,Affinity Trust,
Http://opendatacommunities.org/id/metropolitan-district-council/leeds,Leeds City Council as Accountable Body,31/12/2016,Social Services Pooled Budgets,Jcs For People With Learning Disabilitie,Third Party Payments,Home Care,568,06-Dec-2016,1612-00498,0.00,1710.00,R,Affinity Trust,
Http://opendatacommunities.org/id/metropolitan-district-council/leeds,Leeds City Council as Accountable Body,31/12/2016,Social Services Pooled Budgets,Jcs For People With Learning Disabilitie,Third Party Payments,Home Care,568,06-Dec-2016,1612-00499,0.00,1005.60,R,Affinity Trust,
Http://opendatacommunities.org/id/metropolitan-district-council/leeds,Leeds City Council as Accountable Body,31/12/2016,Social Services Pooled Budgets,Jcs For People With Learning Disabilitie,Third Party Payments,Home Care,568,06-Dec-2016,1612-00500,0.00,360.00,R,Affinity Trust,
Http://opendatacommunities.org/id/metropolitan-district-council/leeds,Leeds City Council as Accountable Body,31/12/2016,Social Services Pooled Budgets,Jcs For People With Learning Disabilitie,Third Party Payments,Home Care,568,06-Dec-2016,1612-00501,0.00,246.43,R,Affinity Trust,
Http://opendatacommunities.org/id/metropolitan-district-council/leeds,Leeds City Council as Accountable Body,31/12/2016,Social Services Pooled Budgets,Jcs For People With Learning Disabilitie,Third Party Payments,Home Care,568,06-Dec-2016,1612-00502,0.00,1206.72,R,Affinity Trust,
Http://opendatacommunities.org/id/metropolitan-district-council/leeds,Leeds City Council as Accountable Body,31/12/2016,Social Services Pooled Budgets,Jcs For People With Learning Disabilitie,Third Party Payments,Day Centre,564,06-Dec-2016,1612-00503,0.00,648.95,R,Affinity Trust,
Http://opendatacommunities.org/id/metropolitan-district-council/leeds,Leeds City Council as Accountable Body,31/12/2016,Social Services Pooled Budgets,Jcs For People With Learning Disabilitie,Third Party Payments,Day Centre,564,06-Dec-2016,1612-00504,0.00,2346.40,R,Affinity Trust,
Http://opendatacommunities.org/id/metropolitan-district-council/leeds,Leeds City Council as Accountable Body,31/12/2016,Social Services Pooled Budgets,Jcs For People With Learning Disabilitie,Third Party Payments,Day Centre,564,06-Dec-2016,1612-00505,0.00,1350.00,R,Affinity Trust,
Http://opendatacommunities.org/id/metropolitan-district-council/leeds,Leeds City Council as Accountable Body,31/12/2016,Social Services Pooled Budgets,Jcs For People With Learning Disabilitie,Third Party Payments,Home Care,568,06-Dec-2016,1612-00506,0.00,671.16,R,Affinity Trust,
Http://opendatacommunities.org/id/metropolitan-district-council/leeds,Leeds City Council as Accountable Body,31/12/2016,Social Services Pooled Budgets,Jcs For People With Learning Disabilitie,Third Party Payments,Home Care,568,06-Dec-2016,1612-00507,0.00,1518.00,R,Affinity Trust,
Http://opendatacommunities.org/id/metropolitan-district-council/leeds,Leeds City Council as Accountable Body,31/12/2016,Social Services Pooled Budgets,Jcs For People With Learning Disabilitie,Third Party Payments,Home Care,568,06-Dec-2016,1612-00508,0.00,1211.04,R,Affinity Trust,
Http://opendatacommunities.org/id/metropolitan-district-council/leeds,Leeds City Council as Accountable Body,31/12/2016,Social Services Pooled Budgets,Jcs For People With Learning Disabilitie,Third Party Payments,Home Care,568,06-Dec-2016,1612-00509,0.00,3311.61,R,Affinity Trust,
Http://opendatacommunities.org/id/metropolitan-district-council/leeds,Leeds City Council as Accountable Body,31/12/2016,Social Services Pooled Budgets,Jcs For People With Learning Disabilitie,Third Party Payments,Home Care,568,06-Dec-2016,1612-00510,0.00,511.36,R,Affinity Trust,
Http://opendatacommunities.org/id/metropolitan-district-council/leeds,Leeds City Council as Accountable Body,31/12/2016,Social Services Pooled Budgets,Jcs For People With Learning Disabilitie,Third Party Payments,Home Care,568,06-Dec-2016,1612-00511,0.00,1122.60,R,Affinity Trust,
Http://opendatacommunities.org/id/metropolitan-district-council/leeds,Leeds City Council as Accountable Body,31/12/2016,Social Services Pooled Budgets,Jcs For People With Learning Disabilitie,Third Party Payments,Home Care,568,06-Dec-2016,1612-00512,0.00,706.44,R,Affinity Trust,
Http://opendatacommunities.org/id/metropolitan-district-council/leeds,Leeds City Council as Accountable Body,31/12/2016,Social Services Pooled Budgets,Jcs For People With Learning Disabilitie,Third Party Payments,Day Centre,564,06-Dec-2016,1612-00513,0.00,1080.00,R,Affinity Trust,
Http://opendatacommunities.org/id/metropolitan-district-council/leeds,Leeds City Council as Accountable Body,31/12/2016,Social Services Pooled Budgets,Jcs For People With Learning Disabilitie,Third Party Payments,Home Care,568,06-Dec-2016,1612-00514,0.00,1050.00,R,Affinity Trust,
Http://opendatacommunities.org/id/metropolitan-district-council/leeds,Leeds City Council as Accountable Body,31/12/2016,Social Services Pooled Budgets,Jcs For People With Learning Disabilitie,Third Party Payments,Home Care,568,06-Dec-2016,1612-00515,0.00,900.00,R,Affinity Trust,
Http://opendatacommunities.org/id/metropolitan-district-council/leeds,Leeds City Council as Accountable Body,31/12/2016,Social Services Pooled Budgets,Jcs For People With Learning Disabilitie,Third Party Payments,Home Care,568,06-Dec-2016,1612-00516,0.00,2572.80,R,Affinity Trust,
Http://opendatacommunities.org/id/metropolitan-district-council/leeds,Leeds City Council as Accountable Body,31/12/2016,Social Services Pooled Budgets,Jcs For People With Learning Disabilitie,Third Party Payments,Day Centre,564,06-Dec-2016,1612-00517,0.00,1080.00,R,Affinity Trust,
Http://opendatacommunities.org/id/metropolitan-district-council/leeds,Leeds City Council as Accountable Body,31/12/2016,Social Services Pooled Budgets,Jcs For People With Learning Disabilitie,Third Party Payments,Home Care,568,06-Dec-2016,1612-00518,0.00,1050.00,R,Affinity Trust,
Http://opendatacommunities.org/id/metropolitan-district-council/leeds,Leeds City Council as Accountable Body,31/12/2016,Social Services Pooled Budgets,Jcs For People With Learning Disabilitie,Third Party Payments,Home Care,568,06-Dec-2016,1612-00519,0.00,900.00,R,Affinity Trust,
Http://opendatacommunities.org/id/metropolitan-district-council/leeds,Leeds City Council as Accountable Body,31/12/2016,Social Services Pooled Budgets,Jcs For People With Learning Disabilitie,Third Party Payments,Home Care,568,06-Dec-2016,1612-00520,0.00,2572.80,R,Affinity Trust,
Http://opendatacommunities.org/id/metropolitan-district-council/leeds,Leeds City Council as Accountable Body,31/12/2016,Social Services Pooled Budgets,Jcs For People With Learning Disabilitie,Third Party Payments,Home Care,568,06-Dec-2016,1612-00521,0.00,2011.20,R,Affinity Trust,
Http://opendatacommunities.org/id/metropolitan-district-council/leeds,Leeds City Council as Accountable Body,31/12/2016,Social Services Pooled Budgets,Jcs For People With Learning Disabilitie,Third Party Payments,Day Centre,564,06-Dec-2016,1612-00522,0.00,938.56,R,Affinity Trust,
Http://opendatacommunities.org/id/metropolitan-district-council/leeds,Leeds City Council as Accountable Body,31/12/2016,Social Services Pooled Budgets,Jcs For People With Learning Disabilitie,Third Party Payments,Home Care,568,06-Dec-2016,1612-00523,0.00,525.72,R,Affinity Trust,
Http://opendatacommunities.org/id/metropolitan-district-council/leeds,Leeds City Council as Accountable Body,31/12/2016,Social Services Pooled Budgets,Jcs For People With Learning Disabilitie,Third Party Payments,Day Centre,564,06-Dec-2016,1612-00524,0.00,4052.48,R,Affinity Trust,
Http://opendatacommunities.org/id/metropolitan-district-council/leeds,Leeds City Council as Accountable Body,31/12/2016,Social Services Pooled Budgets,Jcs For People With Learning Disabilitie,Third Party Payments,Home Care,568,06-Dec-2016,1612-00525,0.00,1599.98,R,Affinity Trust,
Http://opendatacommunities.org/id/metropolitan-district-council/leeds,Leeds City Council as Accountable Body,31/12/2016,Social Services Pooled Budgets,Jcs For People With Learning Disabilitie,Third Party Payments,Home Care,568,06-Dec-2016,1612-00526,0.00,804.48,R,Affinity Trust,
Http://opendatacommunities.org/id/metropolitan-district-council/leeds,Leeds City Council as Accountable Body,31/12/2016,Social Services Pooled Budgets,Jcs For People With Learning Disabilitie,Third Party Payments,Home Care,568,06-Dec-2016,1612-00527,0.00,1504.72,R,Affinity Trust,
Http://opendatacommunities.org/id/metropolitan-district-council/leeds,Leeds City Council as Accountable Body,31/12/2016,Social Services Pooled Budgets,Jcs For People With Learning Disabilitie,Third Party Payments,Home Care,568,06-Dec-2016,1612-00528,0.00,1800.00,R,Affinity Trust,
Http://opendatacommunities.org/id/metropolitan-district-council/leeds,Leeds City Council as Accountable Body,31/12/2016,Social Services Pooled Budgets,Jcs For People With Learning Disabilitie,Third Party Payments,Home Care,568,06-Dec-2016,1612-00529,0.00,754.20,R,Affinity Trust,
Http://opendatacommunities.org/id/metropolitan-district-council/leeds,Leeds City Council as Accountable Body,31/12/2016,Social Services Pooled Budgets,Jcs For People With Learning Disabilitie,Third Party Payments,Home Care,568,06-Dec-2016,1612-00530,0.00,360.00,R,Affinity Trust,
Http://opendatacommunities.org/id/metropolitan-district-council/leeds,Leeds City Council as Accountable Body,31/12/2016,Social Services Pooled Budgets,Jcs For People With Learning Disabilitie,Third Party Payments,Home Care,568,06-Dec-2016,1612-00531,0.00,1206.72,R,Affinity Trust,
Http://opendatacommunities.org/id/metropolitan-district-council/leeds,Leeds City Council as Accountable Body,31/12/2016,Social Services Pooled Budgets,Jcs For People With Learning Disabilitie,Third Party Payments,Day Centre,564,06-Dec-2016,1612-00532,0.00,714.78,R,Affinity Trust,
Http://opendatacommunities.org/id/metropolitan-district-council/leeds,Leeds City Council as Accountable Body,31/12/2016,Social Services Pooled Budgets,Jcs For People With Learning Disabilitie,Third Party Payments,Day Centre,564,06-Dec-2016,1612-00533,0.00,2346.40,R,Affinity Trust,
Http://opendatacommunities.org/id/metropolitan-district-council/leeds,Leeds City Council as Accountable Body,31/12/2016,Social Services Pooled Budgets,Jcs For People With Learning Disabilitie,Third Party Payments,Day Centre,564,06-Dec-2016,1612-00534,0.00,1440.00,R,Affinity Trust,
Http://opendatacommunities.org/id/metropolitan-district-council/leeds,Leeds City Council as Accountable Body,31/12/2016,Social Services Pooled Budgets,Jcs For People With Learning Disabilitie,Third Party Payments,Day Centre,564,06-Dec-2016,1612-00535,0.00,1080.00,R,Affinity Trust,
Http://opendatacommunities.org/id/metropolitan-district-council/leeds,Leeds City Council as Accountable Body,31/12/2016,Social Services Pooled Budgets,Jcs For People With Learning Disabilitie,Third Party Payments,Home Care,568,06-Dec-2016,1612-00536,0.00,697.50,R,Affinity Trust,
Http://opendatacommunities.org/id/metropolitan-district-council/leeds,Leeds City Council as Accountable Body,31/12/2016,Social Services Pooled Budgets,Jcs For People With Learning Disabilitie,Third Party Payments,Home Care,568,06-Dec-2016,1612-00537,0.00,810.00,R,Affinity Trust,
Http://opendatacommunities.org/id/metropolitan-district-council/leeds,Leeds City Council as Accountable Body,31/12/2016,Social Services Pooled Budgets,Jcs For People With Learning Disabilitie,Third Party Payments,Home Care,568,06-Dec-2016,1612-00538,0.00,2347.80,R,Affinity Trust,
Http://opendatacommunities.org/id/metropolitan-district-council/leeds,Leeds City Council as Accountable Body,31/12/2016,Social Services Pooled Budgets,Jcs For People With Learning Disabilitie,Third Party Payments,Home Care,568,06-Dec-2016,1612-00539,0.00,1910.64,R,Affinity Trust,
Http://opendatacommunities.org/id/metropolitan-district-council/leeds,Leeds City Council as Accountable Body,31/12/2016,Social Services Pooled Budgets,Jcs For People With Learning Disabilitie,Third Party Payments,Day Centre,564,06-Dec-2016,1612-00540,0.00,938.56,R,Affinity Trust,
Http://opendatacommunities.org/id/metropolitan-district-council/leeds,Leeds City Council as Accountable Body,31/12/2016,Social Services Pooled Budgets,Jcs For People With Learning Disabilitie,Third Party Payments,Home Care,568,06-Dec-2016,1612-00541,0.00,454.95,R,Affinity Trust,
Http://opendatacommunities.org/id/metropolitan-district-council/leeds,Leeds City Council as Accountable Body,31/12/2016,Social Services Pooled Budgets,Jcs For People With Learning Disabilitie,Third Party Payments,Day Centre,564,06-Dec-2016,1612-00542,0.00,3825.12,R,Affinity Trust,
Http://opendatacommunities.org/id/metropolitan-district-council/leeds,Leeds City Council as Accountable Body,31/12/2016,Social Services Pooled Budgets,Jcs For People With Learning Disabilitie,Third Party Payments,Home Care,568,06-Dec-2016,1612-00543,0.00,1534.27,R,Affinity Trust,
Http://opendatacommunities.org/id/metropolitan-district-council/leeds,Leeds City Council as Accountable Body,31/12/2016,Social Services Pooled Budgets,Jcs For People With Learning Disabilitie,Third Party Payments,Home Care,568,06-Dec-2016,1612-00544,0.00,754.20,R,Affinity Trust,
Http://opendatacommunities.org/id/metropolitan-district-council/leeds,Leeds City Council as Accountable Body,31/12/2016,Social Services Pooled Budgets,Jcs For People With Learning Disabilitie,Third Party Payments,Home Care,568,06-Dec-2016,1612-00545,0.00,1433.95,R,Affinity Trust,
Http://opendatacommunities.org/id/metropolitan-district-council/leeds,Leeds City Council as Accountable Body,31/12/2016,Social Services Pooled Budgets,Jcs For People With Learning Disabilitie,Third Party Payments,Home Care,568,06-Dec-2016,1612-00546,0.00,838.00,R,Affinity Trust,
Http://opendatacommunities.org/id/metropolitan-district-council/leeds,Leeds City Council as Accountable Body,31/12/2016,Social Services Pooled Budgets,Jcs For People With Learning Disabilitie,Third Party Payments,Home Care,568,06-Dec-2016,1612-00547,0.00,360.00,R,Affinity Trust,
Http://opendatacommunities.org/id/metropolitan-district-council/leeds,Leeds City Council as Accountable Body,31/12/2016,Social Services Pooled Budgets,Jcs For People With Learning Disabilitie,Third Party Payments,Home Care,568,06-Dec-2016,1612-00548,0.00,301.68,R,Affinity Trust,
Http://opendatacommunities.org/id/metropolitan-district-council/leeds,Leeds City Council as Accountable Body,31/12/2016,Social Services Pooled Budgets,Jcs For People With Learning Disabilitie,Third Party Payments,Day Centre,564,06-Dec-2016,1612-00549,0.00,648.95,R,Affinity Trust,
Http://opendatacommunities.org/id/metropolitan-district-council/leeds,Leeds City Council as Accountable Body,31/12/2016,Social Services Pooled Budgets,Jcs For People With Learning Disabilitie,Third Party Payments,Day Centre,564,06-Dec-2016,1612-00550,0.00,2229.08,R,Affinity Trust,
Http://opendatacommunities.org/id/metropolitan-district-council/leeds,Leeds City Council as Accountable Body,31/12/2016,Social Services Pooled Budgets,Jcs For People With Learning Disabilitie,Third Party Payments,Day Centre,564,06-Dec-2016,1612-00551,0.00,990.00,R,Affinity Trust,
Http://opendatacommunities.org/id/metropolitan-district-council/leeds,Leeds City Council as Accountable Body,31/12/2016,Social Services Pooled Budgets,Jcs For People With Learning Disabilitie,Third Party Payments,Home Care,568,06-Dec-2016,1612-00552,0.00,990.76,R,Affinity Trust,
Http://opendatacommunities.org/id/metropolitan-district-council/leeds,Leeds City Council as Accountable Body,31/12/2016,Social Services Pooled Budgets,Jcs For People With Learning Disabilitie,Third Party Payments,Home Care,568,06-Dec-2016,1612-00553,0.00,719.10,R,Affinity Trust,
Http://opendatacommunities.org/id/metropolitan-district-council/leeds,Leeds City Council as Accountable Body,31/12/2016,Social Services Pooled Budgets,Jcs For People With Learning Disabilitie,Third Party Payments,Home Care,568,06-Dec-2016,1612-00554,0.00,382.50,R,Affinity Trust,
Http://opendatacommunities.org/id/metropolitan-district-council/leeds,Leeds City Council as Accountable Body,31/12/2016,Social Services Pooled Budgets,Jcs For People With Learning Disabilitie,Third Party Payments,Home Care,568,06-Dec-2016,1612-00555,0.00,1342.32,R,Affinity Trust,
Http://opendatacommunities.org/id/metropolitan-district-council/leeds,Leeds City Council as Accountable Body,31/12/2016,Social Services Pooled Budgets,Jcs For People With Learning Disabilitie,Third Party Payments,Home Care,568,06-Dec-2016,1612-00556,0.00,655.18,R,Affinity Trust,
Http://opendatacommunities.org/id/metropolitan-district-council/leeds,Leeds City Council as Accountable Body,31/12/2016,Social Services Pooled Budgets,Jcs For People With Learning Disabilitie,Third Party Payments,Home Care,568,06-Dec-2016,1612-00557,0.00,240.00,R,Affinity Trust,
Http://opendatacommunities.org/id/metropolitan-district-council/leeds,Leeds City Council as Accountable Body,31/12/2016,Social Services Pooled Budgets,Jcs For People With Learning Disabilitie,Third Party Payments,Home Care,568,06-Dec-2016,1612-00558,0.00,671.16,R,Affinity Trust,
Http://opendatacommunities.org/id/metropolitan-district-council/leeds,Leeds City Council as Accountable Body,31/12/2016,Social Services Pooled Budgets,Jcs For People With Learning Disabilitie,Third Party Payments,Home Care,568,06-Dec-2016,1612-00559,0.00,1518.00,R,Affinity Trust,
Http://opendatacommunities.org/id/metropolitan-district-council/leeds,Leeds City Council as Accountable Body,31/12/2016,Social Services Pooled Budgets,Jcs For People With Learning Disabilitie,Third Party Payments,Home Care,568,06-Dec-2016,1612-00560,0.00,1211.04,R,Affinity Trust,
Http://opendatacommunities.org/id/metropolitan-district-council/leeds,Leeds City Council as Accountable Body,31/12/2016,Social Services Pooled Budgets,Jcs For People With Learning Disabilitie,Third Party Payments,Home Care,568,06-Dec-2016,1612-00561,0.00,279.65,R,Affinity Trust,
Http://opendatacommunities.org/id/metropolitan-district-council/leeds,Leeds City Council as Accountable Body,31/12/2016,Social Services Pooled Budgets,Jcs For People With Learning Disabilitie,Third Party Payments,Home Care,568,06-Dec-2016,1612-00562,0.00,1446.19,R,Affinity Trust,
Http://opendatacommunities.org/id/metropolitan-district-council/leeds,Leeds City Council as Accountable Body,31/12/2016,Social Services Pooled Budgets,Jcs For People With Learning Disabilitie,Third Party Payments,Home Care,568,06-Dec-2016,1612-00563,0.00,127.84,R,Affinity Trust,
Http://opendatacommunities.org/id/metropolitan-district-council/leeds,Leeds City Council as Accountable Body,31/12/2016,Social Services Pooled Budgets,Jcs For People With Learning Disabilitie,Third Party Payments,Home Care,568,06-Dec-2016,1612-00564,0.00,575.28,R,Affinity Trust,
Http://opendatacommunities.org/id/metropolitan-district-council/leeds,Leeds City Council as Accountable Body,31/12/2016,Social Services Pooled Budgets,Jcs For People With Learning Disabilitie,Third Party Payments,Home Care,568,06-Dec-2016,1612-00565,0.00,479.40,R,Affinity Trust,
Http://opendatacommunities.org/id/metropolitan-district-council/leeds,Leeds City Council as Accountable Body,31/12/2016,Social Services Pooled Budgets,Jcs For People With Learning Disabilitie,Third Party Payments,Home Care,568,06-Dec-2016,1612-00566,0.00,408.00,R,Affinity Trust,
Http://opendatacommunities.org/id/metropolitan-district-council/leeds,Leeds City Council as Accountable Body,31/12/2016,Social Services Pooled Budgets,Jcs For People With Learning Disabilitie,Third Party Payments,Home Care,568,06-Dec-2016,1612-00567,0.00,1150.56,R,Affinity Trust,
Http://opendatacommunities.org/id/metropolitan-district-council/leeds,Leeds City Council as Accountable Body,31/12/2016,Social Services Pooled Budgets,Jcs For People With Learning Disabilitie,Third Party Payments,Home Care,568,06-Dec-2016,1612-00568,0.00,2408.99,R,Affinity Trust,
Http://opendatacommunities.org/id/metropolitan-district-council/leeds,Leeds City Council as Accountable Body,31/12/2016,Social Services Pooled Budgets,Jcs For People With Learning Disabilitie,Third Party Payments,Home Care,568,06-Dec-2016,1612-00569,0.00,511.36,R,Affinity Trust,
Http://opendatacommunities.org/id/metropolitan-district-council/leeds,Leeds City Council as Accountable Body,31/12/2016,Social Services Pooled Budgets,Jcs For People With Learning Disabilitie,Third Party Payments,Home Care,568,06-Dec-2016,1612-00570,0.00,127.84,R,Affinity Trust,
Http://opendatacommunities.org/id/metropolitan-district-council/leeds,Leeds City Council as Accountable Body,31/12/2016,Social Services Pooled Budgets,Jcs For People With Learning Disabilitie,Third Party Payments,Home Care,568,06-Dec-2016,1612-00571,0.00,408.64,R,Affinity Trust,
Http://opendatacommunities.org/id/metropolitan-district-council/leeds,Leeds City Council as Accountable Body,31/12/2016,Social Services Pooled Budgets,Jcs For People With Learning Disabilitie,Third Party Payments,Home Care,568,06-Dec-2016,1612-00572,0.00,588.70,R,Affinity Trust,
Http://opendatacommunities.org/id/metropolitan-district-council/leeds,Leeds City Council as Accountable Body,31/12/2016,Social Services Pooled Budgets,Jcs For People With Learning Disabilitie,Third Party Payments,Home Care,568,06-Dec-2016,1612-00573,0.00,191.76,R,Affinity Trust,
Http://opendatacommunities.org/id/metropolitan-district-council/leeds,Leeds City Council as Accountable Body,31/12/2016,Social Services Pooled Budgets,Jcs For People With Learning Disabilitie,Third Party Payments,Home Care,568,06-Dec-2016,1612-00574,0.00,982.77,R,Affinity Trust,
Http://opendatacommunities.org/id/metropolitan-district-council/leeds,Leeds City Council as Accountable Body,31/12/2016,Social Services Pooled Budgets,Jcs For People With Learning Disabilitie,Third Party Payments,Home Care,568,06-Dec-2016,1612-00575,0.00,1166.54,R,Affinity Trust,
Http://opendatacommunities.org/id/metropolitan-district-council/leeds,Leeds City Council as Accountable Body,31/12/2016,Social Services Pooled Budgets,Jcs For People With Learning Disabilitie,Third Party Payments,Home Care,568,06-Dec-2016,1612-00576,0.00,225.00,R,Affinity Trust,
Http://opendatacommunities.org/id/metropolitan-district-council/leeds,Leeds City Council as Accountable Body,31/12/2016,Social Services Pooled Budgets,Jcs For People With Learning Disabilitie,Third Party Payments,Home Care,568,06-Dec-2016,1612-00577,0.00,886.89,R,Affinity Trust,
Http://opendatacommunities.org/id/metropolitan-district-council/leeds,Leeds City Council as Accountable Body,31/12/2016,Social Services Pooled Budgets,Jcs For People With Learning Disabilitie,Third Party Payments,Home Care,568,06-Dec-2016,1612-00578,0.00,687.14,R,Affinity Trust,
Http://opendatacommunities.org/id/metropolitan-district-council/leeds,Leeds City Council as Accountable Body,31/12/2016,Social Services Pooled Budgets,Jcs For People With Learning Disabilitie,Third Party Payments,Home Care,568,06-Dec-2016,1612-00579,0.00,240.00,R,Affinity Trust,
Http://opendatacommunities.org/id/metropolitan-district-council/leeds,Leeds City Council as Accountable Body,31/12/2016,Social Services Pooled Budgets,Jcs For People With Learning Disabilitie,Third Party Payments,Home Care,568,06-Dec-2016,1612-00580,0.00,767.04,R,Affinity Trust,
Http://opendatacommunities.org/id/metropolitan-district-council/leeds,Leeds City Council as Accountable Body,31/12/2016,Social Services Pooled Budgets,Jcs For People With Learning Disabilitie,Third Party Payments,Home Care,568,06-Dec-2016,1612-00581,0.00,1452.00,R,Affinity Trust,
Http://opendatacommunities.org/id/metropolitan-district-council/leeds,Leeds City Council as Accountable Body,31/12/2016,Social Services Pooled Budgets,Jcs For People With Learning Disabilitie,Third Party Payments,Home Care,568,06-Dec-2016,1612-00582,0.00,1211.04,R,Affinity Trust,
Http://opendatacommunities.org/id/metropolitan-district-council/leeds,Leeds City Council as Accountable Body,31/12/2016,Social Services Pooled Budgets,Jcs For People With Learning Disabilitie,Third Party Payments,Home Care,568,06-Dec-2016,1612-00583,0.00,255.68,R,Affinity Trust,
Http://opendatacommunities.org/id/metropolitan-district-council/leeds,Leeds City Council as Accountable Body,31/12/2016,Social Services Pooled Budgets,Jcs For People With Learning Disabilitie,Third Party Payments,Home Care,568,06-Dec-2016,1612-00584,0.00,1086.64,R,Affinity Trust,
Http://opendatacommunities.org/id/metropolitan-district-council/leeds,Leeds City Council as Accountable Body,31/12/2016,Social Services Pooled Budgets,Jcs For People With Learning Disabilitie,Third Party Payments,Home Care,568,06-Dec-2016,1612-00585,0.00,447.44,R,Affinity Trust,
Http://opendatacommunities.org/id/metropolitan-district-council/leeds,Leeds City Council as Accountable Body,31/12/2016,Social Services Pooled Budgets,Jcs For People With Learning Disabilitie,Third Party Payments,Home Care,568,06-Dec-2016,1612-00586,0.00,559.30,R,Affinity Trust,
Http://opendatacommunities.org/id/metropolitan-district-council/leeds,Leeds City Council as Accountable Body,31/12/2016,Social Services Pooled Budgets,Jcs For People With Learning Disabilitie,Third Party Payments,Home Care,568,06-Dec-2016,1612-00587,0.00,306.00,R,Affinity Trust,
Http://opendatacommunities.org/id/metropolitan-district-council/leeds,Leeds City Council as Accountable Body,31/12/2016,Social Services Pooled Budgets,Jcs For People With Learning Disabilitie,Third Party Payments,Home Care,568,06-Dec-2016,1612-00588,0.00,2492.88,R,Affinity Trust,
Http://opendatacommunities.org/id/metropolitan-district-council/leeds,Leeds City Council as Accountable Body,31/12/2016,Social Services Pooled Budgets,Jcs For People With Learning Disabilitie,Third Party Payments,Home Care,568,06-Dec-2016,1612-00589,0.00,511.36,R,Affinity Trust,
Http://opendatacommunities.org/id/metropolitan-district-council/leeds,Leeds City Council as Accountable Body,31/12/2016,Social Services Pooled Budgets,Jcs For People With Learning Disabilitie,Third Party Payments,Home Care,568,06-Dec-2016,1612-00590,0.00,127.84,R,Affinity Trust,
Http://opendatacommunities.org/id/metropolitan-district-council/leeds,Leeds City Council as Accountable Body,31/12/2016,Social Services Pooled Budgets,Jcs For People With Learning Disabilitie,Third Party Payments,Home Care,568,06-Dec-2016,1612-00591,0.00,306.48,R,Affinity Trust,
Http://opendatacommunities.org/id/metropolitan-district-council/leeds,Leeds City Council as Accountable Body,31/12/2016,Social Services Pooled Budgets,Jcs For People With Learning Disabilitie,Third Party Payments,Home Care,568,06-Dec-2016,1612-00592,0.00,941.92,R,Affinity Trust,
Http://opendatacommunities.org/id/metropolitan-district-council/leeds,Leeds City Council as Accountable Body,31/12/2016,Social Services Pooled Budgets,Jcs For People With Learning Disabilitie,Third Party Payments,Home Care,568,06-Dec-2016,1612-00593,0.00,958.80,R,Affinity Trust,
Http://opendatacommunities.org/id/metropolitan-district-council/leeds,Leeds City Council as Accountable Body,31/12/2016,Social Services Pooled Budgets,Jcs For People With Learning Disabilitie,Third Party Payments,Home Care,568,09-Dec-2016,1612-00594,0.00,1530.00,R,Affinity Trust,
Http://opendatacommunities.org/id/metropolitan-district-council/leeds,Leeds City Council as Accountable Body,31/12/2016,Social Services Pooled Budgets,Jcs For People With Learning Disabilitie,Third Party Payments,Home Care,568,09-Dec-2016,1612-00595,0.00,191.76,R,Affinity Trust,
Http://opendatacommunities.org/id/metropolitan-district-council/leeds,Leeds City Council as Accountable Body,31/12/2016,Social Services Pooled Budgets,Jcs For People With Learning Disabilitie,Third Party Payments,Home Care,568,13-Dec-2016,1612-00596,0.00,1365.00,R,Affinity Trust,
Http://opendatacommunities.org/id/metropolitan-district-council/leeds,Leeds City Council as Accountable Body,31/12/2016,Social Services Pooled Budgets,Jcs For People With Learning Disabilitie,Third Party Payments,Home Care,568,13-Dec-2016,1612-00597,0.00,1029.60,R,Affinity Trust,
Http://opendatacommunities.org/id/metropolitan-district-council/leeds,Leeds City Council as Accountable Body,31/12/2016,Social Services Pooled Budgets,Jcs For People With Learning Disabilitie,Third Party Payments,Home Care,568,13-Dec-2016,1612-00598,0.00,933.30,R,Affinity Trust,
Http://opendatacommunities.org/id/metropolitan-district-council/leeds,Leeds City Council as Accountable Body,31/12/2016,Social Services Pooled Budgets,Jcs For People With Learning Disabilitie,Third Party Payments,Home Care,568,13-Dec-2016,1612-00599,0.00,2582.20,R,Affinity Trust,
Http://opendatacommunities.org/id/metropolitan-district-council/leeds,Leeds City Council as Accountable Body,31/12/2016,Social Services Pooled Budgets,Jcs For People With Learning Disabilitie,Third Party Payments,Home Care,568,14-Dec-2016,1612-00600,0.00,336.40,R,Affinity Trust,
Http://opendatacommunities.org/id/metropolitan-district-council/leeds,Leeds City Council,31/12/2016,Adult Social Care,Services For Older People Under 65 P/Dis,Third Party Payments,Home Care,568,23-Dec-2016,1612-00601,0.00,775.03,R,Affinity Trust,
Http://opendatacommunities.org/id/metropolitan-district-council/leeds,Leeds City Council,31/12/2016,Adult Social Care,Services For Adults Under 65 Mental/Dis,Third Party Payments,Home Care,568,23-Dec-2016,1612-00602,0.00,79.90,R,Affinity Trust,
Http://opendatacommunities.org/id/metropolitan-district-council/leeds,Leeds City Council,31/12/2016,Adult Social Care,Services For Older People Under 65 P/Dis,Third Party Payments,Home Care,568,23-Dec-2016,1612-00603,0.00,319.60,R,Affinity Trust,
Http://opendatacommunities.org/id/metropolitan-district-council/leeds,Leeds City Council,31/12/2016,Adult Social Care,Services For Older People Under 65 P/Dis,Third Party Payments,Home Care,568,23-Dec-2016,1612-00604,0.00,134.56,R,Affinity Trust,
Http://opendatacommunities.org/id/metropolitan-district-council/leeds,Leeds City Council,31/12/2016,Adult Social Care,Services For Older People Under 65 P/Dis,Third Party Payments,Home Care,568,23-Dec-2016,1612-00605,0.00,243.89,R,Affinity Trust,
Http://opendatacommunities.org/id/metropolitan-district-council/leeds,Leeds City Council,31/12/2016,Adult Social Care,Services For Older People - 65 And Over,Third Party Payments,Home Care,568,30-Dec-2016,1612-00606,0.00,1076.48,R,Affinity Trust,
Http://opendatacommunities.org/id/metropolitan-district-council/leeds,Leeds City Council,31/12/2016,Adult Social Care,Services For Older People Under 65 P/Dis,Third Party Payments,Home Care,568,30-Dec-2016,1612-00607,0.00,465.78,R,Affinity Trust,
Http://opendatacommunities.org/id/metropolitan-district-council/leeds,Leeds City Council,31/12/2016,Adult Social Care,Services For Older People Under 65 P/Dis,Third Party Payments,Home Care,568,30-Dec-2016,1612-00608,0.00,134.56,R,Affinity Trust,
Http://opendatacommunities.org/id/metropolitan-district-council/leeds,Leeds City Council,31/12/2016,Adult Social Care,Services For Older People Under 65 P/Dis,Third Party Payments,Home Care,568,30-Dec-2016,1612-00609,0.00,336.40,R,Affinity Trust,
Http://opendatacommunities.org/id/metropolitan-district-council/leeds,Leeds City Council as Accountable Body,31/12/2016,Social Services Pooled Budgets,Jcs For People With Learning Disabilitie,Third Party Payments,Sheltered Accommodation,569,14-Dec-2016,1612-00610,0.00,86768.76,R,Affinity Trust North Divisional Office,
Http://opendatacommunities.org/id/metropolitan-district-council/leeds,Leeds City Council,31/12/2016,Environment & Housing,Parks And Countryside  ,Transport,Hire Of Movable Plant & Machinery,315,14-Nov-2016,1612-00611,0.00,1575.00,R,Afi Uplift Ltd,Yes
Http://opendatacommunities.org/id/metropolitan-district-council/leeds,Leeds City Council,31/12/2016,Environment & Housing,Parks And Countryside  ,Transport,Hire Of Movable Plant & Machinery,315,14-Nov-2016,1612-00612,0.00,4387.10,R,Afi Uplift Ltd,Yes
Http://opendatacommunities.org/id/metropolitan-district-council/leeds,Leeds City Council,31/12/2016,Environment & Housing,Parks and Countryside,Employees,Training & Development,70,09-Dec-2016,1612-00613,0.00,153.00,R,Afi Uplift Ltd,
Http://opendatacommunities.org/id/metropolitan-district-council/leeds,Leeds City Council,31/12/2016,Environment & Housing,Strategic Housing Support,Supplies and Services,Other Hired And Contracted Services,265,19-Dec-2016,1612-00614,0.00,700.00,R,Afk Estates.,
Http://opendatacommunities.org/id/metropolitan-district-council/leeds,Leeds City Council,31/12/2016,Public Health,Public Health,Third Party Payments,Services Rendered By Voluntary Sector,505,02-Dec-2016,1612-00615,0.00,2710.00,R,Age Uk Leeds,
Http://opendatacommunities.org/id/metropolitan-district-council/leeds,Leeds City Council,31/12/2016,Environment & Housing,SP Contracts & SECC,Third Party Payments,Supporting Ppl - Block Gross Chargeable,514,23-Dec-2016,1612-00616,0.00,3957.68,R,Age Uk Leeds,
Http://opendatacommunities.org/id/metropolitan-district-council/leeds,Leeds City Council,31/12/2016,Childrens Services,Learning Skills & Universal,Supplies and Services,Other Hired And Contracted Services,265,30-Dec-2016,1612-00617,0.00,30.00,R,Age Uk Leeds,
Http://opendatacommunities.org/id/metropolitan-district-council/leeds,Leeds City Council,31/12/2016,Adult Social Care,Services For Older People - 65 And Over,Third Party Payments,Payments To Voluntary Organisations,561,30-Dec-2016,1612-00618,0.00,8024.75,R,Age Uk Leeds,
Http://opendatacommunities.org/id/metropolitan-district-council/leeds,Leeds City Council,31/12/2016,City Development,Libraries  Arts & Heritage,Supplies and Services,Bought In Professional Services,277,12-Dec-2016,1612-00619,0.00,2000.00,R,Agere Learning,
Http://opendatacommunities.org/id/metropolitan-district-council/leeds,Leeds City Council,31/12/2016,Adult Social Care,Services For Older People Under 65 P/Dis,Third Party Payments,Residential,580,14-Dec-2016,1612-00620,0.00,5598.40,R,Agricola House,
Http://opendatacommunities.org/id/metropolitan-district-council/leeds,Leeds City Council,31/12/2016,Citizens and Communities,Elections  Licensing and Registration,Income,Admissions  Booking Fees & Ticket Sales,933,15-Dec-2016,1612-00621,0.00,10.00,R,REDACTED PERSONAL DATA,
Http://opendatacommunities.org/id/metropolitan-district-council/leeds,Leeds City Council,31/12/2016,Childrens Services,Learning Skills & Universal,Supplies and Services,Training Allowances,257,23-Dec-2016,1612-00622,0.00,165.60,R,REDACTED PERSONAL DATA,
Http://opendatacommunities.org/id/metropolitan-district-council/leeds,Leeds City Council,31/12/2016,Childrens Services,Learning Skills & Universal,Supplies and Services,Training Allowances,257,30-Dec-2016,1612-00623,0.00,216.00,R,REDACTED PERSONAL DATA,
Http://opendatacommunities.org/id/metropolitan-district-council/leeds,Leeds City Council,31/12/2016,Childrens Services,Learning Skills & Universal,Supplies and Services,Training Allowances,257,02-Dec-2016,1612-00624,0.00,216.00,R,REDACTED PERSONAL DATA,
Http://opendatacommunities.org/id/metropolitan-district-council/leeds,Leeds City Council,31/12/2016,Childrens Services,Safeguarding Targeted & Specialist,Transfer Payments,16 Plus Top Up Allowance,625,02-Dec-2016,1612-00625,0.00,20.00,R,REDACTED PERSONAL DATA,
Http://opendatacommunities.org/id/metropolitan-district-council/leeds,Leeds City Council,31/12/2016,Childrens Services,Safeguarding Targeted & Specialist,Transfer Payments,Leaving Care Allowances,634,06-Dec-2016,1612-00626,0.00,50.00,R,REDACTED PERSONAL DATA,
Http://opendatacommunities.org/id/metropolitan-district-council/leeds,Leeds City Council,31/12/2016,Childrens Services,Safeguarding Targeted & Specialist,Transfer Payments,16 Plus Top Up Allowance,625,09-Dec-2016,1612-00627,0.00,20.00,R,REDACTED PERSONAL DATA,
Http://opendatacommunities.org/id/metropolitan-district-council/leeds,Leeds City Council,31/12/2016,Childrens Services,Learning Skills & Universal,Supplies and Services,Training Allowances,257,09-Dec-2016,1612-00628,0.00,216.00,R,REDACTED PERSONAL DATA,
Http://opendatacommunities.org/id/metropolitan-district-council/leeds,Leeds City Council,31/12/2016,Childrens Services,Safeguarding Targeted & Specialist,Transfer Payments,16 Plus Top Up Allowance,625,16-Dec-2016,1612-00629,0.00,20.00,R,REDACTED PERSONAL DATA,
Http://opendatacommunities.org/id/metropolitan-district-council/leeds,Leeds City Council,31/12/2016,Childrens Services,Learning Skills & Universal,Supplies and Services,Training Allowances,257,16-Dec-2016,1612-00630,0.00,216.00,R,REDACTED PERSONAL DATA,
Http://opendatacommunities.org/id/metropolitan-district-council/leeds,Leeds City Council,31/12/2016,Childrens Services,Learning Skills & Universal,Supplies and Services,Training Allowances,257,23-Dec-2016,1612-00631,0.00,216.00,R,REDACTED PERSONAL DATA,
Http://opendatacommunities.org/id/metropolitan-district-council/leeds,Leeds City Council,31/12/2016,Childrens Services,Safeguarding Targeted & Specialist,Transfer Payments,16 Plus Top Up Allowance,625,23-Dec-2016,1612-00632,0.00,60.00,R,REDACTED PERSONAL DATA,
Http://opendatacommunities.org/id/metropolitan-district-council/leeds,Leeds City Council,31/12/2016,Childrens Services,Learning Skills & Universal,Supplies and Services,Training Allowances,257,30-Dec-2016,1612-00633,0.00,216.00,R,REDACTED PERSONAL DATA,
Http://opendatacommunities.org/id/metropolitan-district-council/leeds,Leeds City Council as Accountable Body,31/12/2016,Social Services Pooled Budgets,Leeds Community Equip Store Pooled Budgt,Supplies and Services,Other Equipment,203,01-Dec-2016,1612-00634,0.00,2390.00,R,Aidapt Bathrooms Ltd,
Http://opendatacommunities.org/id/metropolitan-district-council/leeds,Leeds City Council as Accountable Body,31/12/2016,Social Services Pooled Budgets,Leeds Community Equip Store Pooled Budgt,Supplies and Services,Other Equipment,203,02-Dec-2016,1612-00635,0.00,62.51,R,Aidapt Bathrooms Ltd,
Http://opendatacommunities.org/id/metropolitan-district-council/leeds,Leeds City Council as Accountable Body,31/12/2016,Social Services Pooled Budgets,Leeds Community Equip Store Pooled Budgt,Supplies and Services,Other Equipment,203,02-Dec-2016,1612-00636,0.00,62.00,R,Aidapt Bathrooms Ltd,
Http://opendatacommunities.org/id/metropolitan-district-council/leeds,Leeds City Council as Accountable Body,31/12/2016,Social Services Pooled Budgets,Leeds Community Equip Store Pooled Budgt,Supplies and Services,Other Equipment,203,02-Dec-2016,1612-00637,0.00,62.00,R,Aidapt Bathrooms Ltd,
Http://opendatacommunities.org/id/metropolitan-district-council/leeds,Leeds City Council as Accountable Body,31/12/2016,Social Services Pooled Budgets,Leeds Community Equip Store Pooled Budgt,Supplies and Services,Other Equipment,203,09-Dec-2016,1612-00638,0.00,1254.00,R,Aidapt Bathrooms Ltd,
Http://opendatacommunities.org/id/metropolitan-district-council/leeds,Leeds City Council as Accountable Body,31/12/2016,Social Services Pooled Budgets,Leeds Community Equip Store Pooled Budgt,Supplies and Services,Other Equipment,203,16-Dec-2016,1612-00639,0.00,1316.00,R,Aidapt Bathrooms Ltd,
Http://opendatacommunities.org/id/metropolitan-district-council/leeds,Leeds City Council as Accountable Body,31/12/2016,Social Services Pooled Budgets,Leeds Community Equip Store Pooled Budgt,Supplies and Services,Other Equipment,203,21-Dec-2016,1612-00640,0.00,67.41,R,Aidapt Bathrooms Ltd,
Http://opendatacommunities.org/id/metropolitan-district-council/leeds,Leeds City Council as Accountable Body,31/12/2016,Social Services Pooled Budgets,Leeds Community Equip Store Pooled Budgt,Supplies and Services,Other Equipment,203,21-Dec-2016,1612-00641,0.00,178.00,R,Aidapt Bathrooms Ltd,
Http://opendatacommunities.org/id/metropolitan-district-council/leeds,Leeds City Council as Accountable Body,31/12/2016,Social Services Pooled Budgets,Leeds Community Equip Store Pooled Budgt,Supplies and Services,Other Equipment,203,23-Dec-2016,1612-00642,0.00,1050.00,R,Aidapt Bathrooms Ltd,
Http://opendatacommunities.org/id/metropolitan-district-council/leeds,Leeds City Council as Accountable Body,31/12/2016,Social Services Pooled Budgets,Leeds Community Equip Store Pooled Budgt,Supplies and Services,Other Equipment,203,28-Dec-2016,1612-00643,0.00,179.76,R,Aidapt Bathrooms Ltd,
Http://opendatacommunities.org/id/metropolitan-district-council/leeds,Leeds City Council as Accountable Body,31/12/2016,Social Services Pooled Budgets,Leeds Community Equip Store Pooled Budgt,Supplies and Services,Other Equipment,203,30-Dec-2016,1612-00644,0.00,449.40,R,Aidapt Bathrooms Ltd,
Http://opendatacommunities.org/id/metropolitan-district-council/leeds,Leeds City Council as Accountable Body,31/12/2016,Social Services Pooled Budgets,Jcs For People With Learning Disabilitie,Supplies and Services,Other Equipment,203,16-Dec-2016,1612-00645,0.00,467.00,R,Aidservice Ltd,
Http://opendatacommunities.org/id/metropolitan-district-council/leeds,Leeds City Council as Accountable Body,31/12/2016,Social Services Pooled Budgets,Jcs For People With Learning Disabilitie,Supplies and Services,Other Equipment,203,23-Dec-2016,1612-00646,0.00,355.00,R,Aidservice Ltd,
Http://opendatacommunities.org/id/metropolitan-district-council/leeds,Leeds City Council,31/12/2016,Childrens Services,Safeguarding Targeted & Specialist,Supplies and Services,Conference Meetings,253,09-Dec-2016,1612-00647,0.00,250.00,R,Aim Project,
Http://opendatacommunities.org/id/metropolitan-district-council/leeds,Leeds City Council,31/12/2016,City Development,Libraries  Arts & Heritage,Supplies and Services,Other Hired And Contracted Services,265,13-Dec-2016,1612-00648,0.00,930.00,R,Aimee Grundell,
Http://opendatacommunities.org/id/metropolitan-district-council/leeds,Leeds City Council,31/12/2016,Childrens Services,Learning Skills & Universal,Supplies and Services,Training Allowances,257,02-Dec-2016,1612-00649,0.00,216.00,R,REDACTED PERSONAL DATA,
Http://opendatacommunities.org/id/metropolitan-district-council/leeds,Leeds City Council,31/12/2016,Childrens Services,Learning Skills & Universal,Supplies and Services,Training Allowances,257,09-Dec-2016,1612-00650,0.00,216.00,R,REDACTED PERSONAL DATA,
Http://opendatacommunities.org/id/metropolitan-district-council/leeds,Leeds City Council,31/12/2016,Childrens Services,Learning Skills & Universal,Supplies and Services,Training Allowances,257,16-Dec-2016,1612-00651,0.00,216.00,R,REDACTED PERSONAL DATA,
Http://opendatacommunities.org/id/metropolitan-district-council/leeds,Leeds City Council,31/12/2016,Childrens Services,Learning Skills & Universal,Supplies and Services,Training Allowances,257,23-Dec-2016,1612-00652,0.00,216.00,R,REDACTED PERSONAL DATA,
Http://opendatacommunities.org/id/metropolitan-district-council/leeds,Leeds City Council,31/12/2016,Childrens Services,Learning Skills & Universal,Supplies and Services,Training Allowances,257,30-Dec-2016,1612-00653,0.00,216.00,R,REDACTED PERSONAL DATA,
Http://opendatacommunities.org/id/metropolitan-district-council/leeds,Leeds City Council,31/12/2016,Environment & Housing,Leeds Building Services,Supplies and Services,Operational Materials,205,06-Dec-2016,1612-00654,0.00,141.00,R,Air Conditioning Accessories,
Http://opendatacommunities.org/id/metropolitan-district-council/leeds,Leeds City Council,31/12/2016,Environment & Housing,Leeds Building Services,Supplies and Services,Operational Materials,205,06-Dec-2016,1612-00655,0.00,14.26,R,Air Conditioning Accessories,
Http://opendatacommunities.org/id/metropolitan-district-council/leeds,Leeds City Council,31/12/2016,Environment & Housing,Leeds Building Services,Supplies and Services,Operational Materials,205,06-Dec-2016,1612-00656,0.00,55.00,R,Air Conditioning Accessories,
Http://opendatacommunities.org/id/metropolitan-district-council/leeds,Leeds City Council,31/12/2016,Environment & Housing,Leeds Building Services,Supplies and Services,Operational Materials,205,07-Dec-2016,1612-00657,0.00,164.44,R,Air Conditioning Accessories,
Http://opendatacommunities.org/id/metropolitan-district-council/leeds,Leeds City Council,31/12/2016,Environment & Housing,Leeds Building Services,Supplies and Services,Operational Materials,205,07-Dec-2016,1612-00658,0.00,174.27,R,Air Conditioning Accessories,
Http://opendatacommunities.org/id/metropolitan-district-council/leeds,Leeds City Council,31/12/2016,Environment & Housing,Leeds Building Services,Supplies and Services,Operational Materials,205,19-Dec-2016,1612-00659,0.00,1144.85,R,Air Conditioning Accessories,
Http://opendatacommunities.org/id/metropolitan-district-council/leeds,Leeds City Council,31/12/2016,Environment & Housing,Leeds Building Services,Supplies and Services,Operational Materials,205,19-Dec-2016,1612-00660,0.00,164.37,R,Air Conditioning Accessories,
Http://opendatacommunities.org/id/metropolitan-district-council/leeds,Leeds City Council,31/12/2016,Environment & Housing,Leeds Building Services,Supplies and Services,Operational Materials,205,19-Dec-2016,1612-00661,0.00,113.57,R,Air Conditioning Accessories,
Http://opendatacommunities.org/id/metropolitan-district-council/leeds,Leeds City Council,31/12/2016,Environment & Housing,Leeds Building Services,Supplies and Services,Operational Materials,205,19-Dec-2016,1612-00662,0.00,213.14,R,Air Conditioning Accessories,
Http://opendatacommunities.org/id/metropolitan-district-council/leeds,Leeds City Council,31/12/2016,Environment & Housing,Leeds Building Services,Supplies and Services,Operational Materials,205,22-Dec-2016,1612-00663,0.00,61.25,R,Air Conditioning Accessories,
Http://opendatacommunities.org/id/metropolitan-district-council/leeds,Leeds City Council,31/12/2016,Civic Enterprise Leeds,Commercial Services  ,Supplies and Services,Operational Materials,205,04-Nov-2016,1612-00664,0.00,30.00,R,Air Force Pneumati,Yes
Http://opendatacommunities.org/id/metropolitan-district-council/leeds,Leeds City Council,31/12/2016,Civic Enterprise Leeds,Commercial Services  ,Supplies and Services,Operational Materials,205,25-Nov-2016,1612-00665,0.00,110.27,R,Air Force Pneumati,Yes
Http://opendatacommunities.org/id/metropolitan-district-council/leeds,Leeds City Council,31/12/2016,Environment & Housing,Leeds Building Services,Supplies and Services,Operational Materials,205,19-Dec-2016,1612-00666,0.00,56.65,R,Air Force Pneumatics & Hydraulics,
Http://opendatacommunities.org/id/metropolitan-district-council/leeds,Leeds City Council,31/12/2016,Environment & Housing,Environmental Health,Supplies and Services,Operational Furniture And Equipment,203,02-Dec-2016,1612-00667,0.00,8.94,R,Air Liquide Uk,
Http://opendatacommunities.org/id/metropolitan-district-council/leeds,Leeds City Council,31/12/2016,Environment & Housing,Environmental Health,Supplies and Services,Operational Furniture And Equipment,203,02-Dec-2016,1612-00668,0.00,13.63,R,Air Liquide Uk,
Http://opendatacommunities.org/id/metropolitan-district-council/leeds,Leeds City Council,31/12/2016,Environment & Housing,Environmental Health,Supplies and Services,Operational Furniture And Equipment,203,02-Dec-2016,1612-00669,0.00,71.52,R,Air Liquide Uk,
Http://opendatacommunities.org/id/metropolitan-district-council/leeds,Leeds City Council,31/12/2016,Environment & Housing,Leeds Building Services,Supplies and Services,Operational Materials,205,07-Dec-2016,1612-00670,0.00,152.40,R,Air Liquide Uk,
Http://opendatacommunities.org/id/metropolitan-district-council/leeds,Leeds City Council,31/12/2016,City Development,Economic Development,Supplies and Services,Grants To Businesses,243,21-Dec-2016,1612-00671,0.00,5000.00,R,Aire Auto Repairs,
Http://opendatacommunities.org/id/metropolitan-district-council/leeds,Leeds City Council,31/12/2016,Adult Social Care,Services For Adults Under 65 Mental/Dis,Third Party Payments,Residential,580,14-Dec-2016,1612-00672,0.00,6028.00,R,Aire House,
Http://opendatacommunities.org/id/metropolitan-district-council/leeds,Leeds City Council as Accountable Body,31/12/2016,Social Services Pooled Budgets,Jcs For People With Learning Disabilitie,Third Party Payments,Residential,580,14-Dec-2016,1612-00673,0.00,3059.84,R,Aire House,
Http://opendatacommunities.org/id/metropolitan-district-council/leeds,Leeds City Council,31/12/2016,City Development,Economic Development,Supplies and Services,Grants To Businesses,243,28-Dec-2016,1612-00674,0.00,24328.00,R,Aire Place Property Co. Ltd,
Http://opendatacommunities.org/id/metropolitan-district-council/leeds,Leeds City Council,31/12/2016,City Development,Economic Development,Capital,Other Costs,7,09-Dec-2016,1612-00675,0.00,168342.62,C,Aire Valley Land Llp,
Http://opendatacommunities.org/id/metropolitan-district-council/leeds,Leeds City Council,31/12/2016,Adult Social Care,Services For Older People - 65 And Over,Third Party Payments,Residential Care Dementia,571,14-Dec-2016,1612-00676,0.00,58370.04,R,Aire View Residential Home,
Http://opendatacommunities.org/id/metropolitan-district-council/leeds,Leeds City Council,31/12/2016,Adult Social Care,Services For Older People - 65 And Over,Third Party Payments,Residential,580,14-Dec-2016,1612-00677,0.00,10850.86,R,Aire View Residential Home,
Http://opendatacommunities.org/id/metropolitan-district-council/leeds,Leeds City Council,31/12/2016,Adult Social Care,Services For Older People - 65 And Over,Third Party Payments,Residential Care Dementia,571,14-Dec-2016,1612-00678,0.00,2512.66,R,Airedale (Goldsborough),
Http://opendatacommunities.org/id/metropolitan-district-council/leeds,Leeds City Council,31/12/2016,Adult Social Care,Services For Older People - 65 And Over,Third Party Payments,Residential,580,14-Dec-2016,1612-00679,0.00,17276.00,R,Airedale (Goldsborough),
Http://opendatacommunities.org/id/metropolitan-district-council/leeds,Leeds City Council,31/12/2016,Adult Social Care,Services For Older People Under 65 P/Dis,Third Party Payments,Residential,580,14-Dec-2016,1612-00680,0.00,1999.68,R,Airedale (Goldsborough),
Http://opendatacommunities.org/id/metropolitan-district-council/leeds,Leeds City Council,31/12/2016,Civic Enterprise Leeds,Commercial Services,Supplies and Services,Operational Furniture And Equipment,203,02-Dec-2016,1612-00681,0.00,5003.00,R,Airedale Catering Equipment Ltd,
Http://opendatacommunities.org/id/metropolitan-district-council/leeds,Leeds City Council,31/12/2016,Adult Social Care,Assessment And Care Management,Employees,Training Costs,71,02-Dec-2016,1612-00682,0.00,120.00,R,Airedale Community Trading (Act) Ltd,
Http://opendatacommunities.org/id/metropolitan-district-council/leeds,Leeds City Council,31/12/2016,Civic Enterprise Leeds,Commercial Services,Supplies and Services,Other Hired And Contracted Services,265,29-Dec-2016,1612-00683,0.00,202.50,R,Air-Weigh Europe Limited,
Http://opendatacommunities.org/id/metropolitan-district-council/leeds,Leeds City Council as Accountable Body,31/12/2016,Social Services Pooled Budgets,Jcs For People With Learning Disabilitie,Third Party Payments,Residential,580,14-Dec-2016,1612-00684,0.00,6173.24,R,Aitch Care Homes,
Http://opendatacommunities.org/id/metropolitan-district-council/leeds,Leeds City Council,31/12/2016,City Development,Recreation,Supplies and Services,Operational Materials,205,01-Dec-2016,1612-00685,0.00,236.40,R,Aitkens Sportsturf Ltd,
Http://opendatacommunities.org/id/metropolitan-district-council/leeds,Leeds City Council,31/12/2016,City Development,Recreation,Supplies and Services,Operational Materials,205,09-Dec-2016,1612-00686,0.00,127.00,R,Aitkens Sportsturf Ltd,
Http://opendatacommunities.org/id/metropolitan-district-council/leeds,Leeds City Council,31/12/2016,Civic Enterprise Leeds,Commercial Services,Supplies and Services,Other Hired And Contracted Services,265,01-Dec-2016,1612-00687,0.00,675.00,R,REDACTED PERSONAL DATA,
Http://opendatacommunities.org/id/metropolitan-district-council/leeds,Leeds City Council,31/12/2016,Civic Enterprise Leeds,Commercial Services,Supplies and Services,Other Hired And Contracted Services,265,01-Dec-2016,1612-00688,0.00,600.00,R,REDACTED PERSONAL DATA,
Http://opendatacommunities.org/id/metropolitan-district-council/leeds,Leeds City Council,31/12/2016,Adult Social Care,Services For Older People - 65 And Over,Third Party Payments,Home Care,568,09-Dec-2016,1612-00689,0.00,4325.31,R,Aj Social Care,
Http://opendatacommunities.org/id/metropolitan-district-council/leeds,Leeds City Council,31/12/2016,Adult Social Care,Services For Older People Under 65 P/Dis,Third Party Payments,Home Care,568,09-Dec-2016,1612-00690,0.00,2936.33,R,Aj Social Care,
Http://opendatacommunities.org/id/metropolitan-district-council/leeds,Leeds City Council,31/12/2016,Adult Social Care,Services For Older People - 65 And Over,Third Party Payments,Home Care,568,09-Dec-2016,1612-00691,0.00,7295.06,R,Aj Social Care,
Http://opendatacommunities.org/id/metropolitan-district-council/leeds,Leeds City Council,31/12/2016,Adult Social Care,Services For Older People Under 65 P/Dis,Third Party Payments,Home Care,568,09-Dec-2016,1612-00692,0.00,13782.16,R,Aj Social Care,
Http://opendatacommunities.org/id/metropolitan-district-council/leeds,Leeds City Council,31/12/2016,Adult Social Care,Services For Older People Under 65 P/Dis,Third Party Payments,Home Care,568,19-Dec-2016,1612-00693,0.00,23.97,R,Aj Social Care,
Http://opendatacommunities.org/id/metropolitan-district-council/leeds,Leeds City Council,31/12/2016,Environment & Housing,Leeds Building Services,Supplies and Services,Operational Materials,205,02-Dec-2016,1612-00694,0.00,-88.56,R,Ajm Fixings & Power Tools Ltd,
Http://opendatacommunities.org/id/metropolitan-district-council/leeds,Leeds City Council,31/12/2016,Environment & Housing,Leeds Building Services,Supplies and Services,Operational Materials,205,02-Dec-2016,1612-00695,0.00,578.94,R,Ajm Fixings & Power Tools Ltd,
Http://opendatacommunities.org/id/metropolitan-district-council/leeds,Leeds City Council,31/12/2016,Environment & Housing,Leeds Building Services,Supplies and Services,Stores - Central And Other Depots,005,02-Dec-2016,1612-00696,0.00,458.00,R,Ajm Fixings & Power Tools Ltd,
Http://opendatacommunities.org/id/metropolitan-district-council/leeds,Leeds City Council,31/12/2016,Environment & Housing,Leeds Building Services,Supplies and Services,Stores - Central And Other Depots,005,02-Dec-2016,1612-00697,0.00,1418.35,R,Ajm Fixings & Power Tools Ltd,
Http://opendatacommunities.org/id/metropolitan-district-council/leeds,Leeds City Council,31/12/2016,Environment & Housing,Leeds Building Services,Supplies and Services,Operational Furniture And Equipment,203,02-Dec-2016,1612-00698,0.00,19.50,R,Ajm Fixings & Power Tools Ltd,
Http://opendatacommunities.org/id/metropolitan-district-council/leeds,Leeds City Council,31/12/2016,Environment & Housing,Leeds Building Services,Supplies and Services,Operational Furniture And Equipment,203,09-Dec-2016,1612-00699,0.00,63.60,R,Ajm Fixings & Power Tools Ltd,
Http://opendatacommunities.org/id/metropolitan-district-council/leeds,Leeds City Council,31/12/2016,Environment & Housing,Leeds Building Services,Supplies and Services,Operational Furniture And Equipment,203,09-Dec-2016,1612-00700,0.00,80.00,R,Ajm Fixings & Power Tools Ltd,
Http://opendatacommunities.org/id/metropolitan-district-council/leeds,Leeds City Council,31/12/2016,Environment & Housing,Leeds Building Services,Supplies and Services,Operational Furniture And Equipment,203,09-Dec-2016,1612-00701,0.00,226.80,R,Ajm Fixings & Power Tools Ltd,
Http://opendatacommunities.org/id/metropolitan-district-council/leeds,Leeds City Council,31/12/2016,Environment & Housing,Leeds Building Services,Supplies and Services,Operational Furniture And Equipment,203,14-Dec-2016,1612-00702,0.00,25.40,R,Ajm Fixings & Power Tools Ltd,
Http://opendatacommunities.org/id/metropolitan-district-council/leeds,Leeds City Council,31/12/2016,Environment & Housing,Leeds Building Services,Supplies and Services,Stores - Central And Other Depots,005,14-Dec-2016,1612-00703,0.00,290.32,R,Ajm Fixings & Power Tools Ltd,
Http://opendatacommunities.org/id/metropolitan-district-council/leeds,Leeds City Council,31/12/2016,Strategic Landlord,Property and Contracts,Supplies and Services,Office Furniture & Equipment,201,21-Dec-2016,1612-00704,0.00,466.94,R,Ajm Fixings & Power Tools Ltd,
Http://opendatacommunities.org/id/metropolitan-district-council/leeds,Leeds City Council,31/12/2016,Environment & Housing,Leeds Building Services,Supplies and Services,Operational Furniture And Equipment,203,21-Dec-2016,1612-00705,0.00,52.58,R,Ajm Fixings & Power Tools Ltd,
Http://opendatacommunities.org/id/metropolitan-district-council/leeds,Leeds City Council,31/12/2016,Environment & Housing,Leeds Building Services,Supplies and Services,Operational Furniture And Equipment,203,30-Dec-2016,1612-00706,0.00,429.00,R,Ajm Fixings & Power Tools Ltd,
Http://opendatacommunities.org/id/metropolitan-district-council/leeds,Leeds City Council,31/12/2016,Adult Social Care,Services For Older People - 65 And Over,Third Party Payments,Nursing Home,570,14-Dec-2016,1612-00707,0.00,1261.04,R,Akari Care Ltd,
Http://opendatacommunities.org/id/metropolitan-district-council/leeds,Leeds City Council,31/12/2016,City Development,Libraries  Arts & Heritage  ,Supplies and Services,Operational Materials,205,21-Nov-2016,1612-00708,0.00,51.78,R,Akzonobel,Yes
Http://opendatacommunities.org/id/metropolitan-district-council/leeds,Leeds City Council,31/12/2016,City Development,Libraries  Arts & Heritage  ,Supplies and Services,Operational Materials,205,21-Nov-2016,1612-00709,0.00,33.71,R,Akzonobel,Yes
Http://opendatacommunities.org/id/metropolitan-district-council/leeds,Leeds City Council,31/12/2016,Strategic Accounts,Miscellaneous,Supplies and Services,Non-Recurring Grants,227,19-Dec-2016,1612-00710,0.00,100.00,R,Al Khidmat Centre,
Http://opendatacommunities.org/id/metropolitan-district-council/leeds,Leeds City Council,31/12/2016,Adult Social Care,Services For Older People - 65 And Over,Third Party Payments,Payments To Voluntary Organisations,561,30-Dec-2016,1612-00711,0.00,3000.00,R,Al Khidmat Centre,
Http://opendatacommunities.org/id/metropolitan-district-council/leeds,Leeds City Council,31/12/2016,Childrens Services,Safeguarding Targeted & Specialist  ,Transfer Payments,Leaving Care Grants,635,07-Nov-2016,1612-00712,0.00,74.38,R,Al Murad Diy Ltd,Yes
Http://opendatacommunities.org/id/metropolitan-district-council/leeds,Leeds City Council,31/12/2016,Childrens Services,Safeguarding Targeted & Specialist  ,Transfer Payments,Leaving Care Grants,635,21-Nov-2016,1612-00713,0.00,80.00,R,Al Murad Diy Ltd,Yes
Http://opendatacommunities.org/id/metropolitan-district-council/leeds,Leeds City Council,31/12/2016,City Development,Libraries  Arts & Heritage,Supplies and Services,Discovery Centre,018,09-Dec-2016,1612-00714,0.00,162.86,R,Alaa Enterprises,
Http://opendatacommunities.org/id/metropolitan-district-council/leeds,Leeds City Council,31/12/2016,Central & Corporate,Democratic Services  ,Premises,Grounds Maintenance Work,111,07-Nov-2016,1612-00715,0.00,35.00,R,Alan Brown Flowers,Yes
Http://opendatacommunities.org/id/metropolitan-district-council/leeds,Leeds City Council,31/12/2016,City Development,Economic Development,Supplies and Services,Publication And Promotion,267,23-Dec-2016,1612-00716,0.00,250.00,R,Alan Brown Flowers,
Http://opendatacommunities.org/id/metropolitan-district-council/leeds,Leeds City Council,31/12/2016,Childrens Services,Learning Skills & Universal,Supplies and Services,Bought In Professional Services,277,23-Dec-2016,1612-00717,0.00,300.00,R,Alan Easterbrook,
Http://opendatacommunities.org/id/metropolitan-district-council/leeds,Leeds City Council,31/12/2016,Environment & Housing,Parks and Countryside,Supplies and Services,Operational Materials,205,14-Dec-2016,1612-00718,0.00,87.75,R,Albion Electric Stores Ltd,
Http://opendatacommunities.org/id/metropolitan-district-council/leeds,Leeds City Council,31/12/2016,Strategic Landlord,Housing Management,Supplies and Services,Grants To Voluntary Organisations,293,16-Dec-2016,1612-00719,0.00,2447.00,R,Alcas Automation Ltd,
Http://opendatacommunities.org/id/metropolitan-district-council/leeds,Leeds City Council,31/12/2016,Environment & Housing,Environmental Health,Supplies and Services,Other Hired And Contracted Services,265,05-Dec-2016,1612-00720,0.00,322.48,R,Alcontrol Uk Ltd,
Http://opendatacommunities.org/id/metropolitan-district-council/leeds,Leeds City Council,31/12/2016,City Development,Recreation  ,Supplies and Services,Food & Drink,231,15-Nov-2016,1612-00721,0.00,5.22,R,Aldi,Yes
Http://opendatacommunities.org/id/metropolitan-district-council/leeds,Leeds City Council,31/12/2016,Environment & Housing,Parks And Countryside  ,Supplies and Services,Food & Drink,231,24-Nov-2016,1612-00722,0.00,1.69,R,Aldi,Yes
Http://opendatacommunities.org/id/metropolitan-district-council/leeds,Leeds City Council,31/12/2016,Childrens Services,Safeguarding Targeted & Specialist,Support Services,Legal Disbursements,411,01-Dec-2016,1612-00723,0.00,54.00,R,Alere Toxicology Plc,
Http://opendatacommunities.org/id/metropolitan-district-council/leeds,Leeds City Council,31/12/2016,Childrens Services,Safeguarding Targeted & Specialist,Support Services,Legal Disbursements,411,01-Dec-2016,1612-00724,0.00,25.00,R,Alere Toxicology Plc,
Http://opendatacommunities.org/id/metropolitan-district-council/leeds,Leeds City Council,31/12/2016,Childrens Services,Safeguarding Targeted & Specialist,Support Services,Legal Disbursements,411,01-Dec-2016,1612-00725,0.00,23.75,R,Alere Toxicology Plc,
Http://opendatacommunities.org/id/metropolitan-district-council/leeds,Leeds City Council,31/12/2016,Childrens Services,Safeguarding Targeted & Specialist,Support Services,Legal Disbursements,411,01-Dec-2016,1612-00726,0.00,72.00,R,Alere Toxicology Plc,
Http://opendatacommunities.org/id/metropolitan-district-council/leeds,Leeds City Council,31/12/2016,Childrens Services,Safeguarding Targeted & Specialist,Support Services,Legal Disbursements,411,01-Dec-2016,1612-00727,0.00,200.02,R,Alere Toxicology Plc,
Http://opendatacommunities.org/id/metropolitan-district-council/leeds,Leeds City Council,31/12/2016,Childrens Services,Safeguarding Targeted & Specialist,Support Services,Legal Disbursements,411,16-Dec-2016,1612-00728,0.00,73.25,R,Alere Toxicology Plc,
Http://opendatacommunities.org/id/metropolitan-district-council/leeds,Leeds City Council,31/12/2016,Childrens Services,Learning Skills & Universal,Supplies and Services,Training Allowances,257,02-Dec-2016,1612-00729,0.00,264.84,R,REDACTED PERSONAL DATA,
Http://opendatacommunities.org/id/metropolitan-district-council/leeds,Leeds City Council,31/12/2016,Childrens Services,Learning Skills & Universal,Supplies and Services,Training Allowances,257,09-Dec-2016,1612-00730,0.00,264.84,R,REDACTED PERSONAL DATA,
Http://opendatacommunities.org/id/metropolitan-district-council/leeds,Leeds City Council,31/12/2016,Childrens Services,Learning Skills & Universal,Supplies and Services,Training Allowances,257,16-Dec-2016,1612-00731,0.00,264.84,R,REDACTED PERSONAL DATA,
Http://opendatacommunities.org/id/metropolitan-district-council/leeds,Leeds City Council,31/12/2016,Childrens Services,Learning Skills & Universal,Supplies and Services,Training Allowances,257,23-Dec-2016,1612-00732,0.00,794.52,R,REDACTED PERSONAL DATA,
Http://opendatacommunities.org/id/metropolitan-district-council/leeds,Leeds City Council,31/12/2016,Childrens Services,Safeguarding Targeted & Specialist,Support Services,Legal Disbursements,411,08-Dec-2016,1612-00733,0.00,1083.00,R,Alex Taylor,
Http://opendatacommunities.org/id/metropolitan-district-council/leeds,Leeds City Council,31/12/2016,Adult Social Care,Services For Older People - 65 And Over,Third Party Payments,Residential Care Dementia,571,14-Dec-2016,1612-00734,0.00,10995.00,R,Alexander Residential Home,
Http://opendatacommunities.org/id/metropolitan-district-council/leeds,Leeds City Council,31/12/2016,Adult Social Care,Services For Older People - 65 And Over,Third Party Payments,Residential,580,14-Dec-2016,1612-00735,0.00,16495.72,R,Alexander Residential Home,
Http://opendatacommunities.org/id/metropolitan-district-council/leeds,Leeds City Council,31/12/2016,Citizens and Communities,Customer Access,Supplies and Services,Other Hired And Contracted Services,265,08-Dec-2016,1612-00736,0.00,248.60,R,Alexandra Costenco,
Http://opendatacommunities.org/id/metropolitan-district-council/leeds,Leeds City Council,31/12/2016,Citizens and Communities,Customer Access,Supplies and Services,Other Hired And Contracted Services,265,28-Dec-2016,1612-00737,0.00,299.50,R,Alexandra Costenco,
Http://opendatacommunities.org/id/metropolitan-district-council/leeds,Leeds City Council,31/12/2016,Adult Social Care,Services For Older People - 65 And Over,Third Party Payments,Residential Care Dementia,571,14-Dec-2016,1612-00738,0.00,1511.28,R,Alexandra Court,
Http://opendatacommunities.org/id/metropolitan-district-council/leeds,Leeds City Council,31/12/2016,Adult Social Care,Services For Older People - 65 And Over,Third Party Payments,Residential,580,14-Dec-2016,1612-00739,0.00,15410.28,R,Alexandra Court,
Http://opendatacommunities.org/id/metropolitan-district-council/leeds,Leeds City Council,31/12/2016,Citizens and Communities,Customer Access,Supplies and Services,Other Hired And Contracted Services,265,08-Dec-2016,1612-00740,0.00,552.50,R,Alexandra Hirst,
Http://opendatacommunities.org/id/metropolitan-district-council/leeds,Leeds City Council,31/12/2016,Citizens and Communities,Customer Access,Supplies and Services,Other Hired And Contracted Services,265,28-Dec-2016,1612-00741,0.00,358.75,R,Alexandra Hirst,
Http://opendatacommunities.org/id/metropolitan-district-council/leeds,Leeds City Council,31/12/2016,Childrens Services,Learning Skills & Universal,Third Party Payments,Services Rendered By Other Organisations,511,02-Dec-2016,1612-00742,0.00,2037.00,R,Alexandra Leigh,
Http://opendatacommunities.org/id/metropolitan-district-council/leeds,Leeds City Council,31/12/2016,Childrens Services,Learning Skills & Universal,Supplies and Services,Training Allowances,257,02-Dec-2016,1612-00743,0.00,216.00,R,REDACTED PERSONAL DATA,
Http://opendatacommunities.org/id/metropolitan-district-council/leeds,Leeds City Council,31/12/2016,Childrens Services,Learning Skills & Universal,Supplies and Services,Training Allowances,257,09-Dec-2016,1612-00744,0.00,216.00,R,REDACTED PERSONAL DATA,
Http://opendatacommunities.org/id/metropolitan-district-council/leeds,Leeds City Council,31/12/2016,Childrens Services,Learning Skills & Universal,Supplies and Services,Training Allowances,257,16-Dec-2016,1612-00745,0.00,216.00,R,REDACTED PERSONAL DATA,
Http://opendatacommunities.org/id/metropolitan-district-council/leeds,Leeds City Council,31/12/2016,Childrens Services,Learning Skills & Universal,Supplies and Services,Training Allowances,257,23-Dec-2016,1612-00746,0.00,216.00,R,REDACTED PERSONAL DATA,
Http://opendatacommunities.org/id/metropolitan-district-council/leeds,Leeds City Council,31/12/2016,Childrens Services,Learning Skills & Universal,Supplies and Services,Training Allowances,257,30-Dec-2016,1612-00747,0.00,216.00,R,REDACTED PERSONAL DATA,
Http://opendatacommunities.org/id/metropolitan-district-council/leeds,Leeds City Council,31/12/2016,Environment & Housing,Leeds Building Services,Supplies and Services,Other Hired And Contracted Services,265,23-Dec-2016,1612-00748,0.00,2582.50,R,Alfred Bagnall & Sons (Leeds) Ltd,
Http://opendatacommunities.org/id/metropolitan-district-council/leeds,Leeds City Council,31/12/2016,City Development,Libraries  Arts & Heritage,Supplies and Services,Operational Furniture And Equipment,203,23-Dec-2016,1612-00749,0.00,2320.00,R,Alfred Bagnall & Sons (Leeds) Ltd,
Http://opendatacommunities.org/id/metropolitan-district-council/leeds,Leeds City Council,31/12/2016,Environment & Housing,Leeds Building Services,Supplies and Services,Other Hired And Contracted Services,265,23-Dec-2016,1612-00750,0.00,8196.50,R,Alfred Bagnall & Sons (Leeds) Ltd,
Http://opendatacommunities.org/id/metropolitan-district-council/leeds,Leeds City Council,31/12/2016,City Development,Recreation,Supplies and Services,Other Hired And Contracted Services,265,23-Dec-2016,1612-00751,0.00,2200.00,R,Alfred Bagnall & Sons (Leeds) Ltd,
Http://opendatacommunities.org/id/metropolitan-district-council/leeds,Leeds City Council,31/12/2016,City Development,Asset Management Services,Supplies and Services,Other Hired And Contracted Services,265,23-Dec-2016,1612-00752,0.00,1126.00,R,Alfred Bagnall & Sons (Leeds) Ltd,
Http://opendatacommunities.org/id/metropolitan-district-council/leeds,Leeds City Council,31/12/2016,City Development,Recreation,Supplies and Services,Other Hired And Contracted Services,265,23-Dec-2016,1612-00753,0.00,190.00,R,Alfred Bagnall & Sons (Leeds) Ltd,
